Workbook

Sheet Pres & Prop Rev
J3: TRANSPORT
D4: GEN SERVICE | E4: LRG GEN SVC | G4: INTERRUPTIBLE | H4: TRANSPORT | I4: TRANSPORT | J4: SCH 148 - WSU
C5: TOTAL | D5: SCH. 101 & 102 | E5: SCH. 111,112&116 | F5: OPEN | G5: SCH. 131&132 | H5: SCHEDULE 146 | I5: SCHEDULE 148 | J5: ANN. MINIMUM | Q5: Print Header for all printed pages on this worksheet:
B6: PRESENT BILL DETERMINANTS | M6: Calculate all revenue exhibits using ____ rates: | Q6: ="AVISTA UTILITIES WASHINGTON NATURAL GAS PRO FORMA REVENUE UNDER PRESENT AND PROPOSED "&O9&" RATES 12 MONTHS ENDED SEPTEMBER 30, 2021" -> AVISTA UTILITIES WASHINGTON NATURAL GAS PRO FORMA REVENUE UNDER PRESENT AND PROPOSED BASE TARIFF RATES 12 MONTHS ENDED SEPTEMBER 30, 2021
B7: THERMS | L7: 1) | M7: BASE TARIFF
B8: BLOCK 1 | D8: ='Bill Determ'!E7 -> 80766205.38 | E8: ='Bill Determ'!B18 -> 6521234.705 | G8: ='Bill Determ'!B39 -> 240000 | H8: ='Bill Determ'!B43 -> 7930946 | I8: ='Bill Determ'!B49 -> 19487326 | J8: ='Bill Determ'!B55 -> 10798113 | M8: or | O8: 1
B9: BLOCK 2 | D9: ='Bill Determ'!F7 -> 47287211.04 | E9: ='Bill Determ'!C18 -> 16462319.31 | G9: ='Bill Determ'!C39 -> 306456.124 | H9: ='Bill Determ'!C43 -> 7628283 | I9: ='Bill Determ'!B50 -> 5800449 | L9: 2) | M9: BILLING | O9: =CHOOSE(Base1_Billing2,M7,M9) -> BASE TARIFF
B10: BLOCK 3 | E10: ='Bill Determ'!D18 -> 27222822.76 | G10: ='Bill Determ'!D39 -> 323177.792 | H10: ='Bill Determ'!D43 -> 14073664 | I10: ='Bill Determ'!B51 -> 1764576 | O10: =CHOOSE(Base1_Billing2,"Base","Billing") -> Base
B11: BLOCK 4 | E11: ='Bill Determ'!E18 -> 4049910.189 | G11: ='Bill Determ'!E39 -> 105244.38 | H11: ='Bill Determ'!E43 -> 1741349 | I11: ='Bill Determ'!B52 -> 3516793
B12: BLOCK 5 | E12: ='Bill Determ'!F18 -> 1177490.428 | H12: ='Bill Determ'!F43 -> 0 | I12: ='Bill Determ'!B46 -> 7023064
B14: SUBTOTAL | C14: =SUM(D14:J14) -> 264226635.1 | D14: =SUM(D8:D12) -> 128053416.4 | E14: 55433777.39 | F14: 0 | G14: 974878.296 | H14: =SUM(H8:H12) -> 31374242 | I14: =SUM(I8:I12) -> 37592208 | J14: 10798113
B15: LOAD ADJUSTMENT
B17: SUBTOTAL | C17: =SUM(D17:J17) -> 264226635.1 | D17: =D14+D15 -> 128053416.4 | E17: 55433777.39 | F17: 0 | G17: 974878.296 | H17: =H14+H15 -> 31374242 | I17: 37592208 | J17: 10798113
B18: ADJUSTMENT TO ACTUAL | C18: =SUM(D18:J18) -> 0 | D18: ='Bill Determ'!I11 -> 0 | E18: ='Bill Determ'!G19 -> 0
B20: TOTAL BEFORE ADJUSTMENT | C20: =SUM(D20:J20) -> 264226635.1 | D20: =D17+D18 -> 128053416.4 | E20: 55433777.39 | F20: 0 | G20: 974878.296 | H20: =H17+I18 -> 31374242 | I20: =I17+I18 -> 37592208 | J20: 10798113
B21: WEATHER & UNBILLED REV. ADJ. | C21: =SUM(D21:J21) -> 12637293 | D21: =D134+D137 -> 9323336 | E21: =E134+E137 -> 3313957 | F21: =F134+F137 -> 0 | G21: 0 | H21: =H134+H137 -> 0 | I21: 0 | J21: 0
B23: TOTAL PROFORMA THERMS | C23: =IF(ROUND(SUM(C20:C21),3)<>ROUND(SUM(D23:J23),3),#VALUE!,SUM(D23:J23)) -> 276863928.1 | D23: =SUM(D20:D21) -> 137376752.4 | E23: 58747734.39 | F23: 0 | G23: 974878.296 | H23: =SUM(H20:H21) -> 31374242 | I23: 37592208 | J23: 10798113
B25: TOTAL BILLS | D25: ='Bill Determ'!C7 -> 2040304 | G25: ='Bill Determ'!G39 -> 24 | H25: ='Bill Determ'!H43 -> 456 | I25: ='Bill Determ'!C53 -> 48 | J25: ='Bill Determ'!C55 -> 12
B26: TOTAL MINIMUM BILLS | E26: ='Bill Determ'!H18 -> 38169
B29: PROPOSED BILL DETERMINANTS
B30: THERMS
B31: BLOCK 1 | D31: ='Bill Determ'!E7 -> 80766205.38 | E31: ='Bill Determ'!B18 -> 6521234.705 | G31: =G8 -> 240000 | H31: 7930946 | I31: 19487326 | J31: 10798113
B32: BLOCK 2 | D32: ='Bill Determ'!F7 -> 47287211.04 | E32: ='Bill Determ'!C18 -> 16462319.31 | G32: =G9 -> 306456.124 | H32: 7628283 | I32: 5800449 | J32: 0
B33: BLOCK 3 | D33: =D10 -> 0 | E33: ='Bill Determ'!D18 -> 27222822.76 | G33: =G10 -> 323177.792 | H33: 14073664 | I33: 1764576 | J33: 0
B34: BLOCK 4 | D34: =D11 -> 0 | E34: ='Bill Determ'!E18 -> 4049910.189 | G34: =G11 -> 105244.38 | H34: 1741349 | I34: 3516793 | J34: 0
B35: BLOCK 5 | D35: =D12 -> 0 | E35: ='Bill Determ'!F18 -> 1177490.428 | G35: =G12 -> 0 | H35: 0 | I35: 7023064 | J35: 0
B37: SUBTOTAL | C37: =SUM(D37:J37) -> 264226635.1 | D37: =SUM(D31:D35) -> 128053416.4 | E37: =SUM(E31:E35) -> 55433777.39 | F37: 0 | G37: 974878.296 | H37: =SUM(H31:H35) -> 31374242 | I37: =SUM(I31:I35) -> 37592208 | J37: 10798113
B38: NET SHIFTING ADJUSTMENT | C38: =SUM(D38:J38) -> 0 | D38: =D15 -> 0 | E38: 0 | F38: 0 | G38: 0 | H38: =H15 -> 0 | I38: 0 | J38: 0
B40: SUBTOTAL | C40: =SUM(D40:J40) -> 264226635.1 | D40: =D37+D38 -> 128053416.4 | E40: 55433777.39 | F40: 0 | G40: 974878.296 | H40: =H37+H38 -> 31374242 | I40: 37592208 | J40: 10798113
B41: ADJUSTMENT TO ACTUAL | C41: =SUM(D41:J41) -> 0 | D41: =D18 -> 0 | E41: 0 | F41: 0 | G41: 0 | H41: 0 | I41: 0 | J41: 0
B43: TOTAL BEFORE ADJUSTMENT | C43: =SUM(D43:J43) -> 264226635.1 | D43: =D40+D41 -> 128053416.4 | E43: 55433777.39 | F43: 0 | G43: 974878.296 | H43: =H40+H41 -> 31374242 | I43: =I40+I41 -> 37592208 | J43: 10798113
B44: WEATHER & UNBILLED REV. ADJ. | C44: =SUM(D44:J44) -> 12637293 | D44: =D21 -> 9323336 | E44: =E21+F21 -> 3313957 | G44: 0 | H44: =H21 -> 0 | I44: 0 | J44: 0
B46: TOTAL PROFORMA THERMS | C46: =IF(ROUND(SUM(C43:C44),3)<>ROUND(SUM(D46:J46),3),#VALUE!,SUM(D46:J46)) -> 276863928.1 | D46: =D43+D44 -> 137376752.4 | E46: 58747734.39 | F46: 0 | G46: 974878.296 | H46: =H43+H44 -> 31374242 | I46: 37592208 | J46: 10798113
B48: TOTAL BILLS | D48: =D25 -> 2040304 | E48: 0 | F48: 0 | G48: =G25 -> 24 | H48: =H25 -> 456 | I48: =I25 -> 48 | J48: =J25 -> 12
B49: TOTAL MINIMUM BILLS | D49: 0 | E49: ='Bill Determ'!H18 -> 38169
E50: 2 | F50: 3 | G50: 4 | H50: 5 | I50: 6 | J50: 7
J52: TRANSPORT
D53: GEN SERVICE | E53: LRG GEN SVC | G53: INTERRUPTIBLE | H53: TRANSPORT | I53: TRANSPORT | J53: SCH 148 - WSU | M53: ="selected in cell "&CELL("address",Base1_Billing2)&":" -> selected in cell $O$8:
C54: TOTAL | D54: SCHEDULE 101 | E54: SCHEDULE 111 | F54: =F5 -> OPEN | G54: SCHEDULE 131 | H54: SCHEDULE 146 | I54: SCHEDULE 148 | J54: ANN. MINIMUM | M54: =O10 -> Base
B55: PRESENT RATES | I55: -1 | J55: -2 | M55: ="Rates_"&$M$54&"_Present" -> Rates_Base_Present | O55: - range name where Present Rates table can be found
B56: BASIC CHARGE | D56: =INDEX(INDIRECT($M$55),$K56,D$50) -> 9.5 | E56: =INDEX(INDIRECT($M$55),$K56,E$50) -> 0 | F56: =INDEX(INDIRECT($M$55),$K56,F$50) -> 0 | G56: =INDEX(INDIRECT($M$55),$K56,G$50) -> 0 | H56: =INDEX(INDIRECT($M$55),$K56,H$50) -> 700 | I56: 200 | J56: 26332 | K56: 1 | M56: ="Rates_"&$M$54&"_Proposed" -> Rates_Base_Proposed | O56: - range name where Proposed Rates table can be found
B57: MONTHLY/ANNUAL MINIMUM | D57: =INDEX(INDIRECT($M$55),$K57,D$50) -> 0 | E57: =INDEX(INDIRECT($M$55),$K57,E$50) -> 128.72 | F57: 0 | G57: =INDEX(INDIRECT($M$55),$K57,G$50) -> 0 | I57: 0 | J57: 0 | K57: 2
B59: BLOCK 1 PER THERM | D59: =INDEX(INDIRECT($M$55),$K59,D$50) -> 49.893 | E59: 0 | F59: =INDEX(INDIRECT($M$55),$K59,F$50) -> 0 | G59: =INDEX(INDIRECT($M$55),$K59,G$50) -> 29.933 | H59: 12.256 | I59: 2.8 | J59: 1 | K59: 3
B60: BLOCK 2 PER THERM | D60: 64.844 | E60: 38.312 | F60: 0 | G60: 24.029 | H60: 10.904 | I60: 4.5 | J60: 0 | K60: 4
B61: BLOCK 3 PER THERM | D61: 0 | E61: 29.203 | F61: 0 | G61: 22.579 | H61: 9.832 | I61: 3.168 | J61: 0 | K61: 5
B62: BLOCK 4 PER THERM | D62: 0 | E62: 24.917 | F62: 0 | G62: 20.174 | H62: 9.093 | I62: 2.5 | J62: 0 | K62: 6
B63: BLOCK 5 PER THERM | D63: 0 | E63: 17.48 | F63: 0 | G63: 0 | H63: 6.834 | I63: 2.091 | J63: 0 | K63: 7
B65: ADJUST TO ACTUAL PER THERM | D65: =(D118-D106-D107)/D17*100 -> 55.41406388 | E65: =(E118-E106-E107)/E17*100 -> 27.91053917 | G65: =(G118-G106-G107)/G17*100 -> 24.58561761 | H65: =(H118-H106-H107)/H17*100 -> 10.66437946
B73: PROPOSED RATES
B74: BASIC CHARGE | D74: =INDEX(INDIRECT($M$56),$K74,D$50) -> 9.5 | E74: =INDEX(INDIRECT($M$56),$K74,E$50) -> 0 | F74: =INDEX(INDIRECT($M$56),$K74,F$50) -> 0 | G74: =INDEX(INDIRECT($M$56),$K74,G$50) -> 0 | H74: =INDEX(INDIRECT($M$56),$K74,H$50) -> 700 | I74: 200 | J74: 26332 | K74: 1
B75: MONTHLY MINIMUM | D75: =INDEX(INDIRECT($M$56),$K75,D$50) -> 0 | E75: =INDEX(INDIRECT($M$56),$K75,E$50) -> 130.58 | F75: 0 | G75: =INDEX(INDIRECT($M$56),$K75,G$50) -> 0 | H75: =INDEX(INDIRECT($M$56),$K75,H$50) -> 0 | I75: 0 | J75: 0 | K75: 2
B77: BLOCK 1 PER THERM | D77: =INDEX(INDIRECT($M$56),$K77,D$50) -> 50.669 | E77: 0 | F77: =INDEX(INDIRECT($M$56),$K77,F$50) -> 0 | G77: =INDEX(INDIRECT($M$56),$K77,G$50) -> 30.317 | H77: 12.43 | I77: 2.8 | J77: 1 | K77: 3
B78: BLOCK 2 PER THERM | D78: 65.853 | E78: 38.764 | F78: 0 | G78: 24.337 | H78: 11.058 | I78: 4.5 | J78: 0 | K78: 4
B79: BLOCK 3 PER THERM | D79: 0 | E79: 29.547 | F79: 0 | G79: 22.869 | H79: 9.971 | I79: 3.168 | J79: 0 | K79: 5
B80: BLOCK 4 PER THERM | D80: 0 | E80: 25.211 | F80: 0 | G80: 20.433 | H80: 9.221 | I80: 2.5 | J80: 0 | K80: 6
B81: BLOCK 5 PER THERM | D81: 0 | E81: 17.686 | F81: 0 | G81: 0 | H81: 6.93 | I81: 2.091 | J81: 0 | K81: 7
B83: ADJUST TO ACTUAL PER THERM | D83: =(D167-D155-D156)/D40*100 -> 56.27610547 | E83: =(E167-E155-E156)/E40*100 -> 28.23955981 | G83: =(G167-G155-G156)/G40*100 -> 24.90107134 | H83: =(H167-H155-H156)/H40*100 -> 10.81526352
B87: (1) Block 1 - Kaiser-Trentwood - workpaper JDM-G-19
B88: Block 2 - Lamb-Weston - workpaper JDM-G-21
B89: Block 3 - Mutual Materials - workpaper JDM-G-25
B90: Block 4 - Washington Potato - workpaper JDM-G-23
B91: Block 5 - Avista Electric generating facilities billed at 2.091 cents/therm (Sch. 148 floor)
B93: (2) Monthly minimum / rate per therm - workpaper JDM-G-27
B97: ="Note: Rates exclude Sch. 150 (Purch. Gas Cost Adj.)"&IF(Base1_Billing2=2,"Sch. 150 (Purch. Gas Cost Adj.), Sch. 155 (Gas Rate Adj.), and Sch. 191 (Public Purp. Rider Adj.)","") -> Note: Rates exclude Sch. 150 (Purch. Gas Cost Adj.)
J101: TRANSPORT
D102: GEN SERVICE | E102: LRG GEN SVC | G102: INTERRUPTIBLE | H102: TRANSPORT | I102: TRANSPORT | J102: SCH 148 - WSU
C103: TOTAL | D103: SCHEDULE 101 | E103: SCHEDULE 111 | F103: =F5 -> OPEN | G103: SCHEDULE 131 | H103: SCHEDULE 146 | I103: SCHEDULE 148 | J103: ANN. MINIMUM
B104: PRESENT REVENUE
B105: =UPPER(CHOOSE(Base1_Billing2,$O$9,$O$10))&" REVENUE" -> BASE TARIFF REVENUE
B106: BASIC CHARGE | C106: =SUM(D106:J106) -> 20027672 | D106: =D25*D56 -> 19382888 | E106: =E25*E56 -> 0 | F106: 0 | G106: 0 | H106: =H25*H56 -> 319200 | I106: =I25*I56 -> 9600 | J106: =J25*J56 -> 315984
B107: MONTHLY/ANNUAL MINIMUM | C107: 4936560.006 | D107: =D26*D57 -> 0 | E107: =E26*E57 -> 4913113.68 | F107: =F26*F57 -> 0 | G107: 0 | H107: ='Big Schedules'!W47 -> 23446.326 | I107: 0 | J107: 0
B108: BLOCK 1 | C108: 41994165.05 | D108: =ROUND(D8*D59/100,2) -> 40296682.85 | E108: =ROUND(E8*E59/100,2) -> 0 | F108: =ROUND(F8*F59/100,2) -> 0 | G108: =ROUND(G8*G59/100,2) -> 71839.2 | H108: 972016.74 | I108: =ROUND(I8*I59/100,2) -> 545645.13 | J108: =ROUND(J8*J59/100,2) -> 107981.13
B109: BLOCK 2 | C109: 38136409.42 | D109: 30662919.12 | E109: 6307043.77 | F109: 0 | G109: 73638.34 | H109: 831787.98 | I109: 261020.21 | J109: 0
B110: BLOCK 3 | C110: 9462475.65 | D110: 0 | E110: 7949880.93 | F110: 0 | G110: 72970.31 | H110: 1383722.64 | I110: =ROUND(I10*I61/100,2) -> 55901.77 | J110: 0
B111: BLOCK 4 | C111: 1276608.81 | D111: =ROUND(D11*D62/100,2) -> 0 | E111: 1009116.12 | F111: 0 | G111: 21232 | H111: 158340.86 | I111: 87919.83 | J111: 0
B112: BLOCK 5 | C112: 352677.6 | D112: =ROUND(D12*D63/100,2) -> 0 | E112: 205825.33 | F112: 0 | G112: 0 | H112: 0 | I112: 146852.27 | J112: 0
B113: ANNUAL MINIMUM | C113: 0 | J113: 0
B115: SUBTOTAL | C115: =IF(ROUND(SUM(D115:J115),3)<>ROUND(SUM(C106:C113),3),#VALUE!,SUM(D115:J115)) -> 116186568.5 | D115: =SUM(D106:D113) -> 90342489.97 | E115: 20384979.83 | F115: 0 | G115: 239679.85 | H115: =SUM(H106:H113) -> 3688514.546 | I115: 1106939.21 | J115: =SUM(J106:J113) -> 423965.13
B116: NET SHIFTING ADJUSTMENT
B118: SUBTOTAL | C118: =SUM(D118:J118) -> 116186568.5 | D118: =D115+D116 -> 90342489.97 | E118: 20384979.83 | F118: 0 | G118: 239679.85 | H118: =H115+H116 -> 3688514.546 | I118: 1106939.21 | J118: 423965.13
B119: ADJUST TO ACTUAL | C119: =SUM(D119:J119) -> 0 | D119: =ROUND(D18*D65/100,2) -> 0 | E119: =ROUND(E18*E65/100,2) -> 0 | G119: =ROUND(G18*G65/100,2) -> 0 | H119: 0 | I119: 0 | J119: 0
B121: ="TOTAL "&UPPER(CHOOSE(Base1_Billing2,$O$9,$O$10))&" REVENUE" -> TOTAL BASE TARIFF REVENUE | C121: =IF(ROUND(C118+C119,3)<>ROUND(SUM(D121:J121),3),#VALUE!,SUM(D121:J121)) -> 116186568.5 | D121: =D118+D119 -> 90342489.97 | E121: 20384979.83 | F121: 0 | G121: 239679.85 | H121: =H118+H119 -> 3688514.546 | I121: 1106939.21 | J121: 423965.13
B124: ADJUSTMENT REVENUE
B125: UNBILLED REVENUE ADJUSTMENT
B126: UNBILLED LOAD THERMS | C126: =SUM(D126:J126) -> 573856 | D126: ='12MESEP21'!P207 -> 273909 | E126: ='12MESEP21'!P208+'12MESEP21'!P209 -> 299947
B127: UNBILLED LOAD RATE | D127: =D65 -> 55.41406388 | E127: =E65 -> 27.91053917 | H127: =H65 -> 10.66437946
B128: UNBILLED LOAD REVENUE | C128: =SUM(D128:J128) -> 235500.93 | D128: =ROUND(D126*D127/100,2) -> 151784.11 | E128: =ROUND(E126*E127/100,2) -> 83716.82 | F128: =ROUND(F126*F127/100,2) -> 0
B130: WEATHER-SENSITIVE THERMS | C130: =SUM(D130:J130) -> 0 | D130: 0 | E130: 0
B131: WEATHER-SENSITIVE RATE | D131: =D59 -> 49.893 | E131: =I232 -> 29.16919745
B132: WEATHER-SENSITIVE REVENUE | C132: =SUM(D132:J132) -> 0 | D132: =ROUND(D130*D131/100,2) -> 0 | E132: =ROUND(E130*E131/100,2) -> 0
B134: TOTAL UNBILLED THERM ADJ | C134: =IF(ROUND(SUM(D134:J134),3)<>ROUND(C126+C130,3),#VALUE!,SUM(D134:J134)) -> 573856 | D134: =D126+D130 -> 273909 | E134: =E126+E130 -> 299947 | F134: =F126+F130 -> 0
B135: TOTAL UNBILLED REVENUE ADJ | C135: =IF(ROUND(SUM(D135:J135),3)<>ROUND(C128+C132,3),#VALUE!,SUM(D135:J135)) -> 235500.93 | D135: =D128+D132 -> 151784.11 | E135: =E128+E132 -> 83716.82
B136: WEATHER NORMALIZATION ADJ
B137: WEATHER-SENSITIVE THERMS | C137: =SUM(D137:J137) -> 12063437 | D137: 9049427 | E137: 3014010
B138: WEATHER-SENSITIVE RATE | D138: =I208 -> 55.89197934 | E138: =I232 -> 29.16919745
B139: WEATHER-SENSITIVE REVENUE | C139: =SUM(D139:J139) -> 5937066.4 | D139: =ROUND(D137*D138/100,2) -> 5057903.87 | E139: =ROUND(E137*E138/100,2) -> 879162.53 | F139: =ROUND(F137*F138/100,2) -> 0
B140: OTHER ADJUSTMENTS
B142: TOTAL ADJUSTMENT REVENUE | C142: =IF(ROUND(SUM(D142:J142),3)<>ROUND(C135+C139+C140,3),#VALUE!,SUM(D142:J142)) -> 6172567.33 | D142: =D135+D139+D140 -> 5209687.98 | E142: =E135+E139+E140 -> 962879.35 | G142: 0 | H142: 0 | I142: 0 | J142: 0
B143: =B121 -> TOTAL BASE TARIFF REVENUE | C143: =SUM(D143:J143) -> 116186568.5 | D143: =D121 -> 90342489.97 | E143: 20384979.83 | G143: 239679.85 | H143: =H121 -> 3688514.546 | I143: 1106939.21 | J143: 423965.13
B145: TOTAL PRESENT REVENUE | C145: =IF(ROUND(SUM(D145:J145),3)<>ROUND(C142+C143,3),#VALUE!,SUM(D145:J145)) -> 122359135.9 | D145: =D142+D143 -> 95552177.95 | E145: 21347859.18 | G145: 239679.85 | H145: =H142+H143 -> 3688514.546 | I145: 1106939.21 | J145: 423965.13
J150: TRANSPORT
D151: GEN SERVICE | E151: LRG GEN SVC | G151: INTERRUPTIBLE | H151: TRANSPORT | I151: TRANSPORT | J151: SCH 148 - WSU
C152: TOTAL | D152: SCHEDULE 101 | E152: SCHEDULE 111 | F152: =F5 -> OPEN | G152: SCHEDULE 131 | H152: SCHEDULE 146 | I152: SCHEDULE 148 | J152: ANN. MINIMUM
B153: PROPOSED REVENUE
B154: =UPPER(CHOOSE(Base1_Billing2,$O$9,$O$10))&" REVENUE" -> BASE TARIFF REVENUE
B155: BASIC CHARGE | C155: =SUM(D155:J155) -> 20027672 | D155: =D48*D74 -> 19382888 | E155: =E48*E74 -> 0 | F155: =F48*F74 -> 0 | G155: 0 | H155: 319200 | I155: 9600 | J155: 315984
B156: MONTHLY/ANNUAL MINIMUM | C156: 5007885.485 | D156: =D49*D75 -> 0 | E156: =E49*E75 -> 4984108.02 | F156: 0 | G156: 0 | H156: ='Big Schedules'!X47 -> 23777.4645 | I156: 0 | J156: 0
B157: BLOCK 1 | C157: 42635632.25 | D157: =ROUND(D31*D77/100,2) -> 40923428.6 | E157: =ROUND(E31*E77/100,2) -> 0 | G157: 72760.8 | H157: 985816.59 | I157: 545645.13 | J157: 107981.13
B158: BLOCK 2 | C158: 38700638.51 | D158: =ROUND(D32*D78/100,2) -> 31140047.08 | E158: 6381453.46 | G158: 74582.23 | H158: 843535.53 | I158: 261020.21 | J158: 0
B159: BLOCK 3 | C159: 9576621.78 | D159: 0 | E159: 8043527.44 | F159: 0 | G159: 73907.53 | H159: 1403285.04 | I159: 55901.77 | J159: 0
B160: BLOCK 4 | C160: 1291017.06 | D160: 0 | E160: 1021022.86 | F160: 0 | G160: 21504.58 | H160: 160569.79 | I160: 87919.83 | J160: 0
B161: BLOCK 5 | C161: 355103.23 | D161: 0 | E161: 208250.96 | F161: 0 | G161: 0 | H161: 0 | I161: 146852.27 | J161: 0
B162: ANNUAL MINIMUM | C162: 0 | J162: 0
B164: SUBTOTAL | C164: =IF(ROUND(SUM(D164:J164),3)<>ROUND(SUM(C155:C162),3),#VALUE!,SUM(D164:J164)) -> 117594570.3 | D164: =SUM(D155:D163) -> 91446363.68 | E164: 20638362.74 | F164: 0 | G164: 242755.14 | H164: =SUM(H155:H163) -> 3736184.414 | I164: 1106939.21 | J164: 423965.13
B165: NET SHIFTING ADJUSTMENT
B167: SUBTOTAL | C167: =SUM(D167:J167) -> 117594570.3 | D167: =D164+D165 -> 91446363.68 | E167: 20638362.74 | F167: 0 | G167: 242755.14 | H167: =H164+H165 -> 3736184.414 | I167: 1106939.21 | J167: 423965.13
B168: ADJUST TO ACTUAL | C168: =SUM(D168:J168) -> 0 | D168: =ROUND(D41*D83/100,2) -> 0 | E168: =ROUND(E41*E83/100,2) -> 0 | G168: 0 | H168: 0 | I168: 0 | J168: 0
B170: ="TOTAL "&UPPER(CHOOSE(Base1_Billing2,$O$9,$O$10))&" REVENUE" -> TOTAL BASE TARIFF REVENUE | C170: =IF(ROUND(SUM(D170:J170),3)<>ROUND(C167+C168,3),#VALUE!,SUM(D170:J170)) -> 117594570.3 | D170: =D167+D168 -> 91446363.68 | E170: 20638362.74 | F170: 0 | G170: 242755.14 | H170: =H167+H168 -> 3736184.414 | I170: 1106939.21 | J170: 423965.13
B172: ADJUSTMENT REVENUE
B173: UNBILLED REVENUE ADJUSTMENT
B174: BASE LOAD THERMS | C174: =SUM(D174:J174) -> 573856 | D174: =D126 -> 273909 | E174: =E126+F126 -> 299947 | F174: 0
B175: BASE LOAD RATE | D175: =D83 -> 56.27610547 | E175: =E83 -> 28.23955981 | H175: =H83 -> 10.81526352
B176: BASE LOAD REVENUE | C176: =SUM(D176:J176) -> 238849.03 | D176: =ROUND(D174*D175/100,2) -> 154145.32 | E176: =ROUND(E174*E175/100,2) -> 84703.71 | F176: =ROUND(F174*F175/100,2) -> 0
B178: WEATHER-SENSITIVE THERMS | C178: =SUM(D178:J178) -> 0 | D178: =D130 -> 0 | E178: =E130 -> 0 | F178: =F130 -> 0
B179: WEATHER-SENSITIVE RATE | D179: =D77 -> 50.669 | E179: =I244 -> 29.51292191 | F179: =F83 -> 0
B180: WEATHER-SENSITIVE REVENUE | C180: =SUM(D180:J180) -> 0 | D180: =ROUND(D178*D179/100,2) -> 0 | E180: =ROUND(E178*E179/100,2) -> 0 | F180: =ROUND(F178*F179/100,2) -> 0
B182: TOTAL UNBILLED THERM ADJ | C182: =C174+C178 -> 573856 | D182: =D174+D178 -> 273909 | E182: =E174+E178 -> 299947 | F182: =F174+F178 -> 0
B183: TOTAL UNBILLED REVENUE ADJ | C183: =C176+C180 -> 238849.03 | D183: =D176+D180 -> 154145.32 | E183: =E176+E180 -> 84703.71
B184: WEATHER NORMALIZATION ADJ
B185: WEATHER-SENSITIVE THERMS | C185: =SUM(D185:J185) -> 12063437 | D185: =D137 -> 9049427 | E185: =E137+F137 -> 3014010 | F185: 0
B186: WEATHER-SENSITIVE RATE | D186: =I217 -> 56.76146889 | E186: =I244 -> 29.51292191
B187: WEATHER-SENSITIVE REVENUE | C187: =SUM(D187:J187) -> 6026110.11 | D187: =ROUND(D185*D186/100,2) -> 5136587.69 | E187: =ROUND(E185*E186/100,2) -> 889522.42 | F187: =ROUND(F185*F186/100,2) -> 0
B188: OTHER ADJUSTMENTS
B190: TOTAL ADJUSTMENT REVENUE | C190: =SUM(D190:J190) -> 6264959.14 | D190: =D187+D183 -> 5290733.01 | E190: =E187+E183 -> 974226.13 | F190: 0 | G190: 0 | H190: =H187+H183 -> 0 | I190: 0 | J190: 0
B191: =B170 -> TOTAL BASE TARIFF REVENUE | C191: =SUM(D191:J191) -> 117594570.3 | D191: =D170 -> 91446363.68 | E191: 20638362.74 | F191: 0 | G191: 242755.14 | H191: =H170 -> 3736184.414 | I191: 1106939.21 | J191: 423965.13
B192: TOTAL PROPOSED REVENUE | C192: =SUM(D192:J192) -> 123859529.5 | D192: =D190+D191 -> 96737096.69 | E192: =E190+E191 -> 21612588.87 | F192: 0 | G192: 242755.14 | H192: =H190+H191 -> 3736184.414 | I192: 1106939.21 | J192: 423965.13
B193: TOTAL PRESENT REVENUE | C193: =SUM(D193:J193) -> 122359135.9 | D193: =D145 -> 95552177.95 | E193: =E145 -> 21347859.18 | G193: 239679.85 | H193: =H145 -> 3688514.546 | I193: 1106939.21 | J193: 423965.13
B195: TOTAL INCREASED REVENUE | C195: =SUM(D195:J195) -> 1500393.589 | D195: =D192-D193 -> 1184918.74 | E195: =E192-E193-F193 -> 264729.69 | G195: =G192-G193 -> 3075.29 | H195: =H192-H193 -> 47669.8685 | I195: 0 | J195: 0
B196: PERCENT REVENUE INCREASE | C196: =C195/C193 -> 0.01226221138 | D196: =D195/D193 -> 0.01240075073 | E196: 0.01240076055 | G196: 0.01283082412 | H196: 0.01292386621 | I196: 0 | J196: 0
D200: TOTAL | E200: TOTAL | F200: BASE LOAD | G200: BASE LOAD | H200: WTHR-SENS. | I200: WTHR-SENS.
C201: RATES | D201: THERMS | E201: REVENUE | F201: THERMS(1) | G201: REVENUE | H201: THERMS | I201: REVENUE
B202: PRESENT BASELOAD AND WEATHER-SENSITIVE RATE
B203: SCHEDULE 101
B204: 0-70 THERMS | C204: =D59 -> 49.893 | D204: =D8 -> 80766205.38 | E204: =C204*D204/100 -> 40296682.85 | F204: =MIN(D204,F207) -> 10201520 | G204: =F204*C204/100 -> 5089844.374 | H204: =D204-F204 -> 70564685.38 | I204: =H204*C204/100 -> 35206838.48 | K204: =H204/H207 -> 0.5987573177
B205: OVER 70 THERMS | C205: =D60 -> 64.844 | D205: =D9 -> 47287211.04 | E205: =C205*D205/100 -> 30662919.12 | F205: =MIN(F207-F204,D205) -> 0 | G205: =F205*C205/100 -> 0 | H205: =D205-F205 -> 47287211.04 | I205: =H205*C205/100 -> 30662919.12 | K205: =H205/H207 -> 0.4012426823
B207: TOTAL | D207: =D204+D205 -> 128053416.4 | E207: =E204+E205 -> 70959601.98 | F207: =5*D25 -> 10201520 | G207: =G204+G205 -> 5089844.374 | H207: =H204+H205 -> 117851896.4 | I207: =I204+I205 -> 65869757.6
B208: AVERAGE RATE | E208: =E207/D207*100 -> 55.41406388 | G208: =G207/F207*100 -> 49.893 | I208: =I207/H207*100 -> 55.89197934
B211: PROPOSED BASELOAD AND WEATHER-SENSITIVE RATE
B212: SCHEDULE 101
B213: 0-70 THERMS | C213: =D77 -> 50.669 | D213: =D8 -> 80766205.38 | E213: =C213*D213/100 -> 40923428.6 | F213: =MIN(D213,F216) -> 10201520 | G213: =F213*C213/100 -> 5169008.169 | H213: =D213-F213 -> 70564685.38 | I213: =H213*C213/100 -> 35754420.44
B214: OVER 70 THERMS | C214: =D78 -> 65.853 | D214: =D9 -> 47287211.04 | E214: =C214*D214/100 -> 31140047.08 | F214: =MIN(F216-F213,D214) -> 0 | G214: =F214*C214/100 -> 0 | H214: =D214-F214 -> 47287211.04 | I214: =H214*C214/100 -> 31140047.08
B216: TOTAL | D216: =D213+D214 -> 128053416.4 | E216: =E213+E214 -> 72063475.69 | F216: =F207 -> 10201520 | G216: =G213+G214 -> 5169008.169 | H216: =H213+H214 -> 117851896.4 | I216: =I212+I213+I214 -> 66894467.52
B217: AVERAGE RATE | E217: =E216/D216*100 -> 56.27610548 | G217: =G216/F216*100 -> 50.669 | I217: =I216/H216*100 -> 56.76146889
B220: (1) Base load per bill for Schedule 101 is shown on workpaper JDM-G-18 multiplied by total billings from JDM-G-1, or
B221: ="5 X "&TEXT(D25,"#,##0")&" = "&TEXT(F207,"#,##0") -> 5 X 2,040,304 = 10,201,520
B223: PRESENT BASELOAD AND WEATHER-SENSITIVE RATE
B224: SCHEDULE 111
B225: 0-200 THERMS | C225: =E59 -> 0 | D225: =E8 -> 6521234.705 | E225: =C225*D225/100 -> 0 | F225: =MIN(D225,F231) -> 6521234.705 | G225: =F225*C225/100 -> 0 | H225: =D225-F225 -> 0 | I225: =H225*C225/100 -> 0
B226: 201-1,000 THERMS | C226: =E60 -> 38.312 | D226: =E9 -> 16462319.31 | E226: =C226*D226/100 -> 6307043.774 | F226: =MIN(F231-F225,D226) -> 13173969.29 | G226: =F226*C226/100 -> 5047211.116 | H226: =D226-F226 -> 3288350.014 | I226: =H226*C226/100 -> 1259832.657
B227: 1001-10,000 THERMS | C227: =E61 -> 29.203 | D227: =E10 -> 27222822.76 | E227: =C227*D227/100 -> 7949880.931 | F227: =MIN(F231-F225-F226,D227) -> 0 | G227: =F227*C227/100 -> 0 | H227: =D227-F227 -> 27222822.76 | I227: =H227*C227/100 -> 7949880.931
B228: 10,001-25,000 THERMS | C228: 24.917 | D228: 4049910.189 | E228: 1009116.122 | F228: =MIN(F231-F225-F226-F227,D228) -> 0 | G228: =F228*C228/100 -> 0 | H228: =D228-F228 -> 4049910.189 | I228: =H228*C228/100 -> 1009116.122
B229: OVER 25,000 THERMS | C229: 17.48 | D229: 1177490.428 | E229: 205825.3268 | F229: =MIN(F231-F225-F226-F227-F228,D229) -> 0 | G229: =F229*C229/100 -> 0 | H229: =D229-F229 -> 1177490.428 | I229: =H229*C229/100 -> 205825.3268
B231: TOTAL | D231: =D225+D226+D229+D227+D228 -> 55433777.39 | E231: =E225+E226+E229+E227+E228 -> 15471866.15 | F231: =516*E26 -> 19695204 | G231: =G225+G226+G229 -> 5047211.116 | H231: =H225+H226+H229+H227+H228 -> 35738573.39 | I231: =I225+I226+I229+I227+I228 -> 10424655.04
B232: AVERAGE RATE | E232: =E231/D231*100 -> 27.91053917 | G232: =G231/F231*100 -> 25.62659984 | I232: =I231/H231*100 -> 29.16919745
B235: PROPOSED BASELOAD AND WEATHER-SENSITIVE RATE
B236: SCHEDULE 111
B237: 0-200 THERMS | C237: =E77 -> 0 | D237: =E31 -> 6521234.705 | E237: =C237*D237/100 -> 0 | F237: =MIN(D237,F243) -> 6521234.705 | G237: =F237*C237/100 -> 0 | H237: =D237-F237 -> 0 | I237: =H237*C237/100 -> 0
B238: 201-1,000 THERMS | C238: =E78 -> 38.764 | D238: =E32 -> 16462319.31 | E238: =C238*D238/100 -> 6381453.457 | F238: =MIN(F243-F237,D238) -> 13173969.29 | G238: =F238*C238/100 -> 5106757.457 | H238: =D238-F238 -> 3288350.014 | I238: =H238*C238/100 -> 1274695.999
B239: 1001-10,000 THERMS | C239: =E79 -> 29.547 | D239: =E33 -> 27222822.76 | E239: =C239*D239/100 -> 8043527.441 | F239: =MIN(F243-F237-F238,D239) -> 0 | G239: =F239*C239/100 -> 0 | H239: =D239-F239 -> 27222822.76 | I239: =H239*C239/100 -> 8043527.441
B240: 10,001-25,000 THERMS | C240: =E80 -> 25.211 | D240: =E34 -> 4049910.189 | E240: =C240*D240/100 -> 1021022.858 | F240: =MIN(F243-F237-F238-F239,D240) -> 0 | G240: =F240*C240/100 -> 0 | H240: =D240-F240 -> 4049910.189 | I240: =H240*C240/100 -> 1021022.858
B241: OVER 25,000 THERMS | C241: =E81 -> 17.686 | D241: =E35 -> 1177490.428 | E241: 208250.957 | F241: =MIN(F243-F237-F238-F239-F240,D241) -> 0 | G241: =F241*C241/100 -> 0 | H241: =D241-F241 -> 1177490.428 | I241: =H241*C241/100 -> 208250.957
B243: TOTAL | D243: =D237+D238+D239+D240+D241 -> 55433777.39 | E243: =E237+E238+E239+E240+E241 -> 15654254.71 | F243: =F231 -> 19695204 | G243: =G237+G238+G239 -> 5106757.457 | H243: =H237+H238+H239+H240+H241 -> 35738573.39 | I243: =I236+I237+I238+I239+I240+I241 -> 10547497.26
B244: AVERAGE RATE | E244: =E243/D243*100 -> 28.23955979 | G244: =G243/F243*100 -> 25.92893913 | I244: =I243/H243*100 -> 29.51292191
B247: (1) Base load per bill for Schedule 111 is shown on workpaper JDM-G-18 multiplied by total billings from JDM-G-1, or
B248: ="516 X "&TEXT(E26,"#,##0")&" = "&TEXT(F231,"#,##0") -> 516 X 38,169 = 19,695,204
D250: TOTAL | E250: TOTAL | F250: BASE LOAD | G250: BASE LOAD | H250: WTHR-SENS. | I250: WTHR-SENS.
C251: RATES | D251: THERMS | E251: REVENUE | F251: THERMS(1) | G251: REVENUE | H251: THERMS | I251: REVENUE
B253: PRESENT BASELOAD AND WEATHER-SENSITIVE RATE
B254: SCHEDULE 121 (DISCONTINUED)
B255: 0-500 THERMS | C255: =F59 -> 0 | D255: =F8 -> 0 | E255: =C255*D255/100 -> 0 | F255: =MIN(D255,F261) -> 0 | G255: =F255*C255/100 -> 0 | H255: =D255-F255 -> 0 | I255: =H255*C255/100 -> 0
B256: 501-1,000 THERMS | C256: =F60 -> 0 | D256: =F9 -> 0 | E256: =C256*D256/100 -> 0 | F256: =MIN(F261-F255,D256) -> 0 | G256: =F256*C256/100 -> 0 | H256: =D256-F256 -> 0 | I256: =H256*C256/100 -> 0
B257: 1001-10,000 THERMS | C257: =F61 -> 0 | D257: =F10 -> 0 | E257: =C257*D257/100 -> 0 | F257: =MIN(F261-F255-F256,D257) -> 0 | G257: =F257*C257/100 -> 0 | H257: =D257-F257 -> 0 | I257: =H257*C257/100 -> 0
B258: 10,001-25,000 THERMS | C258: =F62 -> 0 | D258: =F11 -> 0 | E258: =C258*D258/100 -> 0 | F258: =MIN(F261-F255-F256-F257,D258) -> 0 | G258: =F258*C258/100 -> 0 | H258: =D258-F258 -> 0 | I258: =H258*C258/100 -> 0
B259: OVER 25,000 THERMS | C259: =F63 -> 0 | D259: =F12 -> 0 | E259: 0 | F259: =MIN(F261-F255-F256-F257-F258,D259) -> 0 | G259: =F259*C259/100 -> 0 | H259: =D259-F259 -> 0 | I259: =H259*C259/100 -> 0
B261: TOTAL | D261: =D255+D256+D257+D258+D259 -> 0 | E261: =E255+E256+E257+E258+E259 -> 0 | F261: =0*F26 -> 0 | G261: =G255+G256+G257 -> 0 | H261: =H255+H256+H257+H258+H259 -> 0 | I261: =I255+I256+I257+I258+I259 -> 0
B262: AVERAGE RATE | E262: =E261/D261*100 ->  | G262: =G261/F261*100 ->  | I262: =I261/H261*100 -> 
B265: PROPOSED BASELOAD AND WEATHER-SENSITIVE RATE
B266: SCHEDULE 121 (DISCONTINUED)
B267: 0-500 THERMS | C267: =F77 -> 0 | D267: =F31 -> 0 | E267: =C267*D267/100 -> 0 | F267: =MIN(D267,F273) -> 0 | G267: =F267*C267/100 -> 0 | H267: =D267-F267 -> 0 | I267: =H267*C267/100 -> 0
B268: 501-1,000 THERMS | C268: =F78 -> 0 | D268: =F32 -> 0 | E268: =C268*D268/100 -> 0 | F268: =MIN(F273-F267,D268) -> 0 | G268: =F268*C268/100 -> 0 | H268: =D268-F268 -> 0 | I268: =H268*C268/100 -> 0
B269: 1001-10,000 THERMS | C269: =F79 -> 0 | D269: =F33 -> 0 | E269: 0 | F269: =MIN(F273-F267-F268,D269) -> 0 | G269: =F269*C269/100 -> 0 | H269: =D269-F269 -> 0 | I269: =H269*C269/100 -> 0
B270: 10,001-25,000 THERMS | C270: =F80 -> 0 | D270: =F34 -> 0 | E270: 0 | F270: =MIN(F273-F267-F268-F269,D270) -> 0 | G270: =F270*C270/100 -> 0 | H270: =D270-F270 -> 0 | I270: =H270*C270/100 -> 0
B271: OVER 25,000 THERMS | C271: =F81 -> 0 | D271: =F35 -> 0 | E271: 0 | F271: =MIN(F273-F267-F268-F269-F270,D271) -> 0 | G271: =F271*C271/100 -> 0 | H271: =D271-F271 -> 0 | I271: =H271*C271/100 -> 0
B273: TOTAL | D273: =D267+D268+D269+D270+D271 -> 0 | E273: =E267+E268+E269+E270+E271 -> 0 | F273: =F261 -> 0 | G273: =G267+G268+G269+G270+G271 -> 0 | H273: =H267+H268+H269+H270+H271 -> 0 | I273: =I266+I267+I268+I269+I270+I271 -> 0
B274: AVERAGE RATE | E274: =E273/D273*100 ->  | G274: =G273/F273*100 ->  | I274: =I273/H273*100 -> 
B276: (1) Base load per bill for Schedule 121 is shown on workpaper JDM-G-18 multiplied by total billings from JDM-G-1, or
B277: ="0 X "&TEXT(F26,"#,##0")&" = "&TEXT(F261,"#,##0") -> 0 X 0 = 0
D283: =D195/D48 -> 0.5807559756 | E283: =E195/E49 -> 6.935725065 | G283: =G195/G48 -> 128.1370833 | H283: =H195/H48 -> 104.5391853

Sheet Rate Design
A1: PRESENT RATES | D1: 1 | E1: 2 | F1: 3 | G1: 4 | H1: 5 | L1: Tiers - used for bill comparisons
C2: TOTAL | D2: SCH. 101 | E2: SCH. 111,112,116 | F2: OPEN | G2: SCH. 132 | H2: SCH. 146 | J2: Range Name | L2: SCH. 101 | M2: SCH. 111,112 | N2: SCH. 121,122 | O2: SCH. 131,132 | P2: SCH. 146
B3: Base Tariff Rates
A4: 1 | B4: BASIC CHARGE | D4: 9.5 | E4: 0 | F4: 0 | G4: 0 | H4: 700
A5: 2 | B5: MONTHLY MINIMUM | D5: 0 | E5: 128.72 | F5: 0 | G5: 0 | H5: 0
A6: 3 | B6: BLOCK 1 PER THERM | D6: 49.893 | E6: 0 | F6: 0 | G6: 29.933 | H6: 12.256 | L6: 9999999 | M6: 200 | N6: 500 | O6: 10000 | P6: 20000
A7: 4 | B7: BLOCK 2 PER THERM | D7: 64.844 | E7: 38.312 | F7: 0 | G7: 24.029 | H7: 10.904 | I7: =H7/H6-1 -> -0.1103133159 | L7: 9999999 | M7: 1000 | N7: 1000 | O7: 25000 | P7: 50000
A8: 5 | B8: BLOCK 3 PER THERM | D8: 0 | E8: 29.203 | F8: 0 | G8: 22.579 | H8: 9.832 | I8: =H8/H7-1 -> -0.09831254585 | J8: Rates_Base_Present | L8: 9999999 | M8: 9999999 | N8: 10000 | O8: 50000 | P8: 300000
A9: 6 | B9: BLOCK 4 PER THERM | D9: 0 | E9: 24.917 | F9: 0 | G9: 20.174 | H9: 9.093 | I9: =H9/H8-1 -> -0.07516273393 | L9: 9999999 | M9: 9999999 | N9: 25000 | O9: 9999999 | P9: 500000
A10: 7 | B10: BLOCK 5 PER THERM | D10: 0 | E10: 17.48 | F10: 0 | G10: 0 | H10: 6.834 | I10: =H10/H9-1 -> -0.2484328604 | L10: 9999999 | M10: 9999999 | N10: 9999999 | O10: 9999999 | P10: 9999999
L11: 1st block rate | M11: =(M6/100*E6+E5)/M6*100 -> 64.36 | N11: =(N6/100*F6+F5)/N6*100 -> 0
B12: Billing Rates | G12: =IF(G13<>'Pres & Prop Rev'!G$5,#VALUE!,"") ->  | H12: =IF(H13<>'Pres & Prop Rev'!H$5,#VALUE!,"") ->  | L12: check | M12: =M6*M11/100-(M6*E6/100+E5) -> 0 | N12: =N6*N11/100-(N6*F6/100+F5) -> 0
D13: SCHEDULE 101 | E13: SCH. 111&112 | F13: OPEN | G13: SCH. 131&132 | H13: SCHEDULE 146
A14: 1 | B14: BASIC CHARGE | D14: =D4 -> 9.5 | E14: 0 | F14: 0 | G14: 0 | H14: 700
A15: 2 | B15: MONTHLY MINIMUM | D15: 0 | E15: =E5 -> 128.72 | F15: =F5 -> 0 | G15: 0 | H15: 0
A16: 3 | B16: BLOCK 1 PER THERM | D16: =D6+33.156+2.099+0.925-5.308+3.028+2.713-3.587 -> 82.919 | E16: =E6+32.485+3.036+0.813-6.221+1.626+2.275-1.874 -> 32.14 | F16: =F6 -> 0 | G16: =G6+29.044-1.302+1.132+1.997-1.267 -> 59.537 | H16: =H6+0.056-1.054+0.113-0.606 -> 10.765 | L16: =L6 -> 9999999 | M16: 200 | N16: 500 | O16: 10000 | P16: 20000
A17: 4 | B17: BLOCK 2 PER THERM | D17: =D7+33.156+2.099+0.925-6.797+3.028+2.713-3.587 -> 96.381 | E17: =E7+32.485+3.036+0.813-0.171+1.626+2.275-1.874 -> 76.502 | F17: =F7 -> 0 | G17: =G7+29.044-1.094+1.132+1.997-1.267 -> 53.841 | H17: =H7+0.056-0.938+0.113-0.606 -> 9.529 | L17: 9999999 | M17: 1000 | N17: 1000 | O17: 25000 | P17: 50000
A18: 5 | B18: BLOCK 3 PER THERM | D18: =D8 -> 0 | E18: =E8+32.485+3.036+0.813-0.197+1.626+2.275-1.874 -> 67.367 | F18: =F8 -> 0 | G18: =G8+29.044-1.043+1.132+1.997-1.267 -> 52.442 | H18: =H8+0.056-0.845+0.113-0.606 -> 8.55 | J18: Rates_Billing_Present | L18: 9999999 | M18: 9999999 | N18: 10000 | O18: 50000 | P18: 300000
A19: 6 | B19: BLOCK 4 PER THERM | D19: =D9 -> 0 | E19: =E9+32.485+3.036+0.813-0.209+1.626+2.275-1.874 -> 63.069 | F19: 0 | G19: =G9+29.044-0.958+1.132+1.997-1.267 -> 50.122 | H19: =H9+0.056-0.782+0.113-0.606 -> 7.874 | L19: =L9 -> 9999999 | M19: 9999999 | N19: 25000 | O19: 9999999 | P19: 500000
A20: 7 | B20: BLOCK 5 PER THERM | D20: =D10 -> 0 | E20: =E10+32.485+3.036+0.813-0.231+1.626+2.275-1.874 -> 55.61 | F20: 0 | H20: =H10+0.056-0.588+0.113-0.606 -> 5.809 | L20: 9999999 | M20: 9999999 | N20: 9999999 | O20: 9999999 | P20: 9999999
L21: 1st block rate | M21: =(M16/100*E16+E15)/M16*100 -> 96.5 | N21: =(N16/100*F16+F15)/N16*100 -> 0
A22: PROPOSED RATES | L22: check | M22: =M16*M21/100-(M16*E16/100+E15) -> 0 | N22: =N16*N21/100-(N16*F16/100+F15) -> 0
B24: Base Tariff Rates | G24: =IF(G25<>'Pres & Prop Rev'!G$5,#VALUE!,"") ->  | H24: =IF(H25<>'Pres & Prop Rev'!H$5,#VALUE!,"") -> 
D25: SCHEDULE 101 | E25: SCH. 111&112 | F25: OPEN | G25: SCH. 131&132 | H25: SCHEDULE 146
A26: 1 | B26: BASIC CHARGE | D26: =IF(D4>0,ROUND(D63,2),0) -> 9.5 | E26: =IF(E4>0,ROUND(E63,2),0) -> 0 | F26: =IF(F4>0,ROUND(F63,2),0) -> 0 | G26: =IF(G4>0,ROUND(G63,2),0) -> 0 | H26: =IF(H4>0,ROUND(H63,2),0) -> 700
A27: 2 | B27: MONTHLY MINIMUM | D27: =IF(D5>0,ROUND(D63,2),0) -> 0 | E27: =IF(E5>0,ROUND(E63,2),0) -> 130.58 | F27: =IF(F5>0,ROUND(F63,2),0) -> 0 | G27: =IF(G5>0,ROUND(G63,2),0) -> 0 | H27: =IF(H5>0,ROUND(H63,2),0) -> 0
A28: 2 | B28: BLOCK 1 PER THERM | D28: =ROUND(D82,3) -> 50.669 | E28: =ROUND(E82,3) -> 0 | F28: =ROUND(F82,3) -> 0 | G28: 30.317 | H28: 12.43 | L28: 9999999 | M28: 200 | N28: 500 | O28: 10000 | P28: 20000
A29: 3 | B29: BLOCK 2 PER THERM | D29: =ROUND(D83,3) -> 65.853 | E29: 38.764 | F29: 0 | G29: 24.337 | H29: 11.058 | I29: =H29/H28-1 -> -0.1103781175 | L29: 9999999 | M29: 1000 | N29: 1000 | O29: 25000 | P29: 50000
A30: 4 | B30: BLOCK 3 PER THERM | D30: 0 | E30: =ROUND(E84,3) -> 29.547 | F30: 0 | G30: 22.869 | H30: 9.971 | I30: =H30/H29-1 -> -0.09829987339 | J30: Rates_Base_Proposed | L30: 9999999 | M30: 9999999 | N30: 10000 | O30: 50000 | P30: 300000
A31: 5 | B31: BLOCK 4 PER THERM | D31: =ROUND(D85,3) -> 0 | E31: =ROUND(E85,3) -> 25.211 | F31: 0 | G31: 20.433 | H31: 9.221 | I31: -0.07521813258 | L31: 9999999 | M31: 9999999 | N31: 25000 | O31: 9999999 | P31: 500000
A32: 6 | B32: BLOCK 5 PER THERM | D32: 0 | E32: 17.686 | F32: 0 | G32: 0 | H32: 6.93 | I32: =H32/H31-1 -> -0.2484546145 | L32: 9999999 | M32: 9999999 | N32: 9999999 | O32: 9999999 | P32: 9999999
L33: 1st block rate | M33: =(M28/100*E28+E27)/M28*100 -> 65.29 | N33: =(N28/100*F28+F27)/N28*100 -> 0
B34: Billing Rates | G34: =IF(G35<>'Pres & Prop Rev'!G$5,#VALUE!,"") ->  | H34: =IF(H35<>'Pres & Prop Rev'!H$5,#VALUE!,"") ->  | L34: check | M34: =M28*M33/100-(M28*E28/100+E27) -> 0 | N34: =N28*N33/100-(N28*F28/100+F27) -> 0
D35: SCHEDULE 101 | E35: SCH. 111&112 | F35: OPEN | G35: SCH. 131&132 | H35: SCHEDULE 146 | L35: Basic Charge Calc | M35: =E5+(D26-D4)+(((D28/100)-(D6/100))*70)+(((D29/100)-(D7/100))*130) -> 130.5749 | N35: =F5+(D26-D4)+(70*((D28/100)-(D6/100)))+(430*((D29/100)-(D7/100))) -> 4.8819 | S35: 100
A36: 1 | B36: BASIC CHARGE | D36: =D26 -> 9.5 | E36: 0 | F36: 0 | G36: 0 | H36: 700 | S36: LIRAP increase
A37: 2 | B37: MONTHLY MINIMUM | D37: 0 | E37: 130.58 | F37: =F27 -> 0 | G37: 0 | H37: 0 | S37: 101 | T37: 111 | U37: 121 | V37: 131
A38: 2 | B38: BLOCK 1 PER THERM | D38: =D28+33.156+2.099+0.925-5.308+3.028+2.713-3.587 -> 83.695 | E38: =E28+32.485+3.036+0.813-6.221+1.626+2.275-1.874 -> 32.14 | F38: =F28 -> 0 | G38: =G28+29.044-1.302+1.132+1.997-1.267 -> 59.921 | H38: =H28+0.056-1.054+0.113-0.606 -> 10.939 | L38: =L28 -> 9999999 | M38: 200 | N38: 500 | O38: 10000 | P38: 20000 | S38: 0 | T38: 0 | U38: 0 | V38: 0
A39: 3 | B39: BLOCK 2 PER THERM | D39: =D29+33.156+2.099+0.925-6.797+3.028+2.713-3.587 -> 97.39 | E39: =E29+32.485+3.036+0.813-6.221+1.626+2.275-1.874 -> 70.904 | F39: =F29 -> 0 | G39: =G29+29.044-1.302+1.132+1.997-1.267 -> 53.941 | H39: =H29+0.056-1.054+0.113-0.606 -> 9.567 | L39: 9999999 | M39: 1000 | N39: 1000 | O39: 25000 | P39: 50000 | S39: =S$38 -> 0 | T39: =T$38 -> 0 | U39: =U$38 -> 0 | V39: =V$38 -> 0
A40: 4 | B40: BLOCK 3 PER THERM | D40: =D30 -> 0 | E40: =E30+32.485+3.036+0.813-6.221+1.626+2.275-1.874 -> 61.687 | F40: =F30 -> 0 | G40: =G30+29.044-1.302+1.132+1.997-1.267 -> 52.473 | H40: =H30+0.056-1.054+0.113-0.606 -> 8.48 | J40: Rates_Billing_Proposed | L40: 9999999 | M40: 9999999 | N40: 10000 | O40: 50000 | P40: 300000 | S40: =S$38 -> 0 | T40: 0 | U40: 0 | V40: 0
A41: 5 | B41: BLOCK 4 PER THERM | D41: =D31 -> 0 | E41: =E31+32.485+3.036+0.813-6.221+1.626+2.275-1.874 -> 57.351 | F41: =F31 -> 0 | G41: =G31+29.044-1.302+1.132+1.997-1.267 -> 50.037 | H41: =H31+0.056-1.054+0.113-0.606 -> 7.73 | L41: 9999999 | M41: 9999999 | N41: 25000 | O41: 9999999 | P41: 500000 | S41: 0 | T41: 0 | U41: 0 | V41: 0
A42: 6 | B42: BLOCK 5 PER THERM | D42: =D32 -> 0 | E42: =E32+32.485+3.036+0.813-0.231+1.626+2.275-1.874 -> 55.816 | F42: =F32 -> 0 | H42: =H32+0.056-0.588+0.113-0.606 -> 5.905 | L42: 9999999 | M42: 9999999 | N42: 9999999 | O42: 9999999 | P42: 9999999 | S42: 0 | T42: 0 | U42: 0 | V42: 0
L43: 1st block rate | M43: =(M38/100*E38+E37)/M38*100 -> 97.43 | N43: =(N38/100*F38+F37)/N38*100 -> 0
L44: check | M44: =M38*M43/100-(M38*E38/100+E37) -> 0 | N44: =N38*N43/100-(N38*F38/100+F37) -> 0
B47: Proposed Rate Workup - from Pres & Prop Rev tab
B49: THERMS
B50: BLOCK 1 | C50: =SUM(D50:H50) -> 95458386.09 | D50: ='Pres & Prop Rev'!D31 -> 80766205.38 | E50: ='Pres & Prop Rev'!E31 -> 6521234.705 | F50: ='Pres & Prop Rev'!F31 -> 0 | G50: ='Pres & Prop Rev'!G31 -> 240000 | H50: ='Pres & Prop Rev'!H31 -> 7930946
B51: BLOCK 2 | C51: 71684269.47 | D51: ='Pres & Prop Rev'!D32 -> 47287211.04 | E51: ='Pres & Prop Rev'!E32 -> 16462319.31 | F51: ='Pres & Prop Rev'!F32 -> 0 | G51: ='Pres & Prop Rev'!G32 -> 306456.124 | H51: ='Pres & Prop Rev'!H32 -> 7628283
B52: BLOCK 3 | C52: 41619664.55 | D52: ='Pres & Prop Rev'!D33 -> 0 | E52: ='Pres & Prop Rev'!E33 -> 27222822.76 | F52: ='Pres & Prop Rev'!F33 -> 0 | G52: ='Pres & Prop Rev'!G33 -> 323177.792 | H52: ='Pres & Prop Rev'!H33 -> 14073664
B53: BLOCK 4 | C53: 5896503.569 | D53: ='Pres & Prop Rev'!D34 -> 0 | E53: ='Pres & Prop Rev'!E34 -> 4049910.189 | F53: ='Pres & Prop Rev'!F34 -> 0 | G53: ='Pres & Prop Rev'!G34 -> 105244.38 | H53: ='Pres & Prop Rev'!H34 -> 1741349
B54: BLOCK 5 | C54: 1177490.428 | D54: ='Pres & Prop Rev'!D35 -> 0 | E54: ='Pres & Prop Rev'!E35 -> 1177490.428 | F54: ='Pres & Prop Rev'!F35 -> 0 | G54: ='Pres & Prop Rev'!G35 -> 0 | H54: ='Pres & Prop Rev'!H35 -> 0
B55: ADJ. TO ACTUAL | C55: 0 | D55: ='Pres & Prop Rev'!D41 -> 0 | E55: ='Pres & Prop Rev'!E41 -> 0 | F55: ='Pres & Prop Rev'!F41 -> 0 | G55: ='Pres & Prop Rev'!G41 -> 0 | H55: ='Pres & Prop Rev'!H41 -> 0
B56: WEATHER & U/B THERMS | C56: 12637293 | D56: ='Pres & Prop Rev'!D44 -> 9323336 | E56: ='Pres & Prop Rev'!E44 -> 3313957 | F56: ='Pres & Prop Rev'!F44 -> 0 | G56: ='Pres & Prop Rev'!G44 -> 0 | H56: ='Pres & Prop Rev'!H44 -> 0 | I56: Proposed rates:
B57: TOTAL PROFORMA THERMS | C57: =IF(ROUND(SUM(D57:H57),3)<>ROUND(SUM(C50:C56),3),#VALUE!,SUM(D57:H57)) -> 228473607.1 | D57: =SUM(D50:D56) -> 137376752.4 | E57: =SUM(E50:E56) -> 58747734.39 | F57: =SUM(F50:F56) -> 0 | G57: =SUM(G50:G56) -> 974878.296 | H57: =SUM(H50:H56) -> 31374242 | I57: same as current
B58: TOTAL BILLS | D58: =SUM('Pres & Prop Rev'!D48:D49) -> 2040304 | E58: =SUM('Pres & Prop Rev'!E48:E49) -> 38169 | F58: =SUM('Pres & Prop Rev'!F48:F49) -> 0 | G58: =SUM('Pres & Prop Rev'!G48:G49) -> 24 | H58: =SUM('Pres & Prop Rev'!H48:H49) -> 456 | I58: diff than current
I59: Formulas to copy
B60: Proposed Revenue | C60: =SUM(D60:H60) -> 122328331.5 | D60: ='Rate Spread'!H13*1000 -> 96738393 | E60: =('Rate Spread'!H14+'Rate Spread'!H15)*1000 -> 21612878.28 | G60: ='Rate Spread'!H16*1000 -> 242755.3117 | H60: ='Rate Spread'!H17*1000 -> 3734304.936 | I60: FLOOR | J60: CEILING | K60: OTHER
B61: Targeted Rate Increase | C61: ='Rate Spread'!F19 -> 0.01225899472 | D61: ='Rate Spread'!F13 -> 0.01241431726 | E61: ='Rate Spread'!F14 -> 0.01241431726 | G61: ='Rate Spread'!F16 -> 0.01241431726 | H61: ='Rate Spread'!F17 -> 0.01241431726
B62: Present Basic/Min Charge | D62: =D4+D5 -> 9.5 | E62: =E4+E5 -> 128.72 | F62: =F4+F5 -> 0 | G62: =G4+G5 -> 0 | H62: =H4+H5 -> 700
B63: BASIC/MIN CHARGE | D63: 9.5 | E63: =ROUND(('Att A pg 7'!D15*70)+('Att A pg 7'!D16*130)+D62+(70*'Att A pg 7'!G15)+(130*'Att A pg 7'!G16)+'Att A pg 7'!G13,2) -> 130.58 | F63: 0 | G63: 0 | H63: 700 | I63: =FLOOR(I62*(1+I$61),$I64) -> 0 | J63: =CEILING(J62*(1+J$61),$J64) -> 0 | K63: 1.05
B64: % D in Basic Charge | D64: =IF(D62,D63/D62-1,0) -> 0 | E64: =IF(E62,E63/E62-1,0) -> 0.01444996892 | F64: =IF(F62,F63/F62-1,0) -> 0 | G64: =IF(G62,G63/G62-1,0) -> 0 | H64: =IF(H62,H63/H62-1,0) -> 0 | I64: 0.05 | J64: 0.05
B65: Basic Charge Revenue | C65: =SUM(D65:H65) -> 24709973.48 | D65: =D58*D63 -> 19382888 | E65: =E58*E63 -> 4984108.02 | F65: =F58*F63 -> 0 | G65: =G58*G63 -> 0 | H65: =(H58*H63)+'Pres & Prop Rev'!H156 -> 342977.4645
D66: 0
B67: Present Block 1 Rate | D67: =D6 -> 49.893 | E67: 0 | F67: 0 | G67: 29.933 | H67: =H6 -> 12.256 | J67: =+E62+(D63-D62)+30*(D82/100)+130*(D83/100) -> 229.5293774
B68: Present Block 2 Rate | D68: 64.844 | E68: 38.312 | F68: 0 | G68: 24.029 | H68: 10.904
B69: Present Block 3 Rate | D69: 0 | E69: 29.203 | F69: 0 | G69: 22.579 | H69: 9.832
B70: Present Block 4 Rate | D70: =D9 -> 0 | E70: 24.917 | F70: =F9 -> 0 | G70: 20.174 | H70: 9.093
B71: Present Block 5 Rate | D71: 0 | E71: 17.48 | F71: 0 | G71: 0 | H71: 6.834
B73: 1) Flat Rate Increase | D73: 1 | E73: 1 | F73: 0 | G73: 1 | H73: 1
B74: 2) % Rate Increase | D74: 0.01557322209 | E74: 0.01180542399 | G74: 0.0128314366 | H74: 0.01431962475 | K74: =K$61 -> 0
B75: Method ---> | D75: 2 | E75: 2 | F75: 2 | G75: 2 | H75: 2
A77: Calculated | B77: BLOCK 1 PER THERM | D77: =CHOOSE(D$75,D67+D$73,D67*(1+D$74)) -> 50.66999477 | E77: =E67 -> 0 | F77: =F67 -> 0 | G77: =CHOOSE(G$75,G67+G$73,G67*(1+G$74)) -> 30.31708339 | H77: 12.43150132
B78: BLOCK 2 PER THERM | D78: =CHOOSE(D$75,D68+D$73,D68*(1+D$74)) -> 65.85383001 | E78: =CHOOSE(E$75,E68+E$73,E68*(1+E$74)) -> 38.7642894 | G78: 24.33732659 | H78: 11.06014119
B79: BLOCK 3 PER THERM | D79: 0 | E79: =CHOOSE(E$75,E69+E$73,E69*(1+E$74)) -> 29.5477538 | G79: =CHOOSE(G$75,G69+G$73,G69*(1+G$74)) -> 22.86872101 | H79: 9.972790551
B80: BLOCK 4 PER THERM | D80: 0 | E80: =CHOOSE(E$75,E70+E$73,E70*(1+E$74)) -> 25.21115575 | G80: =CHOOSE(G$75,G70+G$73,G70*(1+G$74)) -> 20.4328614 | H80: 9.223208348
B81: BLOCK 5 PER THERM | D81: 0 | E81: 17.68635881 | G81: 0 | H81: =CHOOSE(H$75,H71+H$73,H71*(1+H$74)) -> 6.931860316
A82: Input | B82: BLOCK 1 PER THERM | D82: =D77-0.001 -> 50.66899477 | E82: =E77 -> 0 | F82: =F77 -> 0 | G82: =G77 -> 30.31708339 | H82: =H77-0.002 -> 12.42950132 | J82: =F82-F67 -> 0 | K82: =H82-H67 -> 0.1735013209 | L82: =D63+((D77/100)*200) -> 110.8399895 | M82: =E63+((E82/100)*200) -> 130.58 | P82: =F63+((F82/100)*500) -> 0
B83: BLOCK 2 PER THERM | D83: =D78-0.001 -> 65.85283001 | E83: =E78 -> 38.7642894 | F83: =F78 -> 0 | G83: =G78 -> 24.33732659 | H83: =H78-0.002 -> 11.05814119 | J83: =F83-F68 -> 0 | K83: =H83-H68 -> 0.1541411883
B84: BLOCK 3 PER THERM | E84: =E79-0.001 -> 29.5467538 | F84: =F79 -> 0 | G84: 22.86872101 | H84: =H79-0.002 -> 9.970790551 | J84: =F84-F69 -> 0 | K84: =H84-H69 -> 0.1387905505
B85: BLOCK 4 PER THERM | E85: =E80 -> 25.21115575 | F85: =F80 -> 0 | G85: =G80 -> 20.4328614 | H85: =H80-0.002 -> 9.221208348 | J85: =F85-F70 -> 0 | K85: 0.1282083478
B86: BLOCK 5 PER THERM | E86: 17.68635881 | F86: =F81 -> 0 | G86: =G81 -> 0 | H86: =H81-0.002 -> 6.929860316 | J86: =F86-F71 -> 0 | K86: 0.09586031553
B87: Blocks 1-5 Revenue | C87: =SUM(D87:H87) -> 91353544.56 | D87: =SUMPRODUCT(D50:D54,D82:D86)/100 -> 72063391.08 | E87: =SUMPRODUCT(E50:E54,E82:E86)/100 -> 15654245.86 | F87: =SUMPRODUCT(F50:F54,F82:F86)/100 -> 0 | G87: =SUMPRODUCT(G50:G54,G82:G86)/100 -> 242755.2938 | H87: =SUMPRODUCT(H50:H54,H82:H86)/100 -> 3393152.322 | L87: 101 | M87: 111/112 | N87: 101 | O87: 111 | P87: 121
B88: Adj. to Actual Revenue | C88: =SUM(D88:H88) -> 0 | D88: ='Pres & Prop Rev'!D168 -> 0 | E88: ='Pres & Prop Rev'!E168 -> 0 | F88: ='Pres & Prop Rev'!F168 -> 0 | G88: ='Pres & Prop Rev'!G168 -> 0 | H88: ='Pres & Prop Rev'!H168 -> 0 | K88: Breakeven Proof Calc | M88: 200 | N88: 500
B89: Weather & U/B Revenue | C89: =SUM(D89:H89) -> 6264959.14 | D89: ='Pres & Prop Rev'!D190 -> 5290733.01 | E89: ='Pres & Prop Rev'!E190 -> 974226.13 | F89: ='Pres & Prop Rev'!F190 -> 0 | G89: ='Pres & Prop Rev'!G190 -> 0 | H89: ='Pres & Prop Rev'!H190 -> 0 | K89: Basic Charge/Minimum | L89: =D63 -> 9.5 | M89: =E63 -> 130.58 | N89: =D63 -> 9.5 | O89: =E63 -> 130.58 | P89: =F63 -> 0
K90: Therm Rate | L90: =D82/100 -> 0.5066899477 | N90: =D82/100 -> 0.5066899477 | O90: =(E82/100) -> 0 | P90: =F82/100 -> 0
B91: Revenue Remaining | C91: =IF(ROUND(C60-C65-SUM(C87:C89),3)<>ROUND(SUM(D91:H91),3),#VALUE!,SUM(D91:H91)) -> -145.6610579 | D91: =D60-D65-SUM(D87:D89) -> 1380.909231 | E91: =E60-E65-SUM(E87:E89) -> 298.2623138 | F91: =F60-F65-SUM(F87:F89) -> 0 | G91: =G60-G65-SUM(G87:G89) -> 0.01789736052 | H91: =H60-H65-SUM(H87:H89) -> -1824.8505 | K91: Therm Rate | L91: =D83/100 -> 0.6585283001 | N91: =L91 -> 0.6585283001 | O91: ='Att A pg 7'!D20 -> 0.38312
B92: Revenue Remaining - ¢/Th | C92: =C91/C57*100 -> -6.375399757e-05 | D92: 0.001005198629 | E92: 0.0005077001128 | G92: 1.83585588e-06 | H92: -0.005816397095 | K92: Bill Calculation | L92: =(70*L90)+(130*L91)+L89 -> 130.5769754 | M92: =(M88*M90)+M89 -> 130.58 | N92: =((70*N90)+(430*N91))+N89 -> 328.1354654 | O92: =O89+(200*O90)+((N88-200)*O91) -> 245.516 | P92: =P89+(N88*P90) -> 0
B93: check - < $4k is rounding | C93: =SUM(D93:H93) -> -147.9274421 | D93: =D60-'Pres & Prop Rev'!D192-D91 -> -84.59737754 | E93: =E60-'Pres & Prop Rev'!E192-E91 -> -8.855654154 | F93: =F60-'Pres & Prop Rev'!F192-F91 -> 0 | G93: =G60-'Pres & Prop Rev'!G192-G91 -> 0.1538011138 | H93: =H60-'Pres & Prop Rev'!H192-H91 -> -54.62821152
K94: Gas Costs | L94: 0 | M94: =E82/100 -> 0 | N94: =L94 -> 0 | O94: =M94 -> 0 | P94: =F82/100 -> 0
B95: Proposed Target | C95: =SUM(D95:H95) -> 122328331.5 | D95: =D60 -> 96738393 | E95: =E60 -> 21612878.28 | F95: =F60 -> 0 | G95: =G60 -> 242755.3117 | H95: =H60 -> 3734304.936 | K95: Gas Cost Revenue | L95: =L94*200 -> 0 | M95: =M94*200 -> 0 | N95: =$N$88*N94 -> 0 | O95: =$N$88*O94 -> 0 | P95: 0
B96: Proposed Actual | C96: ='Pres & Prop Rev'!C192-SUM('Pres & Prop Rev'!I192:J192) -> 122328625.1 | D96: ='Pres & Prop Rev'!D192 -> 96737096.69 | E96: ='Pres & Prop Rev'!E192 -> 21612588.87 | F96: ='Pres & Prop Rev'!F192 -> 0 | G96: ='Pres & Prop Rev'!G192 -> 242755.14 | H96: ='Pres & Prop Rev'!H192 -> 3736184.414 | K96: Gas Cost Difference | M96: =L95-M95 -> 0 | P96: =N95-P95 -> 0
C97: =SUM(D97:H97) -> 293.5885 | D97: =D96-D95 -> -1296.311854 | E97: =E96-E95 -> -289.4066596 | F97: =F96-F95 -> 0 | G97: =G96-G95 -> -0.1716984743 | H97: =H96-H95 -> 1879.478712
B98: Rate D Check | M98: =L92-M92-M96 -> -0.003024643728 | P98: =N92-P92-P96 -> 328.1354654
B99: Basic/Min Charge | C99: =SUM('Pres & Prop Rev'!C155:C156)/SUM('Pres & Prop Rev'!C106:C107)-1 -> 0.002857106859 | D99: =SUM('Pres & Prop Rev'!D155:D156)/SUM('Pres & Prop Rev'!D106:D107)-1 -> 0 | E99: =SUM('Pres & Prop Rev'!E155:E156)/SUM('Pres & Prop Rev'!E106:E107)-1 -> 0.01444996892 | F99: =SUM('Pres & Prop Rev'!F155:F156)/SUM('Pres & Prop Rev'!F106:F107)-1 ->  | G99: =SUM('Pres & Prop Rev'!G155:G156)/SUM('Pres & Prop Rev'!G106:G107)-1 ->  | H99: =SUM('Pres & Prop Rev'!H155:H156)/SUM('Pres & Prop Rev'!H106:H107)-1 -> 0.0009664148566
B100: Adj. to Actual Revenue | C100: ='Pres & Prop Rev'!C168/'Pres & Prop Rev'!C119-1 ->  | D100: ='Pres & Prop Rev'!D168/'Pres & Prop Rev'!D119-1 ->  | E100: ='Pres & Prop Rev'!E168/'Pres & Prop Rev'!E119-1 ->  | F100: ='Pres & Prop Rev'!F168/'Pres & Prop Rev'!F119-1 ->  | G100: ='Pres & Prop Rev'!G168/'Pres & Prop Rev'!G119-1 ->  | H100: ='Pres & Prop Rev'!H168/'Pres & Prop Rev'!H119-1 -> 
B101: Weather & U/B Revenue | C101: ='Pres & Prop Rev'!C190/'Pres & Prop Rev'!C142-1 -> 0.0149681332 | D101: ='Pres & Prop Rev'!D190/'Pres & Prop Rev'!D142-1 -> 0.01555659961 | E101: ='Pres & Prop Rev'!E190/'Pres & Prop Rev'!E142-1 -> 0.01178421783 | F101: ='Pres & Prop Rev'!F190/'Pres & Prop Rev'!F142-1 ->  | G101: ='Pres & Prop Rev'!G190/'Pres & Prop Rev'!G142-1 ->  | H101: ='Pres & Prop Rev'!H190/'Pres & Prop Rev'!H142-1 -> 
B102: Block Therm Charges | C102: =SUM('Pres & Prop Rev'!C157:C161)/SUM('Pres & Prop Rev'!C108:C112)-1 -> 0.0146529496 | D102: =SUM('Pres & Prop Rev'!D157:D161)/SUM('Pres & Prop Rev'!D108:D112)-1 -> 0.0155563684 | E102: =SUM('Pres & Prop Rev'!E157:E161)/SUM('Pres & Prop Rev'!E108:E112)-1 -> 0.01178840149 | F102: =SUM('Pres & Prop Rev'!F157:F161)/SUM('Pres & Prop Rev'!F108:F112)-1 ->  | G102: =SUM('Pres & Prop Rev'!G157:G161)/SUM('Pres & Prop Rev'!G108:G112)-1 -> 0.01283082412 | H102: =SUM('Pres & Prop Rev'!H157:H161)/SUM('Pres & Prop Rev'!H108:H112)-1 -> 0.01414841437
B103: Overall Revenue | C103: ='Pres & Prop Rev'!C192/'Pres & Prop Rev'!C193-1 -> 0.01226221138 | D103: ='Pres & Prop Rev'!D192/'Pres & Prop Rev'!D193-1 -> 0.01240075073 | E103: ='Pres & Prop Rev'!E192/'Pres & Prop Rev'!E193-1 -> 0.01240076055 | F103: ='Pres & Prop Rev'!F192/'Pres & Prop Rev'!F193-1 ->  | G103: ='Pres & Prop Rev'!G192/'Pres & Prop Rev'!G193-1 -> 0.01283082412 | H103: ='Pres & Prop Rev'!H192/'Pres & Prop Rev'!H193-1 -> 0.01292386621
B105: Avg. Usage | D105: =D57/D58 -> 67.33151159 | E105: =E57/E58 -> 1539.147853 | F105: =F57/F58 ->  | G105: =G57/G58 -> 40619.929 | H105: =H57/H58 -> 68803.16228
B106: Bill Compare: | C106: =INDEX($D$2:$H$2,I106) -> SCH. 101 | F106: =INDEX($D$2:$H$2,J106) -> SCH. 111,112,116 | I106: 1 | J106: 2
C107: Pres | D107: Prop | E107: % Incr | F107: Pres | G107: Prop | H107: % Incr
B108: 0 | C108: =I$108+MIN($B108,M$109)*I$109/100+MAX(0,MIN($B108-M$109,M$110-M$109))*I$110/100+MAX(0,MIN($B108-M$110,M$111-M$110))*I$111/100+MAX(0,MIN($B108-M$111,M$112-M$111))*I$112/100+MAX(0,B108-M$113)*I$113/100 -> 9.5 | D108: =J$108+MIN($B108,N$109)*J$109/100+MAX(0,MIN($B108-N$109,N$110-N$109))*J$110/100+MAX(0,MIN($B108-N$110,N$111-N$110))*J$111/100+MAX(0,MIN($B108-N$111,N$112-N$111))*J$112/100+MAX(0,C108-N$113)*J$113/100 -> 9.5 | E108: =D108/C108-1 -> 0 | F108: =K$108+MIN($B108,O$109)*K$109/100+MAX(0,MIN($B108-O$109,O$110-O$109))*K$110/100+MAX(0,MIN($B108-O$110,O$111-O$110))*K$111/100+MAX(0,MIN($B108-O$111,O$112-O$111))*K$112/100+MAX(0,E108-O$113)*K$113/100 -> 128.72 | G108: =L$108+MIN($B108,P$109)*L$109/100+MAX(0,MIN($B108-P$109,P$110-P$109))*L$110/100+MAX(0,MIN($B108-P$110,P$111-P$110))*L$111/100+MAX(0,MIN($B108-P$111,P$112-P$111))*L$112/100+MAX(0,F108-P$113)*L$113/100 -> 130.58 | H108: =G108/F108-1 -> 0.01444996892 | I108: =INDEX(CHOOSE(Base1_Billing2,$D$4:$H$4,$D$14:$H$14),$I$106)+INDEX(CHOOSE(Base1_Billing2,$D$5:$H$5,$D$15:$H$15),$I$106) -> 9.5 | J108: =INDEX(CHOOSE(Base1_Billing2,$D$26:$H$26,$D$36:$H$36),$I$106)+INDEX(CHOOSE(Base1_Billing2,$D$27:$H$27,$D$37:$H$37),$I$106) -> 9.5 | K108: =INDEX(CHOOSE(Base1_Billing2,$D$4:$H$4,$D$14:$H$14),$J$106)+INDEX(CHOOSE(Base1_Billing2,$D$5:$H$5,$D$15:$H$15),$J$106) -> 128.72 | L108: =INDEX(CHOOSE(Base1_Billing2,$D$26:$H$26,$D$36:$H$36),$J$106)+INDEX(CHOOSE(Base1_Billing2,$D$27:$H$27,$D$37:$H$37),$J$106) -> 130.58
B109: 65 | C109: 41.93045 | D109: 42.43485 | E109: 0.012029444 | F109: =K$108+MIN($B109,O$109)*K$109/100+MAX(0,MIN($B109-O$109,O$110-O$109))*K$110/100+MAX(0,MIN($B109-O$110,O$111-O$110))*K$111/100+MAX(0,MIN($B109-O$111,O$112-O$111))*K$112/100+MAX(0,E109-O$113)*K$113/100 -> 128.72 | G109: =L$108+MIN($B109,P$109)*L$109/100+MAX(0,MIN($B109-P$109,P$110-P$109))*L$110/100+MAX(0,MIN($B109-P$110,P$111-P$110))*L$111/100+MAX(0,MIN($B109-P$111,P$112-P$111))*L$112/100+MAX(0,F109-P$113)*L$113/100 -> 130.58 | H109: 0.01444996892 | I109: =INDEX(CHOOSE(Base1_Billing2,$D6:$H6,$D16:$H16),$I$106) -> 49.893 | J109: =INDEX(CHOOSE(Base1_Billing2,$D28:$H28,$D38:$H38),$I$106) -> 50.669 | K109: =INDEX(CHOOSE(Base1_Billing2,$D6:$H6,$D16:$H16),$J$106) -> 0 | L109: =INDEX(CHOOSE(Base1_Billing2,$D28:$H28,$D38:$H38),$J$106) -> 0 | M109: =INDEX($L6:$P6,$I$106) -> 9999999 | N109: =INDEX($L28:$P28,$I$106) -> 9999999 | O109: =INDEX($L6:$P6,$J$106) -> 200 | P109: =INDEX($L28:$P28,$J$106) -> 200
B110: 2000 | C110: 1007.36 | D110: 1022.88 | E110: 0.01540660737 | F110: 727.246 | G110: 736.162 | H110: 0.01225995055 | I110: =INDEX(CHOOSE(Base1_Billing2,$D7:$H7,$D17:$H17),$I$106) -> 64.844 | J110: =INDEX(CHOOSE(Base1_Billing2,$D29:$H29,$D39:$H39),$I$106) -> 65.853 | K110: =INDEX(CHOOSE(Base1_Billing2,$D7:$H7,$D17:$H17),$J$106) -> 38.312 | L110: =INDEX(CHOOSE(Base1_Billing2,$D29:$H29,$D39:$H39),$J$106) -> 38.764 | M110: =INDEX($L7:$P7,$I$106) -> 9999999 | N110: =INDEX($L29:$P29,$I$106) -> 9999999 | O110: =INDEX($L7:$P7,$J$106) -> 1000 | P110: =INDEX($L29:$P29,$J$106) -> 1000
B111: 3000 | C111: 1506.29 | D111: 1529.57 | E111: 0.01545519123 | F111: 1019.276 | G111: 1031.632 | H111: 0.01212232997 | I111: =INDEX(CHOOSE(Base1_Billing2,$D8:$H8,$D18:$H18),$I$106) -> 0 | J111: =INDEX(CHOOSE(Base1_Billing2,$D30:$H30,$D40:$H40),$I$106) -> 0 | K111: =INDEX(CHOOSE(Base1_Billing2,$D8:$H8,$D18:$H18),$J$106) -> 29.203 | L111: =INDEX(CHOOSE(Base1_Billing2,$D30:$H30,$D40:$H40),$J$106) -> 29.547 | M111: =INDEX($L8:$P8,$I$106) -> 9999999 | N111: =INDEX($L30:$P30,$I$106) -> 9999999 | O111: =INDEX($L8:$P8,$J$106) -> 9999999 | P111: =INDEX($L30:$P30,$J$106) -> 9999999
B112: 4000 | C112: 2005.22 | D112: 2036.26 | E112: 0.01547959825 | F112: 1311.306 | G112: 1327.102 | H112: 0.01204600604 | I112: =INDEX(CHOOSE(Base1_Billing2,$D9:$H9,$D19:$H19),$I$106) -> 0 | J112: =INDEX(CHOOSE(Base1_Billing2,$D31:$H31,$D41:$H41),$I$106) -> 0 | K112: =INDEX(CHOOSE(Base1_Billing2,$D9:$H9,$D19:$H19),$J$106) -> 24.917 | L112: =INDEX(CHOOSE(Base1_Billing2,$D31:$H31,$D41:$H41),$J$106) -> 25.211 | M112: =INDEX($L9:$P9,$I$106) -> 9999999 | N112: =INDEX($L31:$P31,$I$106) -> 9999999 | O112: =INDEX($L9:$P9,$J$106) -> 9999999 | P112: =INDEX($L31:$P31,$J$106) -> 9999999
B113: 5000 | C113: 2504.15 | D113: 2542.95 | E113: 0.0154942795 | F113: 1603.336 | G113: 1622.572 | H113: 0.01199748524 | I113: =INDEX(CHOOSE(Base1_Billing2,$D10:$H10,$D20:$H20),$I$106) -> 0 | J113: =INDEX(CHOOSE(Base1_Billing2,$D32:$H32,$D42:$H42),$I$106) -> 0 | K113: =INDEX(CHOOSE(Base1_Billing2,$D10:$H10,$D20:$H20),$J$106) -> 17.48 | L113: =INDEX(CHOOSE(Base1_Billing2,$D32:$H32,$D42:$H42),$J$106) -> 17.686 | M113: =INDEX($L10:$P10,$I$106) -> 9999999 | N113: =INDEX($L32:$P32,$I$106) -> 9999999 | O113: =INDEX($L10:$P10,$J$106) -> 9999999 | P113: =INDEX($L32:$P32,$J$106) -> 9999999
B114: 6000 | C114: 3003.08 | D114: 3049.64 | E114: 0.01550408248 | F114: 1895.366 | G114: 1918.042 | H114: 0.0119639162
B115: 7000 | C115: 3502.01 | D115: 3556.33 | E115: 0.0155110922 | F115: 2187.396 | G115: 2213.512 | H115: 0.01193931049
B116: 8000 | C116: 4000.94 | D116: 4063.02 | E116: 0.01551635366 | F116: 2479.426 | G116: 2508.982 | H116: 0.01192050095
B117: 9000 | C117: 4499.87 | D117: 4569.71 | E117: 0.01552044837 | F117: 2771.456 | G117: 2804.452 | H117: 0.01190565537
B118: 10000 | C118: 4998.8 | D118: 5076.4 | E118: 0.01552372569 | F118: 3063.486 | G118: 3099.922 | H118: 0.01189364012
B119: 11000 | C119: 5497.73 | D119: 5583.09 | E119: 0.01552640817 | F119: 3355.516 | G119: 3395.392 | H119: 0.01188371625
B120: 12000 | C120: 5996.66 | D120: 6089.78 | E120: 0.01552864428 | F120: 3647.546 | G120: 3690.862 | H120: 0.01187538142
B121: 13000 | C121: 6495.59 | D121: 6596.47 | E121: 0.01553053687 | F121: 3939.576 | G121: 3986.332 | H121: 0.01186828227
B122: 14000 | C122: 6994.52 | D122: 7103.16 | E122: 0.01553215946 | F122: 4231.606 | G122: 4281.802 | H122: 0.01186216297

Sheet Att A pg 5
A1: AVISTA UTILITIES
A2: WASHINGTON NATURAL GAS
A3: PROPOSED INCREASE BY SERVICE SCHEDULE
A4: 12 MONTHS ENDED SEPTEMBER 30, 2021
A5: (000s of Dollars)
A7: Rate Year 1
D8: Base Tariff | F8: Base Tariff | G8: Base | H8: Total Billed | L8: Percent
D9: Distribution Revenue | E9: Final | F9: Distribution Revenue | G9: Tariff | H9: Revenue | I9: Final | J9: Sch. 192 | K9: Sch. 178 | L9: Increase
A10: Line | B10: Type of | C10: Schedule | D10: Under Present | E10: General | F10: Under Proposed | G10: Percent | H10: at Present | I10: General | J10: LIRAP | K10: Tax Credit | L10: on Billed
A11: No. | B11: Service | C11: Number | D11: Rates | E11: Increase | F11: Rates | G11: Increase | H11: Rates (1) | I11: Increase | J11: Increase | K11: Decrease | L11: Revenue
B12: (a) | C12: (b) | D12: (c) | E12: (d) | F12: (e) | G12: (f) | H12: (g) | I12: (h) | K12: (I) | L12: (j)
A14: 1 | B14: General Service | C14: 101/102 | D14: 89621.22559 | E14: 5930.95236 | F14: 95552.17795 | G14: 0.06617798765 | H14: 139159.2974 | I14: 5930.95236 | J14: 0 | K14: -4927.049177 | L14: 0.007214057572 | M14: =I14/H14 -> 0.04261987858 | Y14: =(I14/W32)*2 -> 0.08406687662 | Z14: LIRAP Percentage
A15: 2 | B15: Large General Service | C15: 111/112/116 | D15: 20022.85926 | E15: 1324.99992 | F15: 21347.85918 | G15: 0.06617436115 | H15: 43152.72195 | I15: 1324.99992 | J15: 0 | K15: -1100.784012 | L15: 0.005195869421 | M15: =I15/H15 -> 0.03070489786
A16: 3 | B16: OPEN | D16: 0 | E16: 0 | F16: 0 | G16: 0 | H16: 0 | I16: 0 | K16: 0
A17: 3 | B17: Interruptible Service | C17: 131/132 | D17: 224.70907 | E17: 14.77078 | F17: 239.67985 | G17: 0.06573290522 | H17: 527.50024 | I17: 14.77078 | J17: 0 | K17: -12.35368777 | L17: 0.004582163284 | M17: 0.02800146593
A18: 4 | B18: Transportation Service | C18: 146 | D18: 3459.652709 | E18: 228.8618375 | F18: 3688.514546 | G18: 0.0661516796 | H18: 3224.989898 | I18: 228.8618375 | J18: 0 | K18: -190.1991288 | L18: 0.01198847436 | M18: 0.07096513313
A19: 5 | B19: Special Contracts | C19: 148 | D19: 1530.90434 | E19: 0 | F19: 1530.90434 | G19: 0 | H19: 1530.90434 | I19: 0 | J19: 0 | K19: 0 | L19: 0 | M19: 0
A20: 6 | B20: Total | D20: 114859.551 | E20: 7499.784897 | F20: 122359.5359 | G20: 0.06529537939 | H20: 187595.8139 | I20: 7499.584897 | J20: 0 | K20: -6230.386005 | L20: 0.006765603489 | M20: 0.0399773574
D21: 0 | F21: 0 | K21: 0
A22: (1) Includes Schedule 150 (Purchase Gas Cost Adjustment), Schedule 155 (Gas Rate Adjustment), Schedule 175 (Decoupling), Schedule 176 (Tax Credit)
A23: Schedule 191 (DSM Adjustment), and Schedule 192 (LIRAP Adjustment).
A25: Rate Year 2
D26: Base Tariff | F26: Base Tariff | G26: Base | H26: Total Billed | L26: Percent
D27: Distribution Revenue | E27: Final | F27: Distribution Revenue | G27: Tariff | H27: Revenue | I27: Final | J27: Sch. 192 | K27: Sch. 178 | L27: Increase | M27: Billed | N27: Revenue | W27: Base Revenue
A28: Line | B28: Type of | C28: Schedule | D28: Under Present | E28: General | F28: Under Proposed | G28: Percent | H28: at Present | I28: General | J28: LIRAP | K28: Tax Credit | L28: on Billed | M28: Change | N28: Per | Q28: Present | S28: Therm | T28: Sch 150 | U28: Sch 150 | W28: plus
A29: No. | B29: Service | C29: Number | D29: Rates | E29: Increase | F29: Rates | G29: Increase | H29: Rates (1) | I29: Increase | J29: Increase | K29: Decrease | L29: Revenue | M29: GRC | N29: Customer | P29: # of Bills | Q29: Avg Bill | S29: Sales | T29: PGA Rate | U29: Revenue | W29: Sch 150
B30: (a) | C30: (b) | D30: (c) | E30: (d) | F30: (e) | G30: (f) | H30: (g) | I30: (h) | K30: (I) | L30: (j)
A32: 1 | B32: General Service | C32: 101/102 | D32: ='Pres & Prop Rev'!$D$145/1000 -> 95552.17795 | E32: ='Pres & Prop Rev'!$D$195/1000+0.1 -> 1185.01874 | F32: ='Pres & Prop Rev'!$D$192/1000+0.4 -> 96737.49669 | G32: =E32/D32 -> 0.01240179727 | H32: =H14+I14+K14 -> 140163.2006 | I32: =E32 -> 1185.01874 | J32: 0 | K32: 0 | L32: =(I32+J32+K32)/H32 -> 0.008454563928 | M32: =I32/H32 -> 0.008454563928 | N32: =(D32*1000)/(P32/12) -> 561.9878878 | P32: ='Bill Determ'!C7 -> 2040304 | Q32: ='Bill Impact'!E15 -> 65.06 | S32: ='Pres & Prop Rev'!D23 -> 137376752.4 | T32: 0.33156 | U32: =(S32*T32)/1000 -> 45548.63603 | W32: =D32+U32 -> 141100.814 | Y32: =I32/W32 -> 0.008398383443 | Z32: LIRAP Percentage
A33: 2 | B33: Large General Service | C33: 111/112/116 | D33: ='Pres & Prop Rev'!$E$145/1000 -> 21347.85918 | E33: ='Pres & Prop Rev'!$E$195/1000 -> 264.72969 | F33: ='Pres & Prop Rev'!$E$192/1000+0.5 -> 21613.08887 | G33: =E33/D33 -> 0.01240076055 | H33: 43376.93786 | I33: =E33 -> 264.72969 | J33: 0 | K33: 0 | L33: =(I33+J33+K33)/H33 -> 0.006103005493 | M33: =I33/H33 -> 0.006103005493 | N33: =((D33+D35)*1000)/((P33+P35)/12) -> 6782.668771 | P33: ='Bill Determ'!H18 -> 38169 | Q33: =(H33*1000)/P33 -> 1136.444179 | S33: ='Pres & Prop Rev'!E23 -> 58747734.39 | T33: 0.32485 | U33: 19084.20152 | W33: =D33+U33 -> 40432.0607
A34: 3 | B34: OPEN | D34: 0 | E34: ='Pres & Prop Rev'!$F$195/1000 -> 0 | F34: ='Pres & Prop Rev'!$F$192/1000 -> 0 | G34: 0 | H34: 0 | I34: 0 | K34: =-I34-J34 -> 0 | P34: ='Bill Determ'!H32 -> 0 | S34: ='Pres & Prop Rev'!F23 -> 0 | T34: 0.27574 | U34: 0 | W34: 0
A35: 3 | B35: Interruptible Service | C35: 131/132 | D35: ='Pres & Prop Rev'!$G$145/1000 -> 239.67985 | E35: ='Pres & Prop Rev'!$G$195/1000-0.1 -> 2.97529 | F35: ='Pres & Prop Rev'!$G$192/1000 -> 242.75514 | G35: =E35/D35 -> 0.01241360089 | H35: 529.9173322 | I35: =E35 -> 2.97529 | J35: 0 | K35: 0 | L35: 0.00561463047 | M35: =I35/H35 -> 0.00561463047 | P35: ='Bill Determ'!G39 -> 24 | Q35: =(H35*1000)/P35 -> 22079.88884 | S35: ='Pres & Prop Rev'!G23 -> 974878.296 | T35: 0.29044 | U35: 283.1436523 | W35: 522.8235023
A36: 4 | B36: Transportation Service | C36: 146 | D36: ='Pres & Prop Rev'!$H$145/1000 -> 3688.514546 | E36: ='Pres & Prop Rev'!$H$195/1000-0.4 -> 47.2698685 | F36: ='Pres & Prop Rev'!$H$192/1000 -> 3736.184415 | G36: =E36/D36-0.001 -> 0.01181542147 | H36: 3263.652607 | I36: 47.2698685 | J36: 0 | K36: 0 | L36: 0.01448373163 | M36: 0.01448373163 | P36: ='Bill Determ'!H43 -> 456 | Q36: =(H36*1000)/P36 -> 7157.132911 | S36: ='Pres & Prop Rev'!H23 -> 31374242 | T36: 0.00056 | U36: 17.56957552 | W36: 3706.084122
A37: 5 | B37: Special Contracts | C37: 148 | D37: =SUM('Pres & Prop Rev'!$I$145:$J$145)/1000 -> 1530.90434 | E37: =SUM('Pres & Prop Rev'!$I$195:$J$195)/1000 -> 0 | F37: =SUM('Pres & Prop Rev'!$I$192:$J$192)/1000 -> 1530.90434 | G37: 0 | H37: 1530.90434 | I37: 0 | J37: 0 | K37: 0 | L37: 0 | M37: 0 | S37: ='Pres & Prop Rev'!I23+'Pres & Prop Rev'!J23 -> 48390321 | T37: 0 | U37: 0 | W37: 1530.90434
A38: 6 | B38: Total | D38: ='Pres & Prop Rev'!$C$145/1000 -> 122359.1359 | E38: ='Pres & Prop Rev'!$C$195/1000 -> 1500.393589 | F38: ='Pres & Prop Rev'!$C$192/1000 -> 123859.5295 | G38: =E38/D38 -> 0.01226221138 | H38: =SUM(H32:H37) -> 188864.6128 | I38: =SUM(I32:I37)+0.3 -> 1500.293589 | J38: =SUM(J32:J37) -> 0 | K38: =SUM(K32:K37) -> 0 | L38: 0.007943751699 | M38: 0.007943751699 | S38: =SUM(S32:S37) -> 276863928.1 | U38: =SUM(U32:U37) -> 64933.55078 | W38: 187292.6866
D39: =ROUND(D38-SUM(D32:D37),0) -> 0 | F39: 0 | K39: =ROUND(K38-SUM(K32:K37),-1) -> 0
A40: (1) Includes Schedule 150 (Purchase Gas Cost Adjustment), Schedule 155 (Gas Rate Adjustment), Schedule 175 (Decoupling), Schedule 176 (Tax Credit)
A41: Schedule 178 (Residual Tax Customer Credit), Schedule 191 (DSM Adjustment), and Schedule 192 (LIRAP Adjustment).
D43: LIRAP Calculation
D44: Base Revenue | E44: =D32 -> 95552.17795
D45: Sch 150 Gas Cost | E45: =U32 -> 45548.63603
D46: Total Base Revenue | E46: =SUM(E44:E45) -> 141100.814
D48: Sch 101 Increase | E48: =I32 -> 1185.01874
D49: Base % Change | E49: =E48/E46 -> 0.008398383443
D53: =SUM(ROUND(D32:D37,0)) -> 122360 | E53: =SUM(ROUND(E32:E37,0)) -> 1500 | F53: =SUM(ROUND(F32:F37,0)) -> 123860 | H53: =SUM(ROUND(H32:H37,0)) -> 188865 | L53: =SUM(ROUND(L32:L37,0)) -> 0
D54: =ROUND(D38,0)-D53 -> -1 | E54: =ROUND(E38,0)-E53 -> 0 | F54: =ROUND(F38,0)-F53 -> 0 | H54: =ROUND(H38,0)-H53 -> 0 | L54: =ROUND(L38,0)-L53 -> 0
K56: 111/121 | L56: 112/122
G57: Rate Sch. | H57: Therms | K57: Sch 155 Rate | L57: Sch 155 Rate | M57: Billing Impact
G58: 112 | H58: ='12MESEP21'!P96 -> 854133.687 | K58: -0.00014 | L58: 0 | M58: =(H58*(L58-K58)/1000) -> 0.1195787162
G59: 116 | H59: 0 | K59: 0.00014 | L59: 0 | M59: =(H59*(L59-K59)/1000) -> 0 | N59: No 116 in Test Year
G60: 122 | H60: 0 | K60: 0 | L60: 0 | M60: =(H60*(L60-K60)/1000) -> 0
G61: 126 | H61: 0 | K61: 0 | L61: 0 | M61: =(H61*(L61-K61)/1000) -> 0 | N61: No 126 in Test Year
K62: 111/121 | L62: 112/122
G63: Rate Sch. | H63: Therms | K63: Sch 175 Rate | L63: Sch 175 Rate | M63: Billing Impact
G64: 112 | H64: ='12MESEP21'!P96 -> 854133.687 | K64: 0 | L64: 0 | M64: =(H64*(L64-K64)/1000) -> 0
G65: 122 | H65: ='12MESEP21'!P124 -> 0 | K65: 0 | L65: 0 | M65: =(H65*(L65-K65)/1000) -> 0
G68: Rate Sch. | H68: Therms | K68: Sch 189 Rate | L68: Sch 155 Rate | M68: Billing Impact
G69: 102 | H69: ='12MESEP21'!P68 -> 205930.3175 | K69: -0.48469 | M69: =((H69*K69)/1000) -> -99.81236558

Sheet Att A pg 7
A1: AVISTA UTILITIES | R1: This worksheet uses Base & Billing rates from 'Rate Design' tab.
A2: WASHINGTON NATURAL GAS
A3: PRESENT AND PROPOSED RATE COMPONENTS BY SCHEDULE
A4: RATE YEAR 2
H7: Sch 192 | I7: Sch 178 | K7: Proposed
D8: Present Base | E8: Present | G8: General | H8: LIRAP | I8: Tax | J8: Proposed | K8: Base
D9: Distribution | E9: Billing | F9: Present | G9: Rate | H9: Rate | I9: Customer | J9: Billing | K9: Distribution | O9: GRC
A10: Type of Service | D10: Rate | E10: Rate Adj. (1) | F10: Billing Rate | G10: Increase | H10: Increase | I10: Credit | J10: Rate(1) | K10: Rate | M10: Base | N10: Bill | O10: Revenue
B11: (a) | D11: (b) | E11: (c) | F11: (d) | G11: (e) | I11: (f) | J11: (g) | K11: (h) | M11: check | N11: check | O11: Check
A12: General Service - Schedule 101
A13: Basic Charge | D13: ='Rate Design'!D4 -> 9.5 | E13: =F13-D13 -> 0 | F13: ='Rate Design'!D14 -> 9.5 | G13: =IF(ROUND(J13-F13,5)<>ROUND(K13-D13,5),#VALUE!,K13-D13) -> 0 | J13: ='Rate Design'!D36 -> 9.5 | K13: ='Rate Design'!D26 -> 9.5 | L13: =K13/D13-1 -> 0 | O13: =G13*'Pres & Prop Rev'!D25 -> 0
A14: Usage Charge:
A15: First 70 Therms | D15: ='Rate Design'!D6/100 -> 0.49893 | E15: =F15-D15 -> 0.33026 | F15: ='Rate Design'!D16/100 -> 0.82919 | G15: =K15-D15 -> 0.00776 | H15: 0 | I15: 0 | J15: =F15+G15+I15+H15 -> 0.83695 | K15: ='Rate Design'!D28/100 -> 0.50669 | L15: =K15/D15-1 -> 0.01555328403 | M15: =D15+G15-K15 -> 0 | N15: =F15+G15+I15-J15+H15 -> 0 | O15: =G15*'Pres & Prop Rev'!D31 -> 626745.7538 | X15: 155 Amort Rate | Z15: Decoupling | AB15: Proposed
A16: All over 70 Therms | D16: ='Rate Design'!D7/100 -> 0.64844 | E16: =E15 -> 0.33026 | F16: ='Rate Design'!D17/100 -> 0.96381 | G16: =K16-D16 -> 0.01009 | H16: =H15 -> 0 | I16: =I15 -> 0 | J16: =F16+G16+I16+H16 -> 0.9739 | K16: ='Rate Design'!D29/100 -> 0.65853 | L16: =K16/D16-1 -> 0.01556042194 | M16: =D16+G16-K16 -> 0 | N16: =F16+G16+I16-J16+H16 -> 0 | O16: =G16*'Pres & Prop Rev'!D32 -> 477127.9594 | R16: =(70*D15)+(130*D16)+D13 -> 128.7223 | S16: =(70*K15)+(130*K16)+K13 -> 130.5772 | T16: =(70*D15)+(430*D16)+D13 -> 323.2543 | U16: =(70*K15)+(430*K16)+K13 -> 328.1362 | AB16: Billing
A17: Large General Service - Schedule 111 | O17: =SUM(O13:O16) -> 1103873.713 | P17: =O17-'Pres & Prop Rev'!D195 -> -81045.02688 | W17: Large General Service - Schedule 112 | X17: Sch 111 | Y17: Sch 112 | Z17: Sch 175 | AA17: Difference | AB17: Rate
A18: Usage Charge: | L18: =K25/200+K26-K19 -> 0 | W18: Usage Charge:
A19: ="First "&TEXT('Rate Design'!M6,"#,##0")&" therms" -> First 200 therms | D19: ='Rate Design'!M11/100 -> 0.6436 | E19: =F19-D19 -> 0.3214 | F19: ='Rate Design'!M21/100 -> 0.965 | G19: =K19-D19 -> 0.0093 | H19: 0 | I19: 0 | J19: =F19+G19+I19+H19 -> 0.9743 | K19: ='Rate Design'!M33/100 -> 0.6529 | L19: =K19/D19-1 -> 0.01444996892 | M19: =D19+G19-K19 -> 0 | N19: =F19+G19+I19-J19+H19 -> 0 | R19: =D19*200 -> 128.72 | S19: =K19*200 -> 130.58 | W19: ="First "&TEXT('Rate Design'!AG6,"#,##0")&" therms" -> First 0 therms | X19: -0.07997 | Y19: 0 | Z19: 0.00691 | AA19: =X19-Y19+Z19 -> -0.07306 | AB19: =J19-AA19 -> 1.04736
A20: =TEXT('Rate Design'!M6,"#,##0")&" - "&TEXT('Rate Design'!M7,"#,##0")&" therms" -> 200 - 1,000 therms | D20: ='Rate Design'!E7/100 -> 0.38312 | E20: =F20-D20 -> 0.3819 | F20: ='Rate Design'!E17/100 -> 0.76502 | G20: =K20-D20 -> 0.00452 | H20: =H19 -> 0 | I20: =I19 -> 0 | J20: =F20+G20+I20+H20 -> 0.76954 | K20: ='Rate Design'!E29/100 -> 0.38764 | L20: =K20/D20-1 -> 0.01179787012 | M20: =D20+G20-K20 -> 0 | N20: =F20+G20+I20-J20+H20 -> 0 | O20: =G20*'Pres & Prop Rev'!E32 -> 74409.68328 | W20: =TEXT('Rate Design'!AG6,"#,##0")&" - "&TEXT('Rate Design'!AG7,"#,##0")&" therms" -> 0 - 0 therms | X20: =X19 -> -0.07997 | Y20: =Y19 -> 0 | Z20: =Z19 -> 0.00691 | AA20: =X20-Y20+Z20 -> -0.07306 | AB20: =J20-AA20 -> 0.8426
A21: =TEXT('Rate Design'!N7,"#,##0")&" - "&TEXT('Rate Design'!N8,"#,##0")&" therms" -> 1,000 - 10,000 therms | D21: ='Rate Design'!E8/100 -> 0.29203 | E21: =F21-D21 -> 0.38164 | F21: ='Rate Design'!E18/100 -> 0.67367 | G21: =K21-D21 -> 0.00344 | H21: =H19 -> 0 | I21: =I19 -> 0 | J21: 0.67711 | K21: ='Rate Design'!E30/100 -> 0.29547 | L21: =K21/D21-1 -> 0.01177961168 | M21: =D21+G21-K21 -> 0 | N21: 0 | O21: =G21*'Pres & Prop Rev'!E33 -> 93646.51029 | W21: ="All over "&TEXT('Rate Design'!AG7,"#,##0")&" therms" -> All over 0 therms | X21: =X19 -> -0.07997 | Y21: =Y19 -> 0 | Z21: =Z19 -> 0.00691 | AA21: -0.07306 | AB21: 0.75017
A22: =TEXT('Rate Design'!N8,"#,##0")&" - "&TEXT('Rate Design'!N9,"#,##0")&" therms" -> 10,000 - 25,000 therms | D22: ='Rate Design'!E9/100 -> 0.24917 | E22: =F22-D22 -> 0.38152 | F22: ='Rate Design'!E19/100 -> 0.63069 | G22: =K22-D22 -> 0.00294 | H22: =H19 -> 0 | I22: =I19 -> 0 | J22: 0.63363 | K22: ='Rate Design'!E31/100 -> 0.25211 | L22: =K22/D22-1 -> 0.01179917326 | M22: =D22+G22-K22 -> 0 | N22: 0 | O22: =G22*'Pres & Prop Rev'!E34 -> 11906.73596
A23: ="All over "&TEXT('Rate Design'!N9,"#,##0")&" therms" -> All over 25,000 therms | D23: ='Rate Design'!E10/100 -> 0.1748 | E23: 0.3813 | F23: ='Rate Design'!E20/100 -> 0.5561 | G23: =K23-D23 -> 0.00206 | H23: =H19 -> 0 | I23: =I19 -> 0 | J23: 0.55816 | K23: ='Rate Design'!E32/100 -> 0.17686 | L23: =K23/D23-1 -> 0.01178489703 | M23: =D23+G23-K23 -> 0 | N23: 0 | O23: =G23*'Pres & Prop Rev'!E35 -> 2425.630281
A24: Minimum Charge: | W24: Minimum Charge:
A25: per month | D25: ='Rate Design'!E5 -> 128.72 | E25: =F25-D25 -> 0 | F25: ='Rate Design'!E15 -> 128.72 | G25: =IF(ROUND(J25-F25,5)<>ROUND(K25-D25,5),#VALUE!,K25-D25) -> 1.86 | J25: ='Rate Design'!E37 -> 130.58 | K25: ='Rate Design'!E27 -> 130.58 | L25: =K25/D25-1 -> 0.01444996892 | M25: =D25+G25-K25 -> 0 | N25: =F25+G25-J25 -> 0 | O25: =G25*'Pres & Prop Rev'!E49 -> 70994.34 | W25: per month
A26: per therm | D26: ='Rate Design'!E6/100 -> 0 | E26: =F26-D26 -> 0.3214 | F26: ='Rate Design'!E16/100 -> 0.3214 | G26: =K26-D26 -> 0 | J26: =E26+I19+H19 -> 0.3214 | K26: ='Rate Design'!E28/100 -> 0 | M26: =D26+G26-K26 -> 0 | N26: =F26+G26-J26 -> 0 | O26: =G26*'Pres & Prop Rev'!E31 -> 0 | W26: per therm | X26: =X19 -> -0.07997 | Y26: =Y19 -> 0 | Z26: =Z19 -> 0.00691 | AA26: =X26-Y26+Z26 -> -0.07306 | AB26: 0.39446
O27: =SUM(O19:O26) -> 253382.8998 | P27: =-('Pres & Prop Rev'!E190-'Pres & Prop Rev'!E142-'Pres & Prop Rev'!F142) -> -11346.78 | AB27: Billing
A28: OPEN | W28: High Annual Load Factor Large General Service - Schedule 121 | X28: Sch 121 | Y28: Sch 122 | Z28: Sch 175 | AA28: Difference | AB28: Rate
A29: Usage Charge: | L29: =K36/500+K37-K30 -> 0 | W29: Usage Charge:
A30: ="First "&TEXT('Rate Design'!N6,"#,##0")&" therms" -> First 500 therms | D30: ='Rate Design'!N11/100 -> 0 | E30: =F30-D30 -> 0 | F30: ='Rate Design'!N21/100 -> 0 | G30: 0 | L30: =K30/D30-1 ->  | M30: =D30+G30-K30 -> 0 | N30: =F30+G30 -> 0 | R30: =D30*500 -> 0 | S30: =K30*500 -> 0 | W30: First 500 therms | X30: -0.05013 | Y30: 0 | Z30: 0.00691 | AA30: =X30-Y30+Z30 -> -0.04322 | AB30: =J30-AA30 -> 0.04322
A31: =TEXT('Rate Design'!N6,"#,##0")&" - "&TEXT('Rate Design'!N7,"#,##0")&" therms" -> 500 - 1,000 therms | D31: ='Rate Design'!F7/100 -> 0 | E31: =F31-D31 -> 0 | F31: ='Rate Design'!F17/100 -> 0 | L31: =K31/D31-1 ->  | M31: =D31+G31-K31 -> 0 | N31: =F31+G31-J31 -> 0 | O31: =G31*'Pres & Prop Rev'!F32 -> 0 | W31: 500 - 1,000 therms | X31: =X30 -> -0.05013 | Y31: =Y30 -> 0 | Z31: =Z30 -> 0.00691 | AA31: =X31-Y31+Z31 -> -0.04322 | AB31: =J31-AA31 -> 0.04322
A32: =TEXT('Rate Design'!N7,"#,##0")&" - "&TEXT('Rate Design'!N8,"#,##0")&" therms" -> 1,000 - 10,000 therms | D32: ='Rate Design'!F8/100 -> 0 | E32: =F32-D32 -> 0 | F32: ='Rate Design'!F18/100 -> 0 | L32: =K32/D32-1 ->  | M32: =D32+G32-K32 -> 0 | N32: =F32+G32-J32 -> 0 | O32: =G32*'Pres & Prop Rev'!F33 -> 0 | W32: 1,000 - 10,000 therms | X32: =X30 -> -0.05013 | Y32: =Y30 -> 0 | Z32: =Z30 -> 0.00691 | AA32: -0.04322 | AB32: 0.04322
A33: =TEXT('Rate Design'!N8,"#,##0")&" - "&TEXT('Rate Design'!N9,"#,##0")&" therms" -> 10,000 - 25,000 therms | D33: ='Rate Design'!F9/100 -> 0 | E33: =F33-D33 -> 0 | F33: ='Rate Design'!F19/100 -> 0 | L33: =K33/D33-1 ->  | M33: =D33+G33-K33 -> 0 | N33: =F33+G33-J33 -> 0 | O33: =G33*'Pres & Prop Rev'!F34 -> 0 | W33: 10,000 - 25,000 therms | X33: =X30 -> -0.05013 | Y33: =Y30 -> 0 | Z33: =Z30 -> 0.00691 | AA33: -0.04322 | AB33: 0.04322
A34: ="All over "&TEXT('Rate Design'!N9,"#,##0")&" therms" -> All over 25,000 therms | D34: ='Rate Design'!F10/100 -> 0 | E34: =F34-D34 -> 0 | F34: ='Rate Design'!F20/100 -> 0 | L34: =K34/D34-1 ->  | M34: =D34+G34-K34 -> 0 | N34: =F34+G34-J34 -> 0 | O34: =G34*'Pres & Prop Rev'!F35 -> 0 | W34: All over 25,000 therms | X34: =X30 -> -0.05013 | Y34: =Y30 -> 0 | Z34: =Z30 -> 0.00691 | AA34: -0.04322 | AB34: 0.04322
A35: Minimum Charge: | W35: Minimum Charge:
A36: per month | D36: ='Rate Design'!F5 -> 0 | E36: =F36-D36 -> 0 | F36: ='Rate Design'!F15 -> 0 | L36: =K36/D36-1 ->  | O36: =G36*'Pres & Prop Rev'!F49 -> 0 | W36: per month
A37: per therm | D37: ='Rate Design'!F6/100 -> 0 | E37: =F37-D37 -> 0 | F37: ='Rate Design'!F16/100 -> 0 | L37: =K37/D37-1 ->  | M37: =D37+G37-K37 -> 0 | N37: =F37+G37-J37 -> 0 | O37: =G37*'Pres & Prop Rev'!F31 -> 0 | W37: per therm | X37: =X30 -> -0.05013 | Y37: =Y30 -> 0 | Z37: =Z30 -> 0.00691 | AA37: =X37-Y37+Z37 -> -0.04322 | AB37: =J37-AA37 -> 0.04322
A38: Annual Minimum per therm | D38: Present: | E38: 0 | L38: =K38/E38-1 ->  | O38: =SUM(O30:O37) -> 0 | P38: =O38-'Pres & Prop Rev'!F195 -> 0 | W38: Annual Minimum per therm
AB39: Billing
A40: Interruptible Service - Schedule 132 | W40: Interruptible Service - Schedule 132 | X40: Sch 131 | Y40: Sch 132 | Z40: Sch 175 | AA40: Difference | AB40: Rate
A41: Usage Charge: | W41: Usage Charge:
A42: ="First "&TEXT('Rate Design'!O6,"#,##0")&" therms" -> First 10,000 therms | D42: ='Rate Design'!G6/100 -> 0.29933 | E42: =F42-D42 -> 0.29604 | F42: ='Rate Design'!G16/100 -> 0.59537 | G42: =K42-D42 -> 0.00384 | H42: 0 | I42: 0 | J42: =F42+G42+I42+H42 -> 0.59921 | K42: ='Rate Design'!G28/100 -> 0.30317 | L42: =K42/D42-1 -> 0.01282865065 | M42: =D42+G42-K42 -> 0 | N42: =F42+G42+I42-J42+H42 -> 0 | O42: =G42*'Pres & Prop Rev'!G31 -> 921.6 | W42: First 10,000 therms | X42: 0 | Y42: 0 | Z42: 0.00691 | AA42: =X42-Y42+Z42 -> 0.00691 | AB42: =J42+AA42 -> 0.60612
A43: =TEXT('Rate Design'!O6,"#,##0")&" - "&TEXT('Rate Design'!O7,"#,##0")&" therms" -> 10,000 - 25,000 therms | D43: ='Rate Design'!G7/100 -> 0.24029 | E43: =F43-D43 -> 0.29812 | F43: ='Rate Design'!G17/100 -> 0.53841 | G43: =K43-D43 -> 0.00308 | H43: =H42 -> 0 | I43: =I42 -> 0 | J43: =F43+G43+I43+H43 -> 0.54149 | K43: ='Rate Design'!G29/100 -> 0.24337 | L43: =K43/D43-1 -> 0.0128178451 | M43: =D43+G43-K43 -> 0 | N43: =F43+G43+I43-J43+H43 -> 0 | O43: =G43*'Pres & Prop Rev'!G32 -> 943.8848619 | W43: 10,000 - 25,000 therms | X43: =X42 -> 0 | Y43: =Y42 -> 0 | Z43: =Z42 -> 0.00691 | AA43: =X43-Y43+Z43 -> 0.00691 | AB43: =J43+AA43 -> 0.5484
A44: =TEXT('Rate Design'!O7,"#,##0")&" - "&TEXT('Rate Design'!O8,"#,##0")&" therms" -> 25,000 - 50,000 therms | D44: ='Rate Design'!G8/100 -> 0.22579 | E44: =F44-D44 -> 0.29863 | F44: ='Rate Design'!G18/100 -> 0.52442 | G44: =K44-D44 -> 0.0029 | H44: =H42 -> 0 | I44: =I42 -> 0 | J44: 0.52732 | K44: ='Rate Design'!G30/100 -> 0.22869 | L44: =K44/D44-1 -> 0.0128437929 | M44: =D44+G44-K44 -> 0 | N44: 0 | O44: =G44*'Pres & Prop Rev'!G33 -> 937.2155968 | W44: 25,000 - 50,000 therms | X44: =X42 -> 0 | Y44: 0 | Z44: 0.00691 | AA44: 0.00691 | AB44: 0.53423
A45: ="All over "&TEXT('Rate Design'!O8,"#,##0")&" therms" -> All over 50,000 therms | D45: ='Rate Design'!G9/100 -> 0.20174 | E45: =F45-D45 -> 0.29948 | F45: ='Rate Design'!G19/100 -> 0.50122 | G45: =K45-D45 -> 0.00259 | H45: =H42 -> 0 | I45: =I42 -> 0 | J45: 0.50381 | K45: ='Rate Design'!G31/100 -> 0.20433 | L45: =K45/D45-1 -> 0.01283830673 | M45: =D45+G45-K45 -> 0 | N45: 0 | O45: =G45*'Pres & Prop Rev'!G34 -> 272.5829442 | W45: All over 50,000 therms | X45: 0 | Y45: 0 | Z45: 0.00691 | AA45: 0.00691 | AB45: 0.51072
A46: Annual Minimum per therm | D46: Present: | E46: 0.29723 | J46: Proposed: | K46: =D43+0.05694+N("Tariffed Demand Rate, 2021 PGA - Grossed up for Rev Related Items")+G43 -> 0.30031 | L46: =K46/E46-1 -> 0.01036234566 | O46: =SUM(O42:O45) -> 3075.283403 | P46: =O46-'Pres & Prop Rev'!G195 -> -0.006597079742 | W46: Annual Minimum per therm
A48: Transportation Service - Schedule 146
A49: Basic Charge | D49: ='Rate Design'!H4 -> 700 | E49: =F49-D49 -> 0 | F49: ='Rate Design'!H14 -> 700 | G49: =IF(ROUND(J49-F49,5)<>ROUND(K49-D49,5),#VALUE!,K49-D49) -> 0 | J49: ='Rate Design'!H36 -> 700 | K49: ='Rate Design'!H26 -> 700 | L49: =K49/D49-1 -> 0 | O49: =G49*'Pres & Prop Rev'!H48 -> 0
A50: Usage Charge:
A51: ="First "&TEXT('Rate Design'!P6,"#,##0")&" therms" -> First 20,000 therms | D51: ='Rate Design'!H6/100 -> 0.12256 | E51: =F51-D51 -> -0.01491 | F51: ='Rate Design'!H16/100 -> 0.10765 | G51: =K51-D51 -> 0.00174 | H51: 0 | I51: 0 | J51: =F51+G51+I51+H51 -> 0.10939 | K51: ='Rate Design'!H28/100 -> 0.1243 | L51: =K51/D51-1 -> 0.01419712794 | M51: =D51+G51-K51 -> 0 | N51: =F51+G51+I51-J51+H51 -> 0 | O51: =G51*'Pres & Prop Rev'!H31 -> 13799.84604 | S51: =F51+G51 -> 0.10939
A52: =TEXT('Rate Design'!P6,"#,##0")&" - "&TEXT('Rate Design'!P7,"#,##0")&" therms" -> 20,000 - 50,000 therms | D52: ='Rate Design'!H7/100 -> 0.10904 | E52: =F52-D52 -> -0.01375 | F52: ='Rate Design'!H17/100 -> 0.09529 | G52: =K52-D52 -> 0.00154 | H52: =H51 -> 0 | I52: =I51 -> 0 | J52: =F52+G52+I52+H52 -> 0.09683 | K52: ='Rate Design'!H29/100 -> 0.11058 | L52: =K52/D52-1 -> 0.01412325752 | M52: =D52+G52-K52 -> 0 | N52: =F52+G52+I52-J52+H52 -> 0 | O52: =G52*'Pres & Prop Rev'!H32 -> 11747.55582 | S52: =F52+G52 -> 0.09683
A53: =TEXT('Rate Design'!P7,"#,##0")&" - "&TEXT('Rate Design'!P8,"#,##0")&" therms" -> 50,000 - 300,000 therms | D53: ='Rate Design'!H8/100 -> 0.09832 | E53: =F53-D53 -> -0.01282 | F53: ='Rate Design'!H18/100 -> 0.0855 | G53: =K53-D53 -> 0.00139 | H53: =H51 -> 0 | I53: =I51 -> 0 | J53: 0.08689 | K53: ='Rate Design'!H30/100 -> 0.09971 | L53: =K53/D53-1 -> 0.01413751017 | M53: =D53+G53-K53 -> 0 | N53: 0 | O53: =G53*'Pres & Prop Rev'!H33 -> 19562.39296 | S53: =F53+G53 -> 0.08689
A54: =TEXT('Rate Design'!P8,"#,##0")&" - "&TEXT('Rate Design'!P9,"#,##0")&" therms" -> 300,000 - 500,000 therms | D54: ='Rate Design'!H9/100 -> 0.09093 | E54: =F54-D54 -> -0.01219 | F54: ='Rate Design'!H19/100 -> 0.07874 | G54: =K54-D54 -> 0.00128 | H54: =H51 -> 0 | I54: =I51 -> 0 | J54: 0.08002 | K54: ='Rate Design'!H31/100 -> 0.09221 | L54: =K54/D54-1 -> 0.01407676234 | M54: =D54+G54-K54 -> 0 | N54: 0 | O54: =G54*'Pres & Prop Rev'!H34 -> 2228.92672 | S54: =F54+G54 -> 0.08002
A55: ="All over "&TEXT('Rate Design'!P9,"#,##0")&" therms" -> All over 500,000 therms | D55: ='Rate Design'!H10/100 -> 0.06834 | E55: =F55-D55 -> -0.01025 | F55: ='Rate Design'!H20/100 -> 0.05809 | G55: =K55-D55 -> 0.00096 | H55: =H51 -> 0 | I55: =I51 -> 0 | J55: 0.05905 | K55: ='Rate Design'!H32/100 -> 0.0693 | L55: =K55/D55-1 -> 0.01404741001 | M55: =D55+G55-K55 -> 0 | N55: 0 | O55: =G55*'Pres & Prop Rev'!H35 -> 0 | S55: =F55+G55 -> 0.05905
A56: Annual Minimum per therm | D56: Present: | E56: =D52 -> 0.10904 | J56: Proposed: | K56: =K52 -> 0.11058 | L56: =K56/E56-1 -> 0.01412325752 | O56: =SUM(O49:O55) -> 47338.72154 | P56: =O56-'Pres & Prop Rev'!H195 -> -331.14696
O57: ='Pres & Prop Rev'!H156-'Pres & Prop Rev'!H107 -> 331.1385 | P57: Annual Minimum Difference
A61: (1) Includes Schedule 150 (Purchase Gas Cost Adjustment), Schedule 155 (Gas Rate Adjustment), | O61: =O17+O27+O46+O56 -> 1407670.618 | P61: =P17+P27+P46+P56 -> -92722.96044
A62: Schedule 175 (Decoupling), Schedule 191 (DSM Adjustment) and Schedule 192 (LIRAP Adjustment). | P62: ='Pres & Prop Rev'!C190-'Pres & Prop Rev'!C142 -> 92391.81 | Q62: Weather & Unbilled Revenue
P63: =O57 -> 331.1385 | Q63: Sch 456 Annual Minimum Difference
P64: =SUM(P61:P63) -> -0.01193635658

Sheet Rate Spread
A2: Avista
A3: Natural Gas
A4: Rate Spread
P6: Filed | Q6: Filed
D7: Base Tariff | F7: Base | H7: Base Tariff | I7: Total Billed | L7: Percent | P7: Base | Q7: Percent
D8: Distribution Revenue | E8: Percentage | F8: Tariff | G8: Proposed | H8: Distribution Revenue | I8: Revenue | J8: Increase | K8: Tax | L8: Increase | P8: Tariff | Q8: Increase
A9: Line | B9: Type of | C9: Schedule | D9: Under Present | E9: of Base | F9: Percent | G9: General | H9: Under Proposed | I9: at Present | J9: LIRAP | K9: Customer | L9: on Billed | P9: Percent | Q9: on Billed
A10: No. | B10: Service | C10: Number | D10: Rates | E10: Increase | F10: Increase | G10: Increase | H10: Rates | I10: Rates (1) | J10: Funding | K10: Credit | L10: Revenue | P10: Increase | Q10: Revenue
B11: (a) | C11: (b) | D11: (c) | E11: (d) | F11: (e) | G11: (f) | I11: (g) | L11: (i) | P11: (e) | Q11: (i)
A13: 1 | B13: General Service | C13: 101/102 | D13: ='Att A pg 5'!D32 -> 95552.17795 | E13: 1 | F13: =$E$23*E13 -> 0.01241431726 | G13: =D13*F13 -> 1186.215052 | H13: =D13+G13 -> 96738.393 | I13: ='Att A pg 5'!H32 -> 140163.2006 | J13: 0 | K13: 0 | L13: =(G13+K13+J13)/I13 -> 0.008463099063 | P13: 0.123680617 | Q13: 0.08335092445
A14: 2 | B14: Large General Service | C14: 111/112 | D14: ='Att A pg 5'!D33 -> 21347.85918 | E14: 1 | F14: =$E$23*E14 -> 0.01241431726 | G14: =D14*F14 -> 265.0190967 | H14: =D14+G14 -> 21612.87828 | I14: ='Att A pg 5'!H33 -> 43376.93786 | J14: 0 | K14: 0 | L14: =(G14+K14+J14)/I14 -> 0.006109677394 | P14: 0.123680617 | Q14: 0.06609855808
A15: 3 | B15: OPEN | D15: ='Att A pg 5'!D34 -> 0 | E15: 1 | F15: =$E$23*E15 -> 0.01241431726 | G15: =D15*F15 -> 0 | H15: 0 | I15: ='Att A pg 5'!H34 -> 0 | K15: =-G15-J15 -> 0 | L15: =(G15)/I15 ->  | P15: 0.123680617
A16: 3 | B16: Interruptible Service | C16: 131/132 | D16: ='Att A pg 5'!D35 -> 239.67985 | E16: 1 | F16: =$E$23*E16 -> 0.01241431726 | G16: =D16*F16+0.1 -> 3.075461698 | H16: 242.7553117 | I16: ='Att A pg 5'!H35 -> 529.9173322 | J16: 0 | K16: 0 | L16: =(G16+K16+J16)/I16 -> 0.005803663159 | P16: 0.123680617 | Q16: 0.05895925506
A17: 4 | B17: Transportation Service | C17: 146 | D17: ='Att A pg 5'!D36 -> 3688.514546 | E17: 1 | F17: =$E$23*E17 -> 0.01241431726 | G17: 45.79038979 | H17: 3734.304936 | I17: ='Att A pg 5'!H36 -> 3263.652607 | J17: 0 | K17: 0 | L17: =(G17+K17+J17)/I17 -> 0.01403041172 | P17: 0.123680617 | Q17: 0.1260888719
A18: 5 | B18: Special Contracts | C18: 148 | D18: ='Att A pg 5'!D37 -> 1530.90434 | E18: 0 | F18: 0 | G18: 0 | H18: 1530.90434 | I18: ='Att A pg 5'!H37 -> 1530.90434 | J18: 0 | K18: 0 | L18: =(G18+K18+J18)/I18 -> 0 | P18: 0 | Q18: 0
A19: 6 | B19: Total | D19: ='Pres & Prop Rev'!$C$145/1000 -> 122359.1359 | F19: =D23/D19 -> 0.01225899472 | G19: =SUM(G13:G18) -> 1500.1 | H19: =SUM(H13:H18) -> 123859.2359 | I19: =SUM(I13:I18)+0.4 -> 188865.0128 | J19: =SUM(J13:J18) -> 0 | K19: =SUM(K13:K18) -> 0 | L19: =(G19+K19+J19)/I19 -> 0.007942709865 | P19: 0.1216098765 | Q19: 0.07927319334
B23: Revenue Requirement | D23: 1500 | E23: =D23/(D19-D18) -> 0.01241431726

Sheet Bill Impact
A2: Schedule 101 Bill Impact
A6: Schedule 101 Present | G6: Schedule 101 Proposed
B7: Basic Charge | C7: Block 1 | D7: Block 2 | E7: Total Bill | G7: Basic Charge | H7: Block 1 | I7: Block 2 | J7: Total Bill | L7: Bill Impact | M7: % Change
B8: ='Rate Design'!D4 -> 9.5 | C8: ='Rate Design'!D16/100 -> 0.82919 | D8: ='Rate Design'!D17/100 -> 0.96381 | G8: ='Rate Design'!D26 -> 9.5 | H8: ='Att A pg 7'!J15 -> 0.83695 | I8: ='Att A pg 7'!J16 -> 0.9739
A9: 10 | B9: =$B$8 -> 9.5 | C9: =A9*$C$8 -> 8.2919 | E9: =SUM(B9:D9) -> 17.7919 | G9: =$G$8 -> 9.5 | H9: =A9*$H$8 -> 8.3695 | J9: =SUM(G9:I9) -> 17.8695 | L9: =J9-E9 -> 0.0776 | M9: =L9/E9 -> 0.004361535305
A10: =A9+10 -> 20 | B10: =$B$8 -> 9.5 | C10: 16.5838 | E10: =SUM(B10:D10) -> 26.0838 | G10: =$G$8 -> 9.5 | H10: =A10*$H$8 -> 16.739 | J10: 26.239 | L10: 0.1552 | M10: 0.00595005329
A11: =A10+10 -> 30 | B11: 9.5 | C11: 24.8757 | E11: 34.3757 | G11: 9.5 | H11: 25.1085 | J11: 34.6085 | L11: 0.2328 | M11: 0.006772225729
A12: 40 | B12: 9.5 | C12: 33.1676 | E12: 42.6676 | G12: 9.5 | H12: 33.478 | J12: 42.978 | L12: 0.3104 | M12: 0.007274840863
A13: 50 | B13: 9.5 | C13: 41.4595 | E13: 50.9595 | G13: 9.5 | H13: 41.8475 | J13: 51.3475 | L13: 0.388 | M13: 0.007613889461
A14: 60 | B14: 9.5 | C14: 49.7514 | E14: 59.2514 | G14: 9.5 | H14: 50.217 | J14: 59.717 | L14: 0.4656 | M14: 0.007858042173
A15: =ROUND('Pres & Prop Rev'!D46/'Pres & Prop Rev'!D48,0) -> 67 | B15: 9.5 | C15: =ROUND(A15*$C$8,2) -> 55.56 | E15: =SUM(B15:D15) -> 65.06 | G15: 9.5 | H15: =ROUND(A15*$H$8,2) -> 56.08 | J15: =SUM(G15:I15) -> 65.58 | L15: 0.52 | M15: 0.007992622195
A16: =A14+10 -> 70 | B16: 9.5 | C16: =ROUND(A16*$C$8,2) -> 58.04 | E16: 67.54 | G16: 9.5 | H16: =ROUND(A16*$H$8,2) -> 58.59 | J16: 68.09 | L16: =J16-E16 -> 0.55 | M16: 0.008143322476
A17: 80 | B17: 9.5 | C17: =70*$C$8 -> 58.0433 | D17: =(A17-70)*$D$8 -> 9.6381 | E17: =SUM(B17:D17) -> 77.1814 | G17: 9.5 | H17: =70*$H$8 -> 58.5865 | I17: =(A17-70)*$I$8 -> 9.739 | J17: 77.8255 | L17: 0.6441 | M17: 0.008345274898
A18: 90 | B18: 9.5 | C18: =70*$C$8 -> 58.0433 | D18: =(A18-70)*$D$8 -> 19.2762 | E18: 86.8195 | G18: 9.5 | H18: =70*$H$8 -> 58.5865 | I18: =(A18-70)*$I$8 -> 19.478 | J18: 87.5645 | L18: 0.745 | M18: 0.008581021545
A19: 100 | B19: 9.5 | C19: 58.0433 | D19: =(A19-70)*$D$8 -> 28.9143 | E19: 96.4576 | G19: 9.5 | H19: 58.5865 | I19: 29.217 | J19: 97.3035 | L19: 0.8459 | M19: 0.008769656305
A20: 110 | B20: 9.5 | C20: 58.0433 | D20: 38.5524 | E20: 106.0957 | G20: 9.5 | H20: 58.5865 | I20: 38.956 | J20: 107.0425 | L20: 0.9468 | M20: 0.008924018598
A21: 120 | B21: 9.5 | C21: 58.0433 | D21: 48.1905 | E21: 115.7338 | G21: 9.5 | H21: 58.5865 | I21: 48.695 | J21: 116.7815 | L21: 1.0477 | M21: 0.009052670871
A22: 130 | B22: 9.5 | C22: 58.0433 | D22: 57.8286 | E22: 125.3719 | G22: 9.5 | H22: 58.5865 | I22: 58.434 | J22: 126.5205 | L22: 1.1486 | M22: 0.009161542579
A23: 140 | B23: 9.5 | C23: 58.0433 | D23: 67.4667 | E23: 135.01 | G23: 9.5 | H23: 58.5865 | I23: 68.173 | J23: 136.2595 | L23: 1.2495 | M23: 0.00925487001
A24: 150 | B24: 9.5 | C24: 58.0433 | D24: 77.1048 | E24: 144.6481 | G24: 9.5 | H24: 58.5865 | I24: 77.912 | J24: 145.9985 | L24: 1.3504 | M24: 0.009335760373
A25: 160 | B25: 9.5 | C25: 58.0433 | D25: 86.7429 | E25: 154.2862 | G25: 9.5 | H25: 58.5865 | I25: 87.651 | J25: 155.7375 | L25: 1.4513 | M25: 0.009406544461
A26: 170 | B26: 9.5 | C26: 58.0433 | D26: 96.381 | E26: 163.9243 | G26: 9.5 | H26: 58.5865 | I26: 97.39 | J26: 165.4765 | L26: 1.5522 | M26: 0.0094690049
A27: 180 | B27: 9.5 | C27: 58.0433 | D27: 106.0191 | E27: 173.5624 | G27: 9.5 | H27: 58.5865 | I27: 107.129 | J27: 175.2155 | L27: 1.6531 | M27: 0.009524528354
A28: 190 | B28: 9.5 | C28: 58.0433 | D28: 115.6572 | E28: 183.2005 | G28: 9.5 | H28: 58.5865 | I28: 116.868 | J28: 184.9545 | L28: 1.754 | M28: 0.009574209677
A29: 200 | B29: 9.5 | C29: 58.0433 | D29: 125.2953 | E29: 192.8386 | G29: 9.5 | H29: 58.5865 | I29: 126.607 | J29: 194.6935 | L29: 1.8549 | M29: 0.009618924842
A30: 210 | B30: 9.5 | C30: 58.0433 | D30: 134.9334 | E30: 202.4767 | G30: 9.5 | H30: 58.5865 | I30: 136.346 | J30: 204.4325 | L30: 1.9558 | M30: 0.00965938303
A31: 220 | B31: 9.5 | C31: 58.0433 | D31: 144.5715 | E31: 212.1148 | G31: 9.5 | H31: 58.5865 | I31: 146.085 | J31: 214.1715 | L31: 2.0567 | M31: 0.00969616453
A32: 230 | B32: 9.5 | C32: 58.0433 | D32: 154.2096 | E32: 221.7529 | G32: 9.5 | H32: 58.5865 | I32: 155.824 | J32: 223.9105 | L32: 2.1576 | M32: 0.009729748743
A33: 240 | B33: 9.5 | C33: 58.0433 | D33: 163.8477 | E33: 231.391 | G33: 9.5 | H33: 58.5865 | I33: 165.563 | J33: 233.6495 | L33: 2.2585 | M33: 0.009760535198
A34: 250 | B34: 9.5 | C34: 58.0433 | D34: 173.4858 | E34: 241.0291 | G34: 9.5 | H34: 58.5865 | I34: 175.302 | J34: 243.3885 | L34: 2.3594 | M34: 0.009788859519
A35: 260 | B35: 9.5 | C35: 58.0433 | D35: 183.1239 | E35: 250.6672 | G35: 9.5 | H35: 58.5865 | I35: 185.041 | J35: 253.1275 | L35: 2.4603 | M35: 0.009815005713
A36: 270 | B36: 9.5 | C36: 58.0433 | D36: 192.762 | E36: 260.3053 | G36: 9.5 | H36: 58.5865 | I36: 194.78 | J36: 262.8665 | L36: 2.5612 | M36: 0.009839215721
A37: 280 | B37: 9.5 | C37: 58.0433 | D37: 202.4001 | E37: 269.9434 | G37: 9.5 | H37: 58.5865 | I37: 204.519 | J37: 272.6055 | L37: 2.6621 | M37: 0.009861696934
A38: 290 | B38: 9.5 | C38: 58.0433 | D38: 212.0382 | E38: =SUM(B38:D38) -> 279.5815 | G38: 9.5 | H38: 58.5865 | I38: 214.258 | J38: 282.3445 | L38: 2.763 | M38: 0.009882628142
A39: 300 | B39: 9.5 | C39: 58.0433 | D39: 221.6763 | E39: 289.2196 | G39: 9.5 | H39: 58.5865 | I39: 223.997 | J39: 292.0835 | L39: 2.8639 | M39: 0.009902164307
A40: 310 | B40: 9.5 | C40: 58.0433 | D40: =(A40-70)*$D$8 -> 231.3144 | E40: =SUM(B40:D40) -> 298.8577 | G40: 9.5 | H40: 58.5865 | I40: =(A40-70)*$I$8 -> 233.736 | J40: =SUM(G40:I40) -> 301.8225 | L40: 2.9648 | M40: 0.009920440397
A41: 320 | B41: 9.5 | C41: 58.0433 | D41: 240.9525 | E41: 308.4958 | G41: 9.5 | H41: 58.5865 | I41: 243.475 | J41: 311.5615 | L41: 3.0657 | M41: 0.009937574515
A42: 330 | B42: 9.5 | C42: 58.0433 | D42: 250.5906 | E42: 318.1339 | G42: 9.5 | H42: 58.5865 | I42: 253.214 | J42: 321.3005 | L42: 3.1666 | M42: 0.009953670451
A43: 340 | B43: 9.5 | C43: 58.0433 | D43: 260.2287 | E43: 327.772 | G43: 9.5 | H43: 58.5865 | I43: 262.953 | J43: 331.0395 | L43: 3.2675 | M43: 0.009968819789
A44: 350 | B44: 9.5 | C44: 58.0433 | D44: 269.8668 | E44: 337.4101 | G44: 9.5 | H44: 58.5865 | I44: 272.692 | J44: 340.7785 | L44: 3.3684 | M44: 0.009983103647
A45: 360 | B45: 9.5 | C45: 58.0433 | D45: 279.5049 | E45: 347.0482 | G45: 9.5 | H45: 58.5865 | I45: 282.431 | J45: 350.5175 | L45: 3.4693 | M45: 0.009996594133
A46: 370 | B46: 9.5 | C46: 58.0433 | D46: 289.143 | E46: 356.6863 | G46: 9.5 | H46: 58.5865 | I46: 292.17 | J46: 360.2565 | L46: 3.5702 | M46: 0.01000935556
A47: 380 | B47: 9.5 | C47: 58.0433 | D47: =(A47-70)*$D$8 -> 298.7811 | E47: =SUM(B47:D47) -> 366.3244 | G47: 9.5 | H47: 58.5865 | I47: 301.909 | J47: 369.9955 | L47: 3.6711 | M47: 0.01002144547
A48: 390 | B48: 9.5 | C48: 58.0433 | D48: 308.4192 | E48: 375.9625 | G48: 9.5 | H48: 58.5865 | I48: 311.648 | J48: 379.7345 | L48: 3.772 | M48: 0.01003291552
A49: 400 | B49: 9.5 | C49: 58.0433 | D49: 318.0573 | E49: 385.6006 | G49: 9.5 | H49: 58.5865 | I49: 321.387 | J49: 389.4735 | L49: 3.8729 | M49: 0.01004381217
A53: Breakeven Analysis (Base Rates)
A55: Schedule 101 | G55: Schedule 111
B56: Basic Charge | C56: Block 1 | D56: Block 2 | E56: Total Bill | G56: Minimum Charge | H56: Block 1 | I56: Block 2 | J56: Block 3 | K56: Total Bill | M56: Bill Differential
B57: ='Att A pg 7'!K13 -> 9.5 | C57: ='Rate Design'!D28/100 -> 0.50669 | D57: ='Rate Design'!D29/100 -> 0.65853 | G57: ='Rate Design'!E27 -> 130.58 | H57: ='Rate Design'!E28/100 -> 0 | I57: ='Rate Design'!E29/100 -> 0.38764 | J57: ='Rate Design'!E30/100 -> 0.29547
A58: 10 | B58: =$B$57 -> 9.5 | C58: =A58*$C$57 -> 5.0669 | E58: =SUM(B58:D58) -> 14.5669 | G58: =$G$57 -> 130.58 | H58: =A58*$H$57 -> 0 | K58: =SUM(G58:J58) -> 130.58 | M58: =K58-E58 -> 116.0131
A59: =A58+10 -> 20 | B59: 9.5 | C59: =A59*$C$57 -> 10.1338 | E59: =SUM(B59:D59) -> 19.6338 | G59: =$G$57 -> 130.58 | H59: =A59*$H$57 -> 0 | K59: =SUM(G59:J59) -> 130.58 | M59: 110.9462
A60: =A59+10 -> 30 | B60: 9.5 | C60: 15.2007 | E60: 24.7007 | G60: 130.58 | H60: 0 | K60: 130.58 | M60: 105.8793
A61: 40 | B61: 9.5 | C61: 20.2676 | E61: 29.7676 | G61: 130.58 | H61: 0 | K61: 130.58 | M61: 100.8124
A62: 50 | B62: 9.5 | C62: 25.3345 | E62: 34.8345 | G62: 130.58 | H62: 0 | K62: 130.58 | M62: 95.7455
A63: 60 | B63: 9.5 | C63: 30.4014 | E63: 39.9014 | G63: 130.58 | H63: 0 | K63: 130.58 | M63: 90.6786
A64: 70 | B64: 9.5 | C64: =A64*$C$57 -> 35.4683 | E64: 44.9683 | G64: 130.58 | H64: 0 | K64: 130.58 | M64: 85.6117
A65: 80 | B65: 9.5 | C65: =70*$C$57 -> 35.4683 | D65: =(A65-70)*$D$57 -> 6.5853 | E65: 51.5536 | G65: 130.58 | H65: 0 | K65: 130.58 | M65: 79.0264
A66: 90 | B66: 9.5 | C66: =70*$C$57 -> 35.4683 | D66: =(A66-70)*$D$57 -> 13.1706 | E66: 58.1389 | G66: 130.58 | H66: 0 | K66: 130.58 | M66: 72.4411
A67: 100 | B67: 9.5 | C67: 35.4683 | D67: 19.7559 | E67: 64.7242 | G67: 130.58 | H67: 0 | K67: 130.58 | M67: 65.8558
A68: 110 | B68: 9.5 | C68: 35.4683 | D68: 26.3412 | E68: 71.3095 | G68: 130.58 | H68: 0 | K68: 130.58 | M68: 59.2705
A69: 120 | B69: 9.5 | C69: 35.4683 | D69: 32.9265 | E69: 77.8948 | G69: 130.58 | H69: 0 | K69: 130.58 | M69: 52.6852
A70: 130 | B70: 9.5 | C70: 35.4683 | D70: 39.5118 | E70: 84.4801 | G70: 130.58 | H70: 0 | K70: 130.58 | M70: 46.0999
A71: 140 | B71: 9.5 | C71: 35.4683 | D71: 46.0971 | E71: 91.0654 | G71: 130.58 | H71: 0 | K71: 130.58 | M71: 39.5146
A72: 150 | B72: 9.5 | C72: 35.4683 | D72: 52.6824 | E72: 97.6507 | G72: 130.58 | H72: 0 | K72: 130.58 | M72: 32.9293
A73: 160 | B73: 9.5 | C73: 35.4683 | D73: 59.2677 | E73: 104.236 | G73: 130.58 | H73: 0 | K73: 130.58 | M73: 26.344
A74: 170 | B74: 9.5 | C74: 35.4683 | D74: 65.853 | E74: 110.8213 | G74: 130.58 | H74: 0 | K74: 130.58 | M74: 19.7587
A75: 180 | B75: 9.5 | C75: 35.4683 | D75: 72.4383 | E75: 117.4066 | G75: 130.58 | H75: 0 | K75: 130.58 | M75: 13.1734
A76: 190 | B76: 9.5 | C76: 35.4683 | D76: 79.0236 | E76: 123.9919 | G76: 130.58 | H76: 0 | K76: 130.58 | M76: 6.5881
A77: 200 | B77: 9.5 | C77: 35.4683 | D77: 85.6089 | E77: 130.5772 | G77: 130.58 | H77: 0 | K77: 130.58 | M77: 0.0028
A78: 210 | B78: 9.5 | C78: 35.4683 | D78: 92.1942 | E78: 137.1625 | G78: 130.58 | H78: =200*$H$57 -> 0 | I78: =(A78-200)*$I$57 -> 3.8764 | K78: 134.4564 | M78: -2.7061
A79: 220 | B79: 9.5 | C79: 35.4683 | D79: 98.7795 | E79: 143.7478 | G79: 130.58 | H79: 0 | I79: =(A79-200)*$I$57 -> 7.7528 | K79: 138.3328 | M79: -5.415
A80: 230 | B80: 9.5 | C80: 35.4683 | D80: 105.3648 | E80: 150.3331 | G80: 130.58 | H80: 0 | I80: 11.6292 | K80: 142.2092 | M80: -8.1239
A81: 240 | B81: 9.5 | C81: 35.4683 | D81: 111.9501 | E81: 156.9184 | G81: 130.58 | H81: 0 | I81: 15.5056 | K81: 146.0856 | M81: -10.8328
A82: 250 | B82: 9.5 | C82: 35.4683 | D82: 118.5354 | E82: 163.5037 | G82: 130.58 | H82: 0 | I82: 19.382 | K82: 149.962 | M82: -13.5417
A83: 260 | B83: 9.5 | C83: 35.4683 | D83: 125.1207 | E83: 170.089 | G83: 130.58 | H83: 0 | I83: 23.2584 | K83: 153.8384 | M83: -16.2506
A84: 270 | B84: 9.5 | C84: 35.4683 | D84: 131.706 | E84: 176.6743 | G84: 130.58 | H84: 0 | I84: 27.1348 | K84: 157.7148 | M84: -18.9595
A85: 280 | B85: 9.5 | C85: 35.4683 | D85: 138.2913 | E85: 183.2596 | G85: 130.58 | H85: 0 | I85: 31.0112 | K85: 161.5912 | M85: -21.6684
A86: 290 | B86: 9.5 | C86: 35.4683 | D86: 144.8766 | E86: 189.8449 | G86: 130.58 | H86: 0 | I86: 34.8876 | K86: 165.4676 | M86: -24.3773
A87: 300 | B87: 9.5 | C87: 35.4683 | D87: 151.4619 | E87: 196.4302 | G87: 130.58 | H87: 0 | I87: 38.764 | K87: 169.344 | M87: -27.0862
A88: 310 | B88: 9.5 | C88: 35.4683 | D88: 158.0472 | E88: 203.0155 | G88: 130.58 | H88: 0 | I88: 42.6404 | K88: 173.2204 | M88: -29.7951
A89: 320 | B89: 9.5 | C89: 35.4683 | D89: 164.6325 | E89: 209.6008 | G89: 130.58 | H89: 0 | I89: 46.5168 | K89: 177.0968 | M89: -32.504
A90: 330 | B90: 9.5 | C90: 35.4683 | D90: 171.2178 | E90: 216.1861 | G90: 130.58 | H90: 0 | I90: 50.3932 | K90: 180.9732 | M90: -35.2129
A91: 340 | B91: 9.5 | C91: 35.4683 | D91: 177.8031 | E91: 222.7714 | G91: 130.58 | H91: 0 | I91: 54.2696 | K91: 184.8496 | M91: -37.9218
A92: 350 | B92: 9.5 | C92: 35.4683 | D92: 184.3884 | E92: 229.3567 | G92: 130.58 | H92: 0 | I92: 58.146 | K92: 188.726 | M92: -40.6307
A93: 500 | B93: 9.5 | C93: 35.4683 | D93: =(A93-70)*$D$57 -> 283.1679 | E93: =SUM(B93:D93) -> 328.1362 | G93: 130.58 | H93: 0 | I93: =(A93-200)*$I$57 -> 116.292 | K93: =SUM(G93:J93) -> 246.872 | M93: -81.2642
A96: Breakeven Analysis (Base Rates)
A98: Schedule 101 | H98: Schedule 121
B99: Basic Charge | C99: Block 1 | D99: Block 2 | E99: Block 3 | F99: Total Bill | H99: Minimum Charge | I99: Block 1 | J99: Block 2 | K99: Block 3 | L99: Block 4 | M99: Total Bill | O99: Bill Differential
B100: =B57 -> 9.5 | C100: =C57 -> 0.50669 | D100: 0.65853 | E100: 0 | H100: ='Rate Design'!F27 -> 0 | I100: ='Rate Design'!F28/100 -> 0 | J100: ='Rate Design'!F29/100 -> 0 | K100: ='Rate Design'!F30/100 -> 0 | L100: ='Rate Design'!F31/100 -> 0
A101: 200 | B101: =$B$100 -> 9.5 | C101: =70*$C$100 -> 35.4683 | D101: =D100*(A101-70) -> 85.6089 | F101: =SUM(B101:E101) -> 130.5772 | H101: =$H$100 -> 0 | I101: =A101*$I$100 -> 0 | M101: =SUM(H101:L101) -> 0 | O101: =M101-F101 -> -130.5772
A102: 500 | B102: =$B$100 -> 9.5 | C102: =$C$101 -> 35.4683 | D102: =D100*(A102-70) -> 283.1679 | F102: =SUM(B102:E102) -> 328.1362 | H102: =$H$100 -> 0 | I102: =A102*$I$100 -> 0 | M102: =SUM(H102:L102) -> 0 | O102: =M102-F102 -> -328.1362

Sheet Bill Determ
A1: AVISTA UTILITIES
A2: WASHINGTON GAS
A3: USAGE & BILLINGS BY RATE SCHEDULE
A4: 12 MONTHS ENDED SEPTEMBER 30, 2021
A6: Schedule 101/102 | B6: Total therms | C6: Total Billings | E6: 0-70 | F6: >70 | G6: Total Therms
A7: therms per Revenue Run(1)(2) | B7: ='12MESEP21'!P165 -> 128053416.4 | C7: ='12MESEP21'!O25 -> 2040304 | E7: ='Block Usage'!O17 -> 80766205.38 | F7: ='Block Usage'!O18 -> 47287211.04 | G7: =SUM(D7:F7) -> 128053416.4
G8: ='12MESEP21'!P165 -> 128053416.4
G9: =G8-G7 -> 0
D10: 1001-10000 | E10: 10000-
A11: Schedule 111,112, 116 - Adjusted | B11: 0-200 thms | C11: 201-1000 thms | D11: therms | E11: 25000 thms | F11: >25000 thms | G11: Total | H11: Billings
A12: therms by block(2) | B12: ='Block Usage'!O39 -> 6521234.705 | C12: ='Block Usage'!O40 -> 16462319.31 | D12: ='Block Usage'!O41 -> 27222822.76 | E12: ='Block Usage'!O42 -> 4049910.189 | F12: ='Block Usage'!O43 -> 1177490.428 | G12: =SUM(B12:F12) -> 55433777.39
A13: less: Sch Shifting | B13: 0 | C13: 0 | D13: 0 | E13: 0 | F13: 0 | G13: =SUM(B13:F13) -> 0
A14: Total therms by block | B14: =SUM(B12:B13) -> 6521234.705 | C14: 16462319.31 | D14: 27222822.76 | E14: 4049910.189 | F14: 1177490.428 | G14: 55433777.39
A15: Per Rev. Run(1) | G15: ='12MESEP21'!P166 -> 55433777.39 | H15: ='12MESEP21'!O26 -> 38169
A16: less: shifted to Sch. 146 | B16: 0 | C16: 0 | D16: 0 | E16: 0 | F16: 0 | G16: =SUM(B16:F16) -> 0 | H16: 0
A17: less: shifted from Sch. 121 | B17: 0 | C17: 0 | D17: 0 | E17: 0 | F17: 0 | G17: 0 | H17: 0
A18: Total | B18: =SUM(B14:B17) -> 6521234.705 | C18: =SUM(C14:C17) -> 16462319.31 | D18: =SUM(D14:D17) -> 27222822.76 | E18: =SUM(E14:E17) -> 4049910.189 | F18: =SUM(F14:F17) -> 1177490.428 | G18: =G15+G16+G17 -> 55433777.39 | H18: =H15+H16+H17 -> 38169
A19: Adjust. To Actual | G19: =G18-G14 -> 0
D20: 1001-10000 | E20: 10000- | G20: Total
A21: Schedule 111,112, 116 | B21: 0-200 thms | C21: 201-1000 thms | D21: therms | E21: 25000 thms | F21: >25000 thms | G21: therms | H21: Total Billings
A22: therms by block(2) | B22: 0 | C22: 0 | D22: 0 | E22: 0 | F22: 0 | G22: =SUM(B22:F22) -> 0 | H22: 0
A23: Sch 146 to Sch 112 | B23: ='Big Schedules'!Q52 -> 0 | C23: ='Big Schedules'!R52 -> 0 | D23: ='Big Schedules'!S52 -> 0 | E23: ='Big Schedules'!T52 -> 0 | F23: ='Big Schedules'!U52 -> 0 | G23: =SUM(B23:F23) -> 0 | H23: 0
A24: Sch 112 to 146 | B24: =-'Big Schedules'!Q51 -> 0 | C24: =-'Big Schedules'!R51 -> 0 | D24: =-'Big Schedules'!S51 -> 0 | E24: =-'Big Schedules'!T51 -> 0 | F24: =-'Big Schedules'!U51 -> 0 | G24: 0 | H24: 0
A25: Add: Sch 121/122 | B25: =H30*200 -> 0 | C25: 0 | D25: 0 | E25: 0 | F25: 0 | G25: 0 | H25: =H32 -> 0
A26: Total | B26: =SUM(B22:B25) -> 0 | C26: =SUM(C22:C25) -> 0 | D26: 0 | E26: 0 | F26: 0 | G26: 0 | H26: 0
D28: 1001-10000 | E28: 10000- | G28: Total
A29: Schedule 121,122 (Discontinued) | B29: 0-500 thms | C29: 501-1000 thms | D29: therms | E29: 25000 thms | F29: >25000 thms | G29: therms | H29: Total Billings
A30: therms by block(3) | B30: 0 | C30: 0 | D30: 0 | E30: 0 | F30: 0 | G30: =SUM(B30:F30) -> 0 | H30: ='12MESEP21'!O27 -> 0
A31: less: Closed Acct | B31: 0 | C31: 0 | D31: 0 | E31: 0 | F31: 0 | G31: =SUM(B31:F31) -> 0 | H31: 0
A32: Total therms by block | B32: =SUM(B30:B31) -> 0 | C32: =SUM(C30:C31) -> 0 | D32: 0 | E32: 0 | F32: 0 | G32: 0 | H32: 0
A33: Per Rev. Run(1) | G33: ='12MESEP21'!P167 -> 0
A34: less: Acct closed (2) | G34: =G31 -> 0
A35: Total | G35: =G33+G34 -> 0
G36: =G32-G35 -> 0
B37: first | C37: next | D37: next | E37: over | F37: Total
A38: Schedule 131,132 | B38: 10000 thms | C38: 15000 thms | D38: 25000 thms | E38: 50000 thms | F38: therms | G38: Total Billings
A39: billed/pro forma therms(3) | B39: ='Big Schedules'!Q79 -> 240000 | C39: ='Big Schedules'!R79 -> 306456.124 | D39: ='Big Schedules'!S79 -> 323177.792 | E39: ='Big Schedules'!T79 -> 105244.38 | F39: =SUM(B39:E39) -> 974878.296 | G39: 24
B41: first | C41: next | D41: next | E41: next | F41: over | G41: Total
A42: Schedule 146 | B42: 20000 thms | C42: 30000 thms | D42: 250000 thms | E42: 200000 thms | F42: 500000 thms | G42: therms | H42: Total Billings
A43: billed/pro forma therms(4) | B43: ='Big Schedules'!Q47 -> 7930946 | C43: ='Big Schedules'!R47 -> 7628283 | D43: ='Big Schedules'!S47 -> 14073664 | E43: ='Big Schedules'!T47 -> 1741349 | F43: ='Big Schedules'!U47 -> 0 | G43: =SUM(B43:F43) -> 31374242 | H43: =38*12 -> 456
A45: Sch. 147-Interdepartmental(3) | B45: Total therms
A46: billed/pro forma therms | B46: ='12MESEP21'!P149 -> 7023064
A48: Sch. 148-Sp. Contracts(3) | B48: Total therms | C48: Total Billings
A49: Kaiser -Trentwood | B49: ='Big Schedules'!O87 -> 19487326 | C49: 12
A50: Lamb-Weston | B50: ='Big Schedules'!O88 -> 5800449 | C50: 12
A51: Mutual Materials | B51: ='Big Schedules'!O89 -> 1764576 | C51: 12
A52: Washington Potato | B52: ='Big Schedules'!O90 -> 3516793 | C52: 12
A53: Total | B53: =SUM(B49:B52) -> 30569144 | C53: =SUM(C49:C52) -> 48
A55: Wash. State Univ. | B55: =MAX(8000000,'Big Schedules'!O91) -> 10798113 | C55: 12
A57: (1) shown on workpaper JDM-G-11
A58: (2) shown on workpaper JDM-G-9
A59: (3) shown on workpaper JDM-G-10
A60: (4) shown on workpaper JDM-G-9
A68: USAGE
A69: Revenue Run therms, this sheet | B69: =B7+G18+F39+G43+B46+B53+B55+G30 -> 264226635.1
A71: actual Revenue Run therms | B71: ='12MESEP21'!P172 -> 264226636.1
A72: less:
A73: Sch 132 Jan 2016 billing | B73: =-'Big Schedules'!C84 -> 0.125
A74: Schedule 121 Shifting | B74: =G31 -> 0
A75: Sch 146 Shifting | B75: =-'Big Schedules'!O47+G43 -> 0
A76: Sch 11/12 Shifting | B76: =-G17-G16 -> 0
B77: =B71-SUM(B72:B76) -> 264226636
A78: Diff | B78: =B69-B77 -> -0.852999866
A80: from Present Rev tab | B80: =SUM('Pres & Prop Rev'!D20:J20) -> 264226635.1
A81: this sheet | B81: =B69 -> 264226635.1
A82: Diff | B82: =B80-B81 -> 0
A85: CUSTOMERS
A86: Customers from this sheet | B86: =C7+H18+G39+H43+C53+C55+H30 -> 2079013
A88: Rev. Run customers | B88: ='12MESEP21'!O32 -> 2079041
A89: less:
A90: Sch 111 | B90: =-H16 -> 0
A91: Sch 121/122 | B91: 0
A92: Sch 131 normalize | B92: 0
A93: Stimson switching--reduce Sch 146 | B93: 0
A94: Sch 146 normalize | B94: ='12MESEP21'!O29-'Bill Determ'!H43 -> -2
A95: Sch 147 customers not billed | B95: ='12MESEP21'!O30 -> 30
A96: Sch 148 normalize | B96: 0
B97: =B88-SUM(B89:B96) -> 2079013
A98: Diff | B98: =B86-B97 -> 0
A100: from Present Rev tab | B100: =SUM('Pres & Prop Rev'!D25:J26) -> 2079013
A101: Diff | B101: =B97-B100 -> 0

Sheet Block Usage
A1: WASHINGTON NATURAL GAS SYSTEM
C2: October | D2: November | E2: December | F2: January | G2: February | H2: March | I2: April | J2: May | K2: June | L2: July | M2: August | N2: September | O2: Annual Total
A3: Rate Design Program Monthly Results
B4: Schedule 101/102
B5: Block 1 | C5: ='12MESEP21'!D53+'12MESEP21'!D66 -> 3836733.971 | D5: ='12MESEP21'!E53+'12MESEP21'!E66 -> 9353945.291 | E5: ='12MESEP21'!F53+'12MESEP21'!F66 -> 10789713.34 | F5: ='12MESEP21'!G53+'12MESEP21'!G66 -> 10527291.11 | G5: ='12MESEP21'!H53+'12MESEP21'!H66 -> 10533170.99 | H5: ='12MESEP21'!I53+'12MESEP21'!I66 -> 11455655.94 | I5: ='12MESEP21'!J53+'12MESEP21'!J66 -> 9101646.084 | J5: ='12MESEP21'!K53+'12MESEP21'!K66 -> 5424169.435 | K5: ='12MESEP21'!L53+'12MESEP21'!L66 -> 3469406.783 | L5: ='12MESEP21'!M53+'12MESEP21'!M66 -> 2085311.896 | M5: ='12MESEP21'!N53+'12MESEP21'!N66 -> 1914811.874 | N5: ='12MESEP21'!O53+'12MESEP21'!O66 -> 2276855.719 | O5: =SUM(C5:N5) -> 80768712.43
B6: Block 2 | C6: ='12MESEP21'!D54+'12MESEP21'!D67 -> 352324.5992 | D6: ='12MESEP21'!E54+'12MESEP21'!E67 -> 3786323.697 | E6: ='12MESEP21'!F54+'12MESEP21'!F67 -> 9348393.34 | F6: ='12MESEP21'!G54+'12MESEP21'!G67 -> 10346702.58 | G6: ='12MESEP21'!H54+'12MESEP21'!H67 -> 10700982.14 | H6: ='12MESEP21'!I54+'12MESEP21'!I67 -> 8519146.624 | I6: ='12MESEP21'!J54+'12MESEP21'!J67 -> 2874879.829 | J6: ='12MESEP21'!K54+'12MESEP21'!K67 -> 570961.5415 | K6: ='12MESEP21'!L54+'12MESEP21'!L67 -> 288340.0264 | L6: ='12MESEP21'!M54+'12MESEP21'!M67 -> 123511.2218 | M6: ='12MESEP21'!N54+'12MESEP21'!N67 -> 136990.166 | N6: ='12MESEP21'!O54+'12MESEP21'!O67 -> 239640.2236 | O6: =SUM(C6:N6) -> 47288195.99
A7: Therms | B7: Total | C7: =SUM(C5:C6) -> 4189058.571 | D7: 13140268.99 | E7: 20138106.68 | F7: 20873993.69 | G7: 21234153.13 | H7: 19974802.56 | I7: 11976525.91 | J7: 5995130.977 | K7: 3757746.809 | L7: 2208823.117 | M7: 2051802.04 | N7: 2516495.942 | O7: 128056908.4
B8: Billed Customers | C8: ='12MESEP21'!C25 -> 168858 | D8: ='12MESEP21'!D25 -> 168988 | E8: ='12MESEP21'!E25 -> 169632 | F8: ='12MESEP21'!F25 -> 163070 | G8: ='12MESEP21'!G25 -> 162865 | H8: ='12MESEP21'!H25 -> 184180 | I8: ='12MESEP21'!I25 -> 170295 | J8: ='12MESEP21'!J25 -> 170263 | K8: ='12MESEP21'!K25 -> 170396 | L8: ='12MESEP21'!L25 -> 170444 | M8: ='12MESEP21'!M25 -> 170724 | N8: ='12MESEP21'!N25 -> 170589 | O8: =SUM(C8:N8) -> 2040304
B9: Block 1 Limit | C9: =C8*70 -> 11820060 | D9: =D8*70 -> 11829160 | E9: 11874240 | F9: 11414900 | G9: 11400550 | H9: 12892600 | I9: 11920650 | J9: 11918410 | K9: 11927720 | L9: 11931080 | M9: 11950680 | N9: 11941230 | O9: =SUM(C9:N9) -> 142821280
B10: Revenue Run Total | C10: ='12MESEP21'!D165 -> 4188892.571 | D10: ='12MESEP21'!E165 -> 13139925.99 | E10: ='12MESEP21'!F165 -> 20137931.68 | F10: ='12MESEP21'!G165 -> 20873743.69 | G10: ='12MESEP21'!H165 -> 21233613.13 | H10: ='12MESEP21'!I165 -> 19974452.56 | I10: ='12MESEP21'!J165 -> 11975808.91 | J10: ='12MESEP21'!K165 -> 5994916.977 | K10: ='12MESEP21'!L165 -> 3757561.809 | L10: ='12MESEP21'!M165 -> 2208503.117 | M10: ='12MESEP21'!N165 -> 2051764.04 | N10: ='12MESEP21'!O165 -> 2516301.942 | O10: =SUM(C10:N10) -> 128053416.4
B11: Difference | C11: =C10-C7 -> -166 | D11: =D10-D7 -> -343 | E11: -175 | F11: -250 | G11: -540 | H11: -350 | I11: -717 | J11: -214 | K11: -185 | L11: -320 | M11: -38 | N11: -194 | O11: =SUM(C11:N11) -> -3492 | P11: =O11/O10 -> -2.726986985e-05
B13: Block 1 | C13: =(C5/C$7)*C$11 -> -152.0384183 | D13: =(D5/D$7)*D$11 -> -244.1657197 | E13: -93.76253014 | F13: -126.0814206 | G13: -267.8662201 | H13: -200.726869 | I13: -544.8892517 | J13: -193.6191659 | K13: -170.8045505 | L13: -302.1064934 | M13: -35.46290031 | N13: -175.5258183 | O13: =SUM(C13:N13) -> -2507.049358
B14: Block 2 | C14: =(C6/C$7)*C$11 -> -13.9615817 | D14: =(D6/D$7)*D$11 -> -98.83428028 | E14: -81.23746986 | F14: -123.9185794 | G14: -272.1337799 | H14: -149.273131 | I14: -172.1107483 | J14: -20.3808341 | K14: -14.19544945 | L14: -17.89350658 | M14: -2.537099685 | N14: -18.47418174 | O14: =SUM(C14:N14) -> -984.950642
C15: =SUM(C13:C14) -> -166 | D15: -343 | E15: -175 | F15: -250 | G15: -540 | H15: -350 | I15: -717 | J15: -214 | K15: -185 | L15: -320 | M15: -38 | N15: -194 | O15: -3492
B17: Block 1 | C17: =C5+C13 -> 3836581.933 | D17: =D5+D13 -> 9353701.125 | E17: 10789619.58 | F17: 10527165.03 | G17: 10532903.13 | H17: 11455455.21 | I17: 9101101.195 | J17: 5423975.816 | K17: 3469235.978 | L17: 2085009.789 | M17: 1914776.411 | N17: 2276680.193 | O17: =SUM(C17:N17) -> 80766205.38
B18: Block 2 | C18: =C6+C14 -> 352310.6376 | D18: 3786224.863 | E18: 9348312.103 | F18: 10346578.66 | G18: 10700710.01 | H18: 8518997.351 | I18: 2874707.718 | J18: 570941.1606 | K18: 288325.831 | L18: 123493.3283 | M18: 136987.6289 | N18: 239621.7494 | O18: =SUM(C18:N18) -> 47287211.04
C19: =SUM(C17:C18) -> 4188892.571 | D19: 13139925.99 | E19: 20137931.68 | F19: 20873743.69 | G19: 21233613.13 | H19: 19974452.56 | I19: 11975808.91 | J19: 5994916.977 | K19: 3757561.809 | L19: 2208503.117 | M19: 2051764.04 | N19: 2516301.942 | O19: 128053416.4
C20: =C19-C10 -> 0 | D20: 0 | E20: 0 | F20: 0 | G20: 0 | H20: 0 | I20: 0 | J20: 0 | K20: 0 | L20: 0 | M20: 0 | N20: 0 | O20: 0
B22: Schedule 111/112/116
B23: Block 1 | C23: ='12MESEP21'!D77+'12MESEP21'!D91 -> 509608.7352 | D23: ='12MESEP21'!E77+'12MESEP21'!E91 -> 613095.9802 | E23: ='12MESEP21'!F77+'12MESEP21'!F91 -> 621987.5694 | F23: ='12MESEP21'!G77+'12MESEP21'!G91 -> 591977.8375 | G23: ='12MESEP21'!H77+'12MESEP21'!H91 -> 578393.1965 | H23: ='12MESEP21'!I77+'12MESEP21'!I91 -> 702181.4983 | I23: ='12MESEP21'!J77+'12MESEP21'!J91 -> 620859.2812 | J23: ='12MESEP21'!K77+'12MESEP21'!K91 -> 578220.0979 | K23: ='12MESEP21'!L77+'12MESEP21'!L91 -> 505817.4474 | L23: ='12MESEP21'!M77+'12MESEP21'!M91 -> 397703.7176 | M23: ='12MESEP21'!N77+'12MESEP21'!N91 -> 375334.8214 | N23: ='12MESEP21'!O77+'12MESEP21'!O91 -> 426290.5975 | O23: =SUM(C23:N23) -> 6521470.78
B24: Block 2 | C24: ='12MESEP21'!D78+'12MESEP21'!D92 -> 856102.9388 | D24: ='12MESEP21'!E78+'12MESEP21'!E92 -> 1761274.157 | E24: ='12MESEP21'!F78+'12MESEP21'!F92 -> 2075516.585 | F24: ='12MESEP21'!G78+'12MESEP21'!G92 -> 2006611.425 | G24: ='12MESEP21'!H78+'12MESEP21'!H92 -> 1966150.173 | H24: ='12MESEP21'!I78+'12MESEP21'!I92 -> 2289149.217 | I24: ='12MESEP21'!J78+'12MESEP21'!J92 -> 1739339.796 | J24: ='12MESEP21'!K78+'12MESEP21'!K92 -> 1176080.404 | K24: ='12MESEP21'!L78+'12MESEP21'!L92 -> 836237.5705 | L24: ='12MESEP21'!M78+'12MESEP21'!M92 -> 562687.9685 | M24: ='12MESEP21'!N78+'12MESEP21'!N92 -> 548495.9242 | N24: ='12MESEP21'!O78+'12MESEP21'!O92 -> 645201.7655 | O24: =SUM(C24:N24) -> 16462847.92
B25: Block 3 | C25: ='12MESEP21'!D79+'12MESEP21'!D93 -> 928979.0279 | D25: ='12MESEP21'!E79+'12MESEP21'!E93 -> 2533390.092 | E25: ='12MESEP21'!F79+'12MESEP21'!F93 -> 4148908.285 | F25: ='12MESEP21'!G79+'12MESEP21'!G93 -> 4282821.274 | G25: ='12MESEP21'!H79+'12MESEP21'!H93 -> 4291967.786 | H25: ='12MESEP21'!I79+'12MESEP21'!I93 -> 4474218.127 | I25: ='12MESEP21'!J79+'12MESEP21'!J93 -> 2483857.56 | J25: ='12MESEP21'!K79+'12MESEP21'!K93 -> 1296292.217 | K25: ='12MESEP21'!L79+'12MESEP21'!L93 -> 875336.7943 | L25: ='12MESEP21'!M79+'12MESEP21'!M93 -> 599079.479 | M25: ='12MESEP21'!N79+'12MESEP21'!N93 -> 594779.5093 | N25: ='12MESEP21'!O79+'12MESEP21'!O93 -> 713929.1396 | O25: =SUM(C25:N25) -> 27223559.29
B26: Block 4 | C26: ='12MESEP21'!D80+'12MESEP21'!D94 -> 174122.9372 | D26: ='12MESEP21'!E80+'12MESEP21'!E94 -> 349509.2087 | E26: ='12MESEP21'!F80+'12MESEP21'!F94 -> 600011.7556 | F26: ='12MESEP21'!G80+'12MESEP21'!G94 -> 623324.172 | G26: ='12MESEP21'!H80+'12MESEP21'!H94 -> 634398.0075 | H26: ='12MESEP21'!I80+'12MESEP21'!I94 -> 660988.6269 | I26: ='12MESEP21'!J80+'12MESEP21'!J94 -> 303905.2783 | J26: ='12MESEP21'!K80+'12MESEP21'!K94 -> 180834.9292 | K26: ='12MESEP21'!L80+'12MESEP21'!L94 -> 150247.2547 | L26: ='12MESEP21'!M80+'12MESEP21'!M94 -> 96954.8859 | M26: ='12MESEP21'!N80+'12MESEP21'!N94 -> 135507.072 | N26: ='12MESEP21'!O80+'12MESEP21'!O94 -> 140215.1393 | O26: =SUM(C26:N26) -> 4050019.267
B27: Block 5 | C27: ='12MESEP21'!D81+'12MESEP21'!D95 -> 28600.029 | D27: ='12MESEP21'!E81+'12MESEP21'!E95 -> 104763.6597 | E27: ='12MESEP21'!F81+'12MESEP21'!F95 -> 171666.195 | F27: ='12MESEP21'!G81+'12MESEP21'!G95 -> 229095.226 | G27: ='12MESEP21'!H81+'12MESEP21'!H95 -> 178756.154 | H27: ='12MESEP21'!I81+'12MESEP21'!I95 -> 270499.159 | I27: ='12MESEP21'!J81+'12MESEP21'!J95 -> 68686.104 | J27: ='12MESEP21'!K81+'12MESEP21'!K95 -> 25525.362 | K27: ='12MESEP21'!L81+'12MESEP21'!L95 -> 21497.029 | L27: ='12MESEP21'!M81+'12MESEP21'!M95 -> 12657.516 | M27: ='12MESEP21'!N81+'12MESEP21'!N95 -> 29844.519 | N27: ='12MESEP21'!O81+'12MESEP21'!O95 -> 35924.176 | O27: =SUM(C27:N27) -> 1177515.129
A28: Therms | B28: Total | C28: =SUM(C23:C27) -> 2497413.668 | D28: =SUM(D23:D27) -> 5362033.097 | E28: 7618090.39 | F28: 7733829.934 | G28: 7649665.317 | H28: 8397036.628 | I28: 5216648.02 | J28: 3256953.011 | K28: 2389136.096 | L28: 1669083.567 | M28: 1683961.846 | N28: 1961560.818 | O28: =SUM(O23:O27) -> 55435412.39
B29: Revenue Run Total | C29: ='12MESEP21'!D166 -> 2497413.668 | D29: ='12MESEP21'!E166 -> 5362033.097 | E29: ='12MESEP21'!F166 -> 7618090.39 | F29: ='12MESEP21'!G166 -> 7733829.934 | G29: ='12MESEP21'!H166 -> 7649347.317 | H29: ='12MESEP21'!I166 -> 8396949.628 | I29: ='12MESEP21'!J166 -> 5216217.02 | J29: ='12MESEP21'!K166 -> 3256410.011 | K29: ='12MESEP21'!L166 -> 2389136.096 | L29: ='12MESEP21'!M166 -> 1669083.567 | M29: ='12MESEP21'!N166 -> 1683705.846 | N29: ='12MESEP21'!O166 -> 1961560.818 | O29: =SUM(C29:N29) -> 55433777.39
C30: =C29-C28 -> 0 | D30: 0 | E30: 0 | F30: 0 | G30: -318 | H30: -87 | I30: -431 | J30: -543 | K30: 0 | L30: 0 | M30: -256 | N30: 0 | O30: =SUM(C30:N30) -> -1635 | P30: =O30/O29 -> -2.949465248e-05
B32: Block 1 | C32: =(C23/C$28)*C$30 -> 0 | D32: =(D23/D$28)*D$30 -> 0 | E32: 0 | F32: 0 | G32: -24.04406322 | H32: -7.275160638 | I32: -51.29545816 | J32: -96.40099569 | K32: 0 | L32: 0 | M32: -57.05931789 | N32: 0 | O32: =SUM(C32:N32) -> -236.0749956
B33: Block 2 | C33: =(C24/C$28)*C$30 -> 0 | D33: =(D24/D$28)*D$30 -> 0 | E33: 0 | F33: 0 | G33: -81.73373987 | H33: -23.71741255 | I33: -143.7044342 | J33: -196.0764118 | K33: 0 | L33: 0 | M33: -83.38369241 | N33: 0 | O33: =SUM(C33:N33) -> -528.6156908
B34: Block 3 | C34: =(C25/C$28)*C$30 -> 0 | D34: =(D25/D$28)*D$30 -> 0 | E34: 0 | F34: 0 | G34: -178.4190156 | H34: -46.35647006 | I34: -205.216569 | J34: -216.1181545 | K34: 0 | L34: 0 | M34: -90.41983626 | N34: 0 | O34: =SUM(C34:N34) -> -736.5300455
B35: Block 4 | C35: =(C26/C$28)*C$30 -> 0 | D35: 0 | E35: 0 | F35: 0 | G35: -26.3722082 | H35: -6.84836962 | I35: -25.10868559 | J35: -30.14884348 | K35: 0 | L35: 0 | M35: -20.60011663 | N35: 0 | O35: =SUM(C35:N35) -> -109.0782235
B36: Block 5 | C36: =(C27/C$28)*C$30 -> 0 | D36: 0 | E36: 0 | F36: 0 | G36: -7.430973071 | H36: -2.802587136 | I36: -5.674853031 | J36: -4.255594576 | K36: 0 | L36: 0 | M36: -4.5370368 | N36: 0 | O36: =SUM(C36:N36) -> -24.70104461
C37: =SUM(C32:C36) -> 0 | D37: =SUM(D32:D36) -> 0 | E37: 0 | F37: 0 | G37: -318 | H37: -87 | I37: -431 | J37: -543 | K37: 0 | L37: 0 | M37: -256 | N37: 0 | O37: -1635
B39: Block 1 | C39: =C23+C32 -> 509608.7352 | D39: =D23+D32 -> 613095.9802 | E39: 621987.5694 | F39: 591977.8375 | G39: 578369.1524 | H39: 702174.2232 | I39: 620807.9858 | J39: 578123.6969 | K39: 505817.4474 | L39: 397703.7176 | M39: 375277.7621 | N39: 426290.5975 | O39: =SUM(C39:N39) -> 6521234.705
B40: Block 2 | C40: =C24+C33 -> 856102.9388 | D40: =D24+D33 -> 1761274.157 | E40: 2075516.585 | F40: 2006611.425 | G40: 1966068.439 | H40: 2289125.499 | I40: 1739196.092 | J40: 1175884.328 | K40: 836237.5705 | L40: 562687.9685 | M40: 548412.5405 | N40: 645201.7655 | O40: =SUM(C40:N40) -> 16462319.31
B41: Block 3 | C41: =C25+C34 -> 928979.0279 | D41: =D25+D34 -> 2533390.092 | E41: 4148908.285 | F41: 4282821.274 | G41: 4291789.367 | H41: 4474171.77 | I41: 2483652.343 | J41: 1296076.099 | K41: 875336.7943 | L41: 599079.479 | M41: 594689.0895 | N41: 713929.1396 | O41: =SUM(C41:N41) -> 27222822.76
B42: Block 4 | C42: =C26+C35 -> 174122.9372 | D42: =D26+D35 -> 349509.2087 | E42: 600011.7556 | F42: 623324.172 | G42: 634371.6353 | H42: 660981.7785 | I42: 303880.1696 | J42: 180804.7804 | K42: 150247.2547 | L42: 96954.8859 | M42: 135486.4719 | N42: 140215.1393 | O42: =SUM(C42:N42) -> 4049910.189
B43: Block 5 | C43: =C27+C36 -> 28600.029 | D43: =D27+D36 -> 104763.6597 | E43: 171666.195 | F43: 229095.226 | G43: 178748.723 | H43: 270496.3564 | I43: 68680.42915 | J43: 25521.10641 | K43: 21497.029 | L43: 12657.516 | M43: 29839.98196 | N43: 35924.176 | O43: 1177490.428
C44: =SUM(C39:C43) -> 2497413.668 | D44: =SUM(D39:D43) -> 5362033.097 | E44: 7618090.39 | F44: 7733829.934 | G44: 7649347.317 | H44: 8396949.628 | I44: 5216217.02 | J44: 3256410.011 | K44: 2389136.096 | L44: 1669083.567 | M44: 1683705.846 | N44: 1961560.818 | O44: 55433777.39
C45: =C44-C29 -> 0 | D45: 0 | E45: 0 | F45: 0 | G45: 0 | H45: 0 | I45: 0 | J45: 0 | K45: 0 | L45: 0 | M45: 0 | N45: 0 | O45: 0
B49: Not Used
B50: Block 1 | C50: ='12MESEP21'!D105+'12MESEP21'!D119 -> 0 | D50: ='12MESEP21'!E105+'12MESEP21'!E119 -> 0 | E50: ='12MESEP21'!F105+'12MESEP21'!F119 -> 0 | F50: ='12MESEP21'!G105+'12MESEP21'!G119 -> 0 | G50: ='12MESEP21'!H105+'12MESEP21'!H119 -> 0 | H50: ='12MESEP21'!I105+'12MESEP21'!I119 -> 0 | I50: ='12MESEP21'!J105+'12MESEP21'!J119 -> 0 | J50: ='12MESEP21'!K105+'12MESEP21'!K119 -> 0 | K50: ='12MESEP21'!L105+'12MESEP21'!L119 -> 0 | L50: ='12MESEP21'!M105+'12MESEP21'!M119 -> 0 | M50: ='12MESEP21'!N105+'12MESEP21'!N119 -> 0 | N50: ='12MESEP21'!O105+'12MESEP21'!O119 -> 0 | O50: =SUM(C50:N50) -> 0
B51: Block 2 | C51: ='12MESEP21'!D106+'12MESEP21'!D120 -> 0 | D51: ='12MESEP21'!E106+'12MESEP21'!E120 -> 0 | E51: ='12MESEP21'!F106+'12MESEP21'!F120 -> 0 | F51: ='12MESEP21'!G106+'12MESEP21'!G120 -> 0 | G51: ='12MESEP21'!H106+'12MESEP21'!H120 -> 0 | H51: ='12MESEP21'!I106+'12MESEP21'!I120 -> 0 | I51: ='12MESEP21'!J106+'12MESEP21'!J120 -> 0 | J51: ='12MESEP21'!K106+'12MESEP21'!K120 -> 0 | K51: ='12MESEP21'!L106+'12MESEP21'!L120 -> 0 | L51: ='12MESEP21'!M106+'12MESEP21'!M120 -> 0 | M51: ='12MESEP21'!N106+'12MESEP21'!N120 -> 0 | N51: ='12MESEP21'!O106+'12MESEP21'!O120 -> 0 | O51: =SUM(C51:N51) -> 0
B52: Block 3 | C52: ='12MESEP21'!D107+'12MESEP21'!D121 -> 0 | D52: ='12MESEP21'!E107+'12MESEP21'!E121 -> 0 | E52: ='12MESEP21'!F107+'12MESEP21'!F121 -> 0 | F52: ='12MESEP21'!G107+'12MESEP21'!G121 -> 0 | G52: ='12MESEP21'!H107+'12MESEP21'!H121 -> 0 | H52: ='12MESEP21'!I107+'12MESEP21'!I121 -> 0 | I52: ='12MESEP21'!J107+'12MESEP21'!J121 -> 0 | J52: ='12MESEP21'!K107+'12MESEP21'!K121 -> 0 | K52: ='12MESEP21'!L107+'12MESEP21'!L121 -> 0 | L52: ='12MESEP21'!M107+'12MESEP21'!M121 -> 0 | M52: ='12MESEP21'!N107+'12MESEP21'!N121 -> 0 | N52: ='12MESEP21'!O107+'12MESEP21'!O121 -> 0 | O52: 0
B53: Block 4 | C53: ='12MESEP21'!D108+'12MESEP21'!D122 -> 0 | D53: ='12MESEP21'!E108+'12MESEP21'!E122 -> 0 | E53: ='12MESEP21'!F108+'12MESEP21'!F122 -> 0 | F53: ='12MESEP21'!G108+'12MESEP21'!G122 -> 0 | G53: ='12MESEP21'!H108+'12MESEP21'!H122 -> 0 | H53: ='12MESEP21'!I108+'12MESEP21'!I122 -> 0 | I53: ='12MESEP21'!J108+'12MESEP21'!J122 -> 0 | J53: ='12MESEP21'!K108+'12MESEP21'!K122 -> 0 | K53: ='12MESEP21'!L108+'12MESEP21'!L122 -> 0 | L53: ='12MESEP21'!M108+'12MESEP21'!M122 -> 0 | M53: ='12MESEP21'!N108+'12MESEP21'!N122 -> 0 | N53: ='12MESEP21'!O108+'12MESEP21'!O122 -> 0 | O53: =SUM(C53:N53) -> 0
B54: Block 5 | C54: ='12MESEP21'!D109+'12MESEP21'!D123 -> 0 | D54: ='12MESEP21'!E109+'12MESEP21'!E123 -> 0 | E54: ='12MESEP21'!F109+'12MESEP21'!F123 -> 0 | F54: ='12MESEP21'!G109+'12MESEP21'!G123 -> 0 | G54: ='12MESEP21'!H109+'12MESEP21'!H123 -> 0 | H54: ='12MESEP21'!I109+'12MESEP21'!I123 -> 0 | I54: ='12MESEP21'!J109+'12MESEP21'!J123 -> 0 | J54: ='12MESEP21'!K109+'12MESEP21'!K123 -> 0 | K54: ='12MESEP21'!L109+'12MESEP21'!L123 -> 0 | L54: ='12MESEP21'!M109+'12MESEP21'!M123 -> 0 | M54: ='12MESEP21'!N109+'12MESEP21'!N123 -> 0 | N54: ='12MESEP21'!O109+'12MESEP21'!O123 -> 0 | O54: =SUM(C54:N54) -> 0
A55: Therms | B55: Total | C55: =SUM(C50:C54) -> 0 | D55: =SUM(D50:D54) -> 0 | E55: 0 | F55: 0 | G55: 0 | H55: 0 | I55: =SUM(I50:I54) -> 0 | J55: =SUM(J50:J54) -> 0 | K55: 0 | L55: 0 | M55: 0 | N55: 0 | O55: 0
B56: Revenue Run Total | C56: ='12MESEP21'!D167 -> 0 | D56: ='12MESEP21'!E167 -> 0 | E56: ='12MESEP21'!F167 -> 0 | F56: ='12MESEP21'!G167 -> 0 | G56: ='12MESEP21'!H167 -> 0 | H56: ='12MESEP21'!I167 -> 0 | I56: ='12MESEP21'!J167 -> 0 | J56: ='12MESEP21'!K167 -> 0 | K56: ='12MESEP21'!L167 -> 0 | L56: ='12MESEP21'!M167 -> 0 | M56: ='12MESEP21'!N167 -> 0 | N56: ='12MESEP21'!O167 -> 0 | O56: =SUM(C56:N56) -> 0
C57: =C56-C55 -> 0 | D57: 0 | E57: 0 | F57: 0 | G57: 0 | H57: 0 | I57: 0 | J57: 0 | K57: 0 | L57: 0 | M57: 0 | N57: 0 | O57: =SUM(C57:N57) -> 0 | P57: =O57/O56 -> 
B59: Block 1 | C59: =(C50/C$55)*C$57 ->  | D59: =(D50/D$55)*D$57 ->  | O59: =SUM(C59:N59) -> 
B60: Block 2 | C60: =(C51/C$55)*C$57 ->  | O60: =SUM(C60:N60) -> 
B61: Block 3 | C61: =(C52/C$55)*C$57 -> 
B62: Block 4 | O62: =SUM(C62:N62) -> 
B63: Block 5 | O63: =SUM(C63:N63) -> 
C64: =SUM(C59:C63) ->  | D64: =SUM(D59:D63) ->  | O64: =SUM(O59:O63) -> 
B66: Block 1 | C66: =C50+C59 ->  | D66: =D50+D59 ->  | O66: =SUM(C66:N66) -> 
B67: Block 2 | C67: =C51+C60 ->  | O67: =SUM(C67:N67) -> 
B68: Block 3 | C68: =C52+C61 -> 
B69: Block 4 | C69: =C53+C62 ->  | O69: =SUM(C69:N69) -> 
B70: Block 5 | C70: =C54+C63 ->  | O70: =SUM(C70:N70) -> 
C71: =SUM(C66:C70) -> 
C72: =C71-C56 -> 

Sheet Big Schedules
B1: Washington Gas Billing Determinants by Customer
Q2: 1st | R2: =Q3 -> 20000 | S2: =R3 -> 50000 | T2: =S3 -> 300000 | U2: =T3 -> 500000 | W2: Present | X2: Proposed
B3: ANNUAL USAGE, Sch 146 | O3: 12-mo ended | Q3: 20000 | R3: 50000 | S3: 300000 | T3: 500000 | U3: 99999999 | W3: Annual | X3: Annual | Y3: Present Base | Z3: Proposed Base
B4: Washington | C4: 2020-10-31 | D4: =EOMONTH(C4,1) -> 2020-11-30 | E4: =EOMONTH(D4,1) -> 2020-12-31 | F4: 2021-01-31 | G4: 2021-02-28 | H4: 2021-03-31 | I4: 2021-04-30 | J4: 2021-05-31 | K4: 2021-06-30 | L4: 2021-07-31 | M4: 2021-08-31 | N4: 2021-09-30 | O4: Total | Q4: thms/mo | R4: thms/mo | S4: thms/mo | T4: thms/mo | U4: thms/mo | W4: Minimum | X4: Minimum | Y4: Revenue | Z4: Revenue
A5: 1 | B5: Deaconess Medical Center | C5: 74764 | D5: 104275 | E5: 122430 | F5: 150985 | G5: 138075 | H5: 145522 | I5: 119752 | J5: 108123 | K5: 95889 | L5: 80544 | M5: 79484 | N5: 13776 | O5: =SUM(C5:N5) -> 1233619 | Q5: =Q$3*12-SUMPRODUCT(--($C5:$N5<=Q$3),Q$3-$C5:$N5) -> 233776 | R5: =R$3*12-SUM($Q5:Q5)-SUMPRODUCT(--($C5:$N5<=R$3),R$3-$C5:$N5) -> 330000 | S5: =S$3*12-SUM($Q5:R5)-SUMPRODUCT(--($C5:$N5<=S$3),S$3-$C5:$N5) -> 669843 | T5: =T$3*12-SUM($Q5:S5)-SUMPRODUCT(--($C5:$N5<=T$3),T$3-$C5:$N5) -> 0 | U5: =U$3*12-SUM($Q5:T5)-SUMPRODUCT(--($C5:$N5<=U$3),U$3-$C5:$N5) -> 0 | W5: =IF(O5<250000,(250000-O5)*'Att A pg 7'!$E$56,0) -> 0 | X5: =IF(O5<250000,(250000-O5)*'Att A pg 7'!$K$56,0) -> 0 | Y5: =Q5*'Att A pg 7'!$D$51+'Big Schedules'!R5*'Att A pg 7'!$D$52+'Big Schedules'!S5*'Att A pg 7'!$D$53+'Big Schedules'!T5*'Att A pg 7'!$D$54+'Big Schedules'!U5*'Att A pg 7'!$D$55+'Att A pg 7'!$D$49*12+W5 -> 138893.7503 | Z5: =Q5*'Att A pg 7'!$K$51+'Big Schedules'!R5*'Att A pg 7'!$K$52+'Big Schedules'!S5*'Att A pg 7'!$K$53+'Big Schedules'!T5*'Att A pg 7'!$K$54+'Big Schedules'!U5*'Att A pg 7'!$K$55+'Att A pg 7'!$K$49*12+X5 -> 140739.8023 | AA5: =Z5/Y5-1 -> 0.01329110925
A6: =A5+1 -> 2 | B6: 92 Ces/Cer-M (to Sch 112) | C6: 0 | D6: 198368 | E6: 322422 | F6: 425484 | G6: 403480 | H6: 401058 | I6: 284275 | J6: 180978 | K6: 89621 | L6: 26204 | M6: 11668 | N6: 20809 | O6: =SUM(C6:N6) -> 2364367 | Q6: 211668 | R6: =R$3*12-SUM($Q6:Q6)-SUMPRODUCT(--($C6:$N6<=R$3),R$3-$C6:$N6) -> 247013 | S6: =S$3*12-SUM($Q6:R6)-SUMPRODUCT(--($C6:$N6<=S$3),S$3-$C6:$N6) -> 1553242 | T6: =T$3*12-SUM($Q6:S6)-SUMPRODUCT(--($C6:$N6<=T$3),T$3-$C6:$N6) -> 352444 | U6: =U$3*12-SUM($Q6:T6)-SUMPRODUCT(--($C6:$N6<=U$3),U$3-$C6:$N6) -> 0 | W6: =IF(O6<250000,(250000-O6)*'Att A pg 7'!$E$56,0) -> 0 | X6: =IF(O6<250000,(250000-O6)*'Att A pg 7'!$K$56,0) -> 0 | Y6: =Q6*'Att A pg 7'!$D$51+'Big Schedules'!R6*'Att A pg 7'!$D$52+'Big Schedules'!S6*'Att A pg 7'!$D$53+'Big Schedules'!T6*'Att A pg 7'!$D$54+'Big Schedules'!U6*'Att A pg 7'!$D$55+'Att A pg 7'!$D$49*12+W6 -> 246038.814 | Z6: =Q6*'Att A pg 7'!$K$51+'Big Schedules'!R6*'Att A pg 7'!$K$52+'Big Schedules'!S6*'Att A pg 7'!$K$53+'Big Schedules'!T6*'Att A pg 7'!$K$54+'Big Schedules'!U6*'Att A pg 7'!$K$55+'Att A pg 7'!$K$49*12+X6 -> 249397.651 | AA6: =Z6/Y6-1 -> 0.01365165514
A7: =A6+1 -> 3 | B7: Baker Commodities Inc. | C7: 14471 | D7: 15892 | E7: 14495 | F7: 17891 | G7: 17755 | H7: 17217 | I7: 20948 | J7: 18645 | K7: 16633 | L7: 12172 | M7: 10352 | N7: 9337 | O7: =SUM(C7:N7) -> 185808 | Q7: 184860 | R7: =R$3*12-SUM($Q7:Q7)-SUMPRODUCT(--($C7:$N7<=R$3),R$3-$C7:$N7) -> 948 | S7: =S$3*12-SUM($Q7:R7)-SUMPRODUCT(--($C7:$N7<=S$3),S$3-$C7:$N7) -> 0 | T7: =T$3*12-SUM($Q7:S7)-SUMPRODUCT(--($C7:$N7<=T$3),T$3-$C7:$N7) -> 0 | U7: =U$3*12-SUM($Q7:T7)-SUMPRODUCT(--($C7:$N7<=U$3),U$3-$C7:$N7) -> 0 | W7: =IF(O7<250000,(250000-O7)*'Att A pg 7'!$E$56,0) -> 6999.49568 | X7: =IF(O7<250000,(250000-O7)*'Att A pg 7'!$K$56,0) -> 7098.35136 | Y7: =Q7*'Att A pg 7'!$D$51+'Big Schedules'!R7*'Att A pg 7'!$D$52+'Big Schedules'!S7*'Att A pg 7'!$D$53+'Big Schedules'!T7*'Att A pg 7'!$D$54+'Big Schedules'!U7*'Att A pg 7'!$D$55+'Att A pg 7'!$D$49*12+W7 -> 38159.3072 | Z7: =Q7*'Att A pg 7'!$K$51+'Big Schedules'!R7*'Att A pg 7'!$K$52+'Big Schedules'!S7*'Att A pg 7'!$K$53+'Big Schedules'!T7*'Att A pg 7'!$K$54+'Big Schedules'!U7*'Att A pg 7'!$K$55+'Att A pg 7'!$K$49*12+X7 -> 38581.2792 | AA7: =Z7/Y7-1 -> 0.01105816722
A8: 4 | B8: Ergon Asphalt (frmly Western States) - Valley | C8: 14766 | D8: 12129 | E8: 12793 | F8: 15732 | G8: 3029 | H8: 496 | I8: 1119 | J8: 22343 | K8: 17269 | L8: 18823 | M8: 21593 | N8: 490026 | O8: 630118 | Q8: 156156 | R8: =R$3*12-SUM($Q8:Q8)-SUMPRODUCT(--($C8:$N8<=R$3),R$3-$C8:$N8) -> 33936 | S8: =S$3*12-SUM($Q8:R8)-SUMPRODUCT(--($C8:$N8<=S$3),S$3-$C8:$N8) -> 250000 | T8: =T$3*12-SUM($Q8:S8)-SUMPRODUCT(--($C8:$N8<=T$3),T$3-$C8:$N8) -> 190026 | U8: =U$3*12-SUM($Q8:T8)-SUMPRODUCT(--($C8:$N8<=U$3),U$3-$C8:$N8) -> 0 | W8: =IF(O8<250000,(250000-O8)*'Att A pg 7'!$E$56,0) -> 0 | X8: =IF(O8<250000,(250000-O8)*'Att A pg 7'!$K$56,0) -> 0 | Y8: =Q8*'Att A pg 7'!$D$51+'Big Schedules'!R8*'Att A pg 7'!$D$52+'Big Schedules'!S8*'Att A pg 7'!$D$53+'Big Schedules'!T8*'Att A pg 7'!$D$54+'Big Schedules'!U8*'Att A pg 7'!$D$55+'Att A pg 7'!$D$49*12+W8 -> 73097.92498 | Z8: =Q8*'Att A pg 7'!$K$51+'Big Schedules'!R8*'Att A pg 7'!$K$52+'Big Schedules'!S8*'Att A pg 7'!$K$53+'Big Schedules'!T8*'Att A pg 7'!$K$54+'Big Schedules'!U8*'Att A pg 7'!$K$55+'Att A pg 7'!$K$49*12+X8 -> 74012.63114 | AA8: 0.01251343537
A9: 5 | B9: Inland Northwest Dairies | C9: 16189 | D9: 22506 | E9: 26577 | F9: 28522 | G9: 28252 | H9: 26151 | I9: 25951 | J9: 22848 | K9: 20913 | L9: 17462 | M9: 16980 | N9: 127370 | O9: 379721 | Q9: 230631 | R9: =R$3*12-SUM($Q9:Q9)-SUMPRODUCT(--($C9:$N9<=R$3),R$3-$C9:$N9) -> 71720 | S9: =S$3*12-SUM($Q9:R9)-SUMPRODUCT(--($C9:$N9<=S$3),S$3-$C9:$N9) -> 77370 | T9: =T$3*12-SUM($Q9:S9)-SUMPRODUCT(--($C9:$N9<=T$3),T$3-$C9:$N9) -> 0 | U9: =U$3*12-SUM($Q9:T9)-SUMPRODUCT(--($C9:$N9<=U$3),U$3-$C9:$N9) -> 0 | W9: =IF(O9<250000,(250000-O9)*'Att A pg 7'!$E$56,0) -> 0 | X9: =IF(O9<250000,(250000-O9)*'Att A pg 7'!$K$56,0) -> 0 | Y9: =Q9*'Att A pg 7'!$D$51+'Big Schedules'!R9*'Att A pg 7'!$D$52+'Big Schedules'!S9*'Att A pg 7'!$D$53+'Big Schedules'!T9*'Att A pg 7'!$D$54+'Big Schedules'!U9*'Att A pg 7'!$D$55+'Att A pg 7'!$D$49*12+W9 -> 52093.50256 | Z9: =Q9*'Att A pg 7'!$K$51+'Big Schedules'!R9*'Att A pg 7'!$K$52+'Big Schedules'!S9*'Att A pg 7'!$K$53+'Big Schedules'!T9*'Att A pg 7'!$K$54+'Big Schedules'!U9*'Att A pg 7'!$K$55+'Att A pg 7'!$K$49*12+X9 -> 52712.7936 | AA9: 0.01188806683
A10: 6 | B10: Central Pre-Mix Block | C10: 29237 | D10: 37791 | E10: 30698 | F10: 25559 | G10: 25811 | H10: 30673 | I10: 36586 | J10: 38479 | K10: 39157 | L10: 32864 | M10: 25298 | N10: 32513 | O10: 384666 | Q10: 240000 | R10: =R$3*12-SUM($Q10:Q10)-SUMPRODUCT(--($C10:$N10<=R$3),R$3-$C10:$N10) -> 144666 | S10: =S$3*12-SUM($Q10:R10)-SUMPRODUCT(--($C10:$N10<=S$3),S$3-$C10:$N10) -> 0 | T10: =T$3*12-SUM($Q10:S10)-SUMPRODUCT(--($C10:$N10<=T$3),T$3-$C10:$N10) -> 0 | U10: =U$3*12-SUM($Q10:T10)-SUMPRODUCT(--($C10:$N10<=U$3),U$3-$C10:$N10) -> 0 | W10: =IF(O10<250000,(250000-O10)*'Att A pg 7'!$E$56,0) -> 0 | X10: =IF(O10<250000,(250000-O10)*'Att A pg 7'!$K$56,0) -> 0 | Y10: =Q10*'Att A pg 7'!$D$51+'Big Schedules'!R10*'Att A pg 7'!$D$52+'Big Schedules'!S10*'Att A pg 7'!$D$53+'Big Schedules'!T10*'Att A pg 7'!$D$54+'Big Schedules'!U10*'Att A pg 7'!$D$55+'Att A pg 7'!$D$49*12+W10 -> 53588.78064 | Z10: =Q10*'Att A pg 7'!$K$51+'Big Schedules'!R10*'Att A pg 7'!$K$52+'Big Schedules'!S10*'Att A pg 7'!$K$53+'Big Schedules'!T10*'Att A pg 7'!$K$54+'Big Schedules'!U10*'Att A pg 7'!$K$55+'Att A pg 7'!$K$49*12+X10 -> 54229.16628 | AA10: 0.01194999461
A11: 7 | B11: Johanna Beverage Co | C11: 30084 | D11: 30866 | E11: 29262 | F11: 30137 | G11: 27593 | H11: 25911 | I11: 31023 | J11: 26748 | K11: 24949 | L11: 23652 | M11: 22917 | N11: 4631 | O11: 307773 | Q11: 224631 | R11: =R$3*12-SUM($Q11:Q11)-SUMPRODUCT(--($C11:$N11<=R$3),R$3-$C11:$N11) -> 83142 | S11: =S$3*12-SUM($Q11:R11)-SUMPRODUCT(--($C11:$N11<=S$3),S$3-$C11:$N11) -> 0 | T11: =T$3*12-SUM($Q11:S11)-SUMPRODUCT(--($C11:$N11<=T$3),T$3-$C11:$N11) -> 0 | U11: =U$3*12-SUM($Q11:T11)-SUMPRODUCT(--($C11:$N11<=U$3),U$3-$C11:$N11) -> 0 | W11: =IF(O11<250000,(250000-O11)*'Att A pg 7'!$E$56,0) -> 0 | X11: =IF(O11<250000,(250000-O11)*'Att A pg 7'!$K$56,0) -> 0 | Y11: =Q11*'Att A pg 7'!$D$51+'Big Schedules'!R11*'Att A pg 7'!$D$52+'Big Schedules'!S11*'Att A pg 7'!$D$53+'Big Schedules'!T11*'Att A pg 7'!$D$54+'Big Schedules'!U11*'Att A pg 7'!$D$55+'Att A pg 7'!$D$49*12+W11 -> 44996.57904 | Z11: =Q11*'Att A pg 7'!$K$51+'Big Schedules'!R11*'Att A pg 7'!$K$52+'Big Schedules'!S11*'Att A pg 7'!$K$53+'Big Schedules'!T11*'Att A pg 7'!$K$54+'Big Schedules'!U11*'Att A pg 7'!$K$55+'Att A pg 7'!$K$49*12+X11 -> 45515.47566 | AA11: 0.01153191267
A12: 8 | B12: Holy Family Hospital | C12: 40476 | D12: 54566 | E12: 62847 | F12: 74427 | G12: 70781 | H12: 71281 | I12: 61130 | J12: 50038 | K12: 48404 | L12: 39156 | M12: 36163 | N12: 86208 | O12: 695477 | Q12: 240000 | R12: =R$3*12-SUM($Q12:Q12)-SUMPRODUCT(--($C12:$N12<=R$3),R$3-$C12:$N12) -> 324199 | S12: =S$3*12-SUM($Q12:R12)-SUMPRODUCT(--($C12:$N12<=S$3),S$3-$C12:$N12) -> 131278 | T12: =T$3*12-SUM($Q12:S12)-SUMPRODUCT(--($C12:$N12<=T$3),T$3-$C12:$N12) -> 0 | U12: =U$3*12-SUM($Q12:T12)-SUMPRODUCT(--($C12:$N12<=U$3),U$3-$C12:$N12) -> 0 | W12: =IF(O12<250000,(250000-O12)*'Att A pg 7'!$E$56,0) -> 0 | X12: =IF(O12<250000,(250000-O12)*'Att A pg 7'!$K$56,0) -> 0 | Y12: =Q12*'Att A pg 7'!$D$51+'Big Schedules'!R12*'Att A pg 7'!$D$52+'Big Schedules'!S12*'Att A pg 7'!$D$53+'Big Schedules'!T12*'Att A pg 7'!$D$54+'Big Schedules'!U12*'Att A pg 7'!$D$55+'Att A pg 7'!$D$49*12+W12 -> 86072.31192 | Z12: =Q12*'Att A pg 7'!$K$51+'Big Schedules'!R12*'Att A pg 7'!$K$52+'Big Schedules'!S12*'Att A pg 7'!$K$53+'Big Schedules'!T12*'Att A pg 7'!$K$54+'Big Schedules'!U12*'Att A pg 7'!$K$55+'Att A pg 7'!$K$49*12+X12 -> 87171.6548 | AA12: 0.01277231732
A13: 9 | B13: Spokane Steel Foundry | C13: 19705 | D13: 13490 | E13: 19225 | F13: 19800 | G13: 28675 | H13: 31284 | I13: 36246 | J13: 27373 | K13: 29289 | L13: 25376 | M13: 21318 | N13: 7118 | O13: 278899 | Q13: 219338 | R13: =R$3*12-SUM($Q13:Q13)-SUMPRODUCT(--($C13:$N13<=R$3),R$3-$C13:$N13) -> 59561 | S13: =S$3*12-SUM($Q13:R13)-SUMPRODUCT(--($C13:$N13<=S$3),S$3-$C13:$N13) -> 0 | T13: =T$3*12-SUM($Q13:S13)-SUMPRODUCT(--($C13:$N13<=T$3),T$3-$C13:$N13) -> 0 | U13: =U$3*12-SUM($Q13:T13)-SUMPRODUCT(--($C13:$N13<=U$3),U$3-$C13:$N13) -> 0 | W13: =IF(O13<250000,(250000-O13)*'Att A pg 7'!$E$56,0) -> 0 | X13: =IF(O13<250000,(250000-O13)*'Att A pg 7'!$K$56,0) -> 0 | Y13: =Q13*'Att A pg 7'!$D$51+'Big Schedules'!R13*'Att A pg 7'!$D$52+'Big Schedules'!S13*'Att A pg 7'!$D$53+'Big Schedules'!T13*'Att A pg 7'!$D$54+'Big Schedules'!U13*'Att A pg 7'!$D$55+'Att A pg 7'!$D$49*12+W13 -> 41776.59672 | Z13: =Q13*'Att A pg 7'!$K$51+'Big Schedules'!R13*'Att A pg 7'!$K$52+'Big Schedules'!S13*'Att A pg 7'!$K$53+'Big Schedules'!T13*'Att A pg 7'!$K$54+'Big Schedules'!U13*'Att A pg 7'!$K$55+'Att A pg 7'!$K$49*12+X13 -> 42249.96878 | AA13: 0.01133103453
A14: 10 | B14: Huntwood Industries | C14: 35363 | D14: 43530 | E14: 50583 | F14: 59548 | G14: 65496 | H14: 61798 | I14: 64862 | J14: 58865 | K14: 47596 | L14: 48667 | M14: 35081 | N14: 112674 | O14: 684063 | Q14: 240000 | R14: =R$3*12-SUM($Q14:Q14)-SUMPRODUCT(--($C14:$N14<=R$3),R$3-$C14:$N14) -> 320237 | S14: =S$3*12-SUM($Q14:R14)-SUMPRODUCT(--($C14:$N14<=S$3),S$3-$C14:$N14) -> 123826 | T14: =T$3*12-SUM($Q14:S14)-SUMPRODUCT(--($C14:$N14<=T$3),T$3-$C14:$N14) -> 0 | U14: =U$3*12-SUM($Q14:T14)-SUMPRODUCT(--($C14:$N14<=U$3),U$3-$C14:$N14) -> 0 | W14: =IF(O14<250000,(250000-O14)*'Att A pg 7'!$E$56,0) -> 0 | X14: =IF(O14<250000,(250000-O14)*'Att A pg 7'!$K$56,0) -> 0 | Y14: =Q14*'Att A pg 7'!$D$51+'Big Schedules'!R14*'Att A pg 7'!$D$52+'Big Schedules'!S14*'Att A pg 7'!$D$53+'Big Schedules'!T14*'Att A pg 7'!$D$54+'Big Schedules'!U14*'Att A pg 7'!$D$55+'Att A pg 7'!$D$49*12+W14 -> 84907.6148 | Z14: =Q14*'Att A pg 7'!$K$51+'Big Schedules'!R14*'Att A pg 7'!$K$52+'Big Schedules'!S14*'Att A pg 7'!$K$53+'Big Schedules'!T14*'Att A pg 7'!$K$54+'Big Schedules'!U14*'Att A pg 7'!$K$55+'Att A pg 7'!$K$49*12+X14 -> 85990.49792 | AA14: 0.01275366317
A15: 11 | B15: Ergon Asphalt (frmly Western States) - Hillyard | C15: 69243 | D15: 68178 | E15: 58180 | F15: 32809 | G15: 35101 | H15: 59791 | I15: 101009 | J15: 85175 | K15: 73635 | L15: 67989 | M15: 70349 | N15: 71288 | O15: 792747 | Q15: 240000 | R15: =R$3*12-SUM($Q15:Q15)-SUMPRODUCT(--($C15:$N15<=R$3),R$3-$C15:$N15) -> 327910 | S15: =S$3*12-SUM($Q15:R15)-SUMPRODUCT(--($C15:$N15<=S$3),S$3-$C15:$N15) -> 224837 | T15: =T$3*12-SUM($Q15:S15)-SUMPRODUCT(--($C15:$N15<=T$3),T$3-$C15:$N15) -> 0 | U15: =U$3*12-SUM($Q15:T15)-SUMPRODUCT(--($C15:$N15<=U$3),U$3-$C15:$N15) -> 0 | W15: =IF(O15<250000,(250000-O15)*'Att A pg 7'!$E$56,0) -> 0 | X15: =IF(O15<250000,(250000-O15)*'Att A pg 7'!$K$56,0) -> 0 | Y15: =Q15*'Att A pg 7'!$D$51+'Big Schedules'!R15*'Att A pg 7'!$D$52+'Big Schedules'!S15*'Att A pg 7'!$D$53+'Big Schedules'!T15*'Att A pg 7'!$D$54+'Big Schedules'!U15*'Att A pg 7'!$D$55+'Att A pg 7'!$D$49*12+W15 -> 95675.68024 | Z15: =Q15*'Att A pg 7'!$K$51+'Big Schedules'!R15*'Att A pg 7'!$K$52+'Big Schedules'!S15*'Att A pg 7'!$K$53+'Big Schedules'!T15*'Att A pg 7'!$K$54+'Big Schedules'!U15*'Att A pg 7'!$K$55+'Att A pg 7'!$K$49*12+X15 -> 96910.78507 | AA15: 0.01290928716
A16: 12 | B16: Hollister-Stier Laboratories | C16: 33321 | D16: 45732 | E16: 45376 | F16: 51338 | G16: 49671 | H16: 47723 | I16: 41513 | J16: 41017 | K16: 41673 | L16: 37344 | M16: 37409 | N16: 19626 | O16: 491743 | Q16: 239626 | R16: =R$3*12-SUM($Q16:Q16)-SUMPRODUCT(--($C16:$N16<=R$3),R$3-$C16:$N16) -> 250779 | S16: =S$3*12-SUM($Q16:R16)-SUMPRODUCT(--($C16:$N16<=S$3),S$3-$C16:$N16) -> 1338 | T16: =T$3*12-SUM($Q16:S16)-SUMPRODUCT(--($C16:$N16<=T$3),T$3-$C16:$N16) -> 0 | U16: =U$3*12-SUM($Q16:T16)-SUMPRODUCT(--($C16:$N16<=U$3),U$3-$C16:$N16) -> 0 | W16: =IF(O16<250000,(250000-O16)*'Att A pg 7'!$E$56,0) -> 0 | X16: =IF(O16<250000,(250000-O16)*'Att A pg 7'!$K$56,0) -> 0 | Y16: =Q16*'Att A pg 7'!$D$51+'Big Schedules'!R16*'Att A pg 7'!$D$52+'Big Schedules'!S16*'Att A pg 7'!$D$53+'Big Schedules'!T16*'Att A pg 7'!$D$54+'Big Schedules'!U16*'Att A pg 7'!$D$55+'Att A pg 7'!$D$49*12+W16 -> 65245.05688 | Z16: =Q16*'Att A pg 7'!$K$51+'Big Schedules'!R16*'Att A pg 7'!$K$52+'Big Schedules'!S16*'Att A pg 7'!$K$53+'Big Schedules'!T16*'Att A pg 7'!$K$54+'Big Schedules'!U16*'Att A pg 7'!$K$55+'Att A pg 7'!$K$49*12+X16 -> 66050.0656 | AA16: 0.01233823309
A17: 13 | B17: Inland Asphalt Co (Sullivan) | C17: 22080 | D17: 33839 | E17: 9796 | F17: 0 | G17: 0 | H17: 0 | I17: 2 | J17: 51867 | K17: 54887 | L17: 61560 | M17: 80281 | N17: 36638 | O17: 350950 | Q17: 149798 | R17: =R$3*12-SUM($Q17:Q17)-SUMPRODUCT(--($C17:$N17<=R$3),R$3-$C17:$N17) -> 152557 | S17: =S$3*12-SUM($Q17:R17)-SUMPRODUCT(--($C17:$N17<=S$3),S$3-$C17:$N17) -> 48595 | T17: =T$3*12-SUM($Q17:S17)-SUMPRODUCT(--($C17:$N17<=T$3),T$3-$C17:$N17) -> 0 | U17: =U$3*12-SUM($Q17:T17)-SUMPRODUCT(--($C17:$N17<=U$3),U$3-$C17:$N17) -> 0 | W17: =IF(O17<250000,(250000-O17)*'Att A pg 7'!$E$56,0) -> 0 | X17: =IF(O17<250000,(250000-O17)*'Att A pg 7'!$K$56,0) -> 0 | Y17: =Q17*'Att A pg 7'!$D$51+'Big Schedules'!R17*'Att A pg 7'!$D$52+'Big Schedules'!S17*'Att A pg 7'!$D$53+'Big Schedules'!T17*'Att A pg 7'!$D$54+'Big Schedules'!U17*'Att A pg 7'!$D$55+'Att A pg 7'!$D$49*12+W17 -> 48171.91856 | Z17: =Q17*'Att A pg 7'!$K$51+'Big Schedules'!R17*'Att A pg 7'!$K$52+'Big Schedules'!S17*'Att A pg 7'!$K$53+'Big Schedules'!T17*'Att A pg 7'!$K$54+'Big Schedules'!U17*'Att A pg 7'!$K$55+'Att A pg 7'!$K$49*12+X17 -> 48735.05191 | AA17: 0.01169007519
A18: 14 | B18: Valley Hosp & Medical Ctr | C18: 19633 | D18: 27348 | E18: 35632 | F18: 36214 | G18: 36158 | H18: 37221 | I18: 33824 | J18: 29555 | K18: 23768 | L18: 18085 | M18: 17094 | N18: 6315 | O18: 320847 | Q18: 221127 | R18: =R$3*12-SUM($Q18:Q18)-SUMPRODUCT(--($C18:$N18<=R$3),R$3-$C18:$N18) -> 99720 | S18: =S$3*12-SUM($Q18:R18)-SUMPRODUCT(--($C18:$N18<=S$3),S$3-$C18:$N18) -> 0 | T18: =T$3*12-SUM($Q18:S18)-SUMPRODUCT(--($C18:$N18<=T$3),T$3-$C18:$N18) -> 0 | U18: =U$3*12-SUM($Q18:T18)-SUMPRODUCT(--($C18:$N18<=U$3),U$3-$C18:$N18) -> 0 | W18: =IF(O18<250000,(250000-O18)*'Att A pg 7'!$E$56,0) -> 0 | X18: =IF(O18<250000,(250000-O18)*'Att A pg 7'!$K$56,0) -> 0 | Y18: =Q18*'Att A pg 7'!$D$51+'Big Schedules'!R18*'Att A pg 7'!$D$52+'Big Schedules'!S18*'Att A pg 7'!$D$53+'Big Schedules'!T18*'Att A pg 7'!$D$54+'Big Schedules'!U18*'Att A pg 7'!$D$55+'Att A pg 7'!$D$49*12+W18 -> 46374.79392 | Z18: =Q18*'Att A pg 7'!$K$51+'Big Schedules'!R18*'Att A pg 7'!$K$52+'Big Schedules'!S18*'Att A pg 7'!$K$53+'Big Schedules'!T18*'Att A pg 7'!$K$54+'Big Schedules'!U18*'Att A pg 7'!$K$55+'Att A pg 7'!$K$49*12+X18 -> 46913.1237 | AA18: 0.01160824091
A19: 15 | B19: Inland Empire Paper Co | C19: 0 | D19: 98829 | E19: 0 | F19: 0 | G19: 0 | H19: 0 | I19: 0 | J19: 0 | K19: 0 | L19: 125 | M19: 158495 | N19: 38448 | O19: 295897 | Q19: 60125 | R19: =R$3*12-SUM($Q19:Q19)-SUMPRODUCT(--($C19:$N19<=R$3),R$3-$C19:$N19) -> 78448 | S19: =S$3*12-SUM($Q19:R19)-SUMPRODUCT(--($C19:$N19<=S$3),S$3-$C19:$N19) -> 157324 | T19: =T$3*12-SUM($Q19:S19)-SUMPRODUCT(--($C19:$N19<=T$3),T$3-$C19:$N19) -> 0 | U19: =U$3*12-SUM($Q19:T19)-SUMPRODUCT(--($C19:$N19<=U$3),U$3-$C19:$N19) -> 0 | W19: =IF(O19<250000,(250000-O19)*'Att A pg 7'!$E$56,0) -> 0 | X19: =IF(O19<250000,(250000-O19)*'Att A pg 7'!$K$56,0) -> 0 | Y19: =Q19*'Att A pg 7'!$D$51+'Big Schedules'!R19*'Att A pg 7'!$D$52+'Big Schedules'!S19*'Att A pg 7'!$D$53+'Big Schedules'!T19*'Att A pg 7'!$D$54+'Big Schedules'!U19*'Att A pg 7'!$D$55+'Att A pg 7'!$D$49*12+W19 -> 39790.9856 | Z19: =Q19*'Att A pg 7'!$K$51+'Big Schedules'!R19*'Att A pg 7'!$K$52+'Big Schedules'!S19*'Att A pg 7'!$K$53+'Big Schedules'!T19*'Att A pg 7'!$K$54+'Big Schedules'!U19*'Att A pg 7'!$K$55+'Att A pg 7'!$K$49*12+X19 -> 40235.09338 | AA19: 0.01116101482
A20: 16 | B20: Quarry Tile Co | C20: 46135 | D20: 51167 | E20: 50585 | F20: 55566 | G20: 52753 | H20: 61010 | I20: 53682 | J20: 48885 | K20: 48286 | L20: 50467 | M20: 42949 | N20: 37725 | O20: =SUM(C20:N20) -> 599210 | Q20: 240000 | R20: =R$3*12-SUM($Q20:Q20)-SUMPRODUCT(--($C20:$N20<=R$3),R$3-$C20:$N20) -> 333980 | S20: =S$3*12-SUM($Q20:R20)-SUMPRODUCT(--($C20:$N20<=S$3),S$3-$C20:$N20) -> 25230 | T20: =T$3*12-SUM($Q20:S20)-SUMPRODUCT(--($C20:$N20<=T$3),T$3-$C20:$N20) -> 0 | U20: =U$3*12-SUM($Q20:T20)-SUMPRODUCT(--($C20:$N20<=U$3),U$3-$C20:$N20) -> 0 | W20: =IF(O20<250000,(250000-O20)*'Att A pg 7'!$E$56,0) -> 0 | X20: =IF(O20<250000,(250000-O20)*'Att A pg 7'!$K$56,0) -> 0 | Y20: =Q20*'Att A pg 7'!$D$51+'Big Schedules'!R20*'Att A pg 7'!$D$52+'Big Schedules'!S20*'Att A pg 7'!$D$53+'Big Schedules'!T20*'Att A pg 7'!$D$54+'Big Schedules'!U20*'Att A pg 7'!$D$55+'Att A pg 7'!$D$49*12+W20 -> 76712.1928 | Z20: =Q20*'Att A pg 7'!$K$51+'Big Schedules'!R20*'Att A pg 7'!$K$52+'Big Schedules'!S20*'Att A pg 7'!$K$53+'Big Schedules'!T20*'Att A pg 7'!$K$54+'Big Schedules'!U20*'Att A pg 7'!$K$55+'Att A pg 7'!$K$49*12+X20 -> 77679.1917 | AA20: =Z20/Y20-1 -> 0.01260554372
A21: 17 | B21: Northern Quest Casino | C21: 39895 | D21: 63212 | E21: 79674 | F21: 100720 | G21: 97924 | H21: 97305 | I21: 74665 | J21: 56990 | K21: 49062 | L21: 41099 | M21: 39393 | N21: 45068 | O21: =SUM(C21:N21) -> 785007 | Q21: 240000 | R21: =R$3*12-SUM($Q21:Q21)-SUMPRODUCT(--($C21:$N21<=R$3),R$3-$C21:$N21) -> 324517 | S21: =S$3*12-SUM($Q21:R21)-SUMPRODUCT(--($C21:$N21<=S$3),S$3-$C21:$N21) -> 220490 | T21: =T$3*12-SUM($Q21:S21)-SUMPRODUCT(--($C21:$N21<=T$3),T$3-$C21:$N21) -> 0 | U21: =U$3*12-SUM($Q21:T21)-SUMPRODUCT(--($C21:$N21<=U$3),U$3-$C21:$N21) -> 0 | W21: =IF(O21<250000,(250000-O21)*'Att A pg 7'!$E$56,0) -> 0 | X21: =IF(O21<250000,(250000-O21)*'Att A pg 7'!$K$56,0) -> 0 | Y21: =Q21*'Att A pg 7'!$D$51+'Big Schedules'!R21*'Att A pg 7'!$D$52+'Big Schedules'!S21*'Att A pg 7'!$D$53+'Big Schedules'!T21*'Att A pg 7'!$D$54+'Big Schedules'!U21*'Att A pg 7'!$D$55+'Att A pg 7'!$D$49*12+W21 -> 94878.31048 | Z21: =Q21*'Att A pg 7'!$K$51+'Big Schedules'!R21*'Att A pg 7'!$K$52+'Big Schedules'!S21*'Att A pg 7'!$K$53+'Big Schedules'!T21*'Att A pg 7'!$K$54+'Big Schedules'!U21*'Att A pg 7'!$K$55+'Att A pg 7'!$K$49*12+X21 -> 96102.14776 | AA21: 0.01289902059
A22: 18 | B22: Whitworth University | C22: 17100 | D22: 33845 | E22: 45590 | F22: 52782 | G22: 52828 | H22: 51435 | I22: 43767 | J22: 31363 | K22: 22604 | L22: 13482 | M22: 10987 | N22: 40145 | O22: 415928 | Q22: 221569 | R22: =R$3*12-SUM($Q22:Q22)-SUMPRODUCT(--($C22:$N22<=R$3),R$3-$C22:$N22) -> 187314 | S22: =S$3*12-SUM($Q22:R22)-SUMPRODUCT(--($C22:$N22<=S$3),S$3-$C22:$N22) -> 7045 | T22: =T$3*12-SUM($Q22:S22)-SUMPRODUCT(--($C22:$N22<=T$3),T$3-$C22:$N22) -> 0 | U22: =U$3*12-SUM($Q22:T22)-SUMPRODUCT(--($C22:$N22<=U$3),U$3-$C22:$N22) -> 0 | W22: =IF(O22<250000,(250000-O22)*'Att A pg 7'!$E$56,0) -> 0 | X22: =IF(O22<250000,(250000-O22)*'Att A pg 7'!$K$56,0) -> 0 | Y22: =Q22*'Att A pg 7'!$D$51+'Big Schedules'!R22*'Att A pg 7'!$D$52+'Big Schedules'!S22*'Att A pg 7'!$D$53+'Big Schedules'!T22*'Att A pg 7'!$D$54+'Big Schedules'!U22*'Att A pg 7'!$D$55+'Att A pg 7'!$D$49*12+W22 -> 56672.8796 | Z22: =Q22*'Att A pg 7'!$K$51+'Big Schedules'!R22*'Att A pg 7'!$K$52+'Big Schedules'!S22*'Att A pg 7'!$K$53+'Big Schedules'!T22*'Att A pg 7'!$K$54+'Big Schedules'!U22*'Att A pg 7'!$K$55+'Att A pg 7'!$K$49*12+X22 -> 57356.66577 | AA22: 0.0120654919
A23: 19 | B23: Goodrich | C23: 297197 | D23: 472911 | E23: 270810 | F23: 264849 | G23: 352632 | H23: 451552 | I23: 481260 | J23: 372968 | K23: 429086 | L23: 453697 | M23: 491283 | N23: 44707 | O23: 4382952 | Q23: 240000 | R23: =R$3*12-SUM($Q23:Q23)-SUMPRODUCT(--($C23:$N23<=R$3),R$3-$C23:$N23) -> 354707 | S23: =S$3*12-SUM($Q23:R23)-SUMPRODUCT(--($C23:$N23<=S$3),S$3-$C23:$N23) -> 2682856 | T23: =T$3*12-SUM($Q23:S23)-SUMPRODUCT(--($C23:$N23<=T$3),T$3-$C23:$N23) -> 1105389 | U23: =U$3*12-SUM($Q23:T23)-SUMPRODUCT(--($C23:$N23<=U$3),U$3-$C23:$N23) -> 0 | W23: =IF(O23<250000,(250000-O23)*'Att A pg 7'!$E$56,0) -> 0 | X23: =IF(O23<250000,(250000-O23)*'Att A pg 7'!$K$56,0) -> 0 | Y23: =Q23*'Att A pg 7'!$D$51+'Big Schedules'!R23*'Att A pg 7'!$D$52+'Big Schedules'!S23*'Att A pg 7'!$D$53+'Big Schedules'!T23*'Att A pg 7'!$D$54+'Big Schedules'!U23*'Att A pg 7'!$D$55+'Att A pg 7'!$D$49*12+W23 -> 440783.075 | Z23: =Q23*'Att A pg 7'!$K$51+'Big Schedules'!R23*'Att A pg 7'!$K$52+'Big Schedules'!S23*'Att A pg 7'!$K$53+'Big Schedules'!T23*'Att A pg 7'!$K$54+'Big Schedules'!U23*'Att A pg 7'!$K$55+'Att A pg 7'!$K$49*12+X23 -> 446890.9915 | AA23: 0.01385696704
A24: 20 | B24: Franz Bakery | C24: 32118 | D24: 41671 | E24: 42254 | F24: 41866 | G24: 46087 | H24: 41291 | I24: 42894 | J24: 42592 | K24: 36849 | L24: 35782 | M24: 35405 | N24: 3258 | O24: 442067 | Q24: 223258 | R24: =R$3*12-SUM($Q24:Q24)-SUMPRODUCT(--($C24:$N24<=R$3),R$3-$C24:$N24) -> 218809 | S24: =S$3*12-SUM($Q24:R24)-SUMPRODUCT(--($C24:$N24<=S$3),S$3-$C24:$N24) -> 0 | T24: =T$3*12-SUM($Q24:S24)-SUMPRODUCT(--($C24:$N24<=T$3),T$3-$C24:$N24) -> 0 | U24: =U$3*12-SUM($Q24:T24)-SUMPRODUCT(--($C24:$N24<=U$3),U$3-$C24:$N24) -> 0 | W24: =IF(O24<250000,(250000-O24)*'Att A pg 7'!$E$56,0) -> 0 | X24: =IF(O24<250000,(250000-O24)*'Att A pg 7'!$K$56,0) -> 0 | Y24: =Q24*'Att A pg 7'!$D$51+'Big Schedules'!R24*'Att A pg 7'!$D$52+'Big Schedules'!S24*'Att A pg 7'!$D$53+'Big Schedules'!T24*'Att A pg 7'!$D$54+'Big Schedules'!U24*'Att A pg 7'!$D$55+'Att A pg 7'!$D$49*12+W24 -> 59621.43384 | Z24: =Q24*'Att A pg 7'!$K$51+'Big Schedules'!R24*'Att A pg 7'!$K$52+'Big Schedules'!S24*'Att A pg 7'!$K$53+'Big Schedules'!T24*'Att A pg 7'!$K$54+'Big Schedules'!U24*'Att A pg 7'!$K$55+'Att A pg 7'!$K$49*12+X24 -> 60346.86862 | AA24: 0.01216734878
A25: 21 | B25: Inland Asphalt Co (Perry) | C25: 35721 | D25: 37491 | E25: 30283 | F25: 0 | G25: 0 | H25: 0 | I25: 0 | J25: 11255 | K25: 32125 | L25: 31980 | M25: 24301 | N25: 17354 | O25: 220510 | Q25: 148609 | R25: =R$3*12-SUM($Q25:Q25)-SUMPRODUCT(--($C25:$N25<=R$3),R$3-$C25:$N25) -> 71901 | S25: =S$3*12-SUM($Q25:R25)-SUMPRODUCT(--($C25:$N25<=S$3),S$3-$C25:$N25) -> 0 | T25: =T$3*12-SUM($Q25:S25)-SUMPRODUCT(--($C25:$N25<=T$3),T$3-$C25:$N25) -> 0 | U25: =U$3*12-SUM($Q25:T25)-SUMPRODUCT(--($C25:$N25<=U$3),U$3-$C25:$N25) -> 0 | W25: =IF(O25<250000,(250000-O25)*'Att A pg 7'!$E$56,0) -> 3215.5896 | X25: =IF(O25<250000,(250000-O25)*'Att A pg 7'!$K$56,0) -> 3261.0042 | Y25: =Q25*'Att A pg 7'!$D$51+'Big Schedules'!R25*'Att A pg 7'!$D$52+'Big Schedules'!S25*'Att A pg 7'!$D$53+'Big Schedules'!T25*'Att A pg 7'!$D$54+'Big Schedules'!U25*'Att A pg 7'!$D$55+'Att A pg 7'!$D$49*12+W25 -> 37669.19368 | Z25: =Q25*'Att A pg 7'!$K$51+'Big Schedules'!R25*'Att A pg 7'!$K$52+'Big Schedules'!S25*'Att A pg 7'!$K$53+'Big Schedules'!T25*'Att A pg 7'!$K$54+'Big Schedules'!U25*'Att A pg 7'!$K$55+'Att A pg 7'!$K$49*12+X25 -> 38083.91548 | AA25: 0.01100957465
A26: 22 | B26: Boise Cascade Wood Products LLC | C26: 196174 | D26: 265633 | E26: 287920 | F26: 271652 | G26: 321660 | H26: 307649 | I26: 297560 | J26: 246559 | K26: 244332 | L26: 165734 | M26: 141808 | N26: 23116 | O26: =SUM(C26:N26) -> 2769797 | Q26: 240000 | R26: =R$3*12-SUM($Q26:Q26)-SUMPRODUCT(--($C26:$N26<=R$3),R$3-$C26:$N26) -> 333116 | S26: =S$3*12-SUM($Q26:R26)-SUMPRODUCT(--($C26:$N26<=S$3),S$3-$C26:$N26) -> 2167372 | T26: =T$3*12-SUM($Q26:S26)-SUMPRODUCT(--($C26:$N26<=T$3),T$3-$C26:$N26) -> 29309 | U26: =U$3*12-SUM($Q26:T26)-SUMPRODUCT(--($C26:$N26<=U$3),U$3-$C26:$N26) -> 0 | W26: =IF(O26<250000,(250000-O26)*'Att A pg 7'!$E$56,0) -> 0 | X26: =IF(O26<250000,(250000-O26)*'Att A pg 7'!$K$56,0) -> 0 | Y26: =Q26*'Att A pg 7'!$D$51+'Big Schedules'!R26*'Att A pg 7'!$D$52+'Big Schedules'!S26*'Att A pg 7'!$D$53+'Big Schedules'!T26*'Att A pg 7'!$D$54+'Big Schedules'!U26*'Att A pg 7'!$D$55+'Att A pg 7'!$D$49*12+W26 -> 289898.451 | Z26: =Q26*'Att A pg 7'!$K$51+'Big Schedules'!R26*'Att A pg 7'!$K$52+'Big Schedules'!S26*'Att A pg 7'!$K$53+'Big Schedules'!T26*'Att A pg 7'!$K$54+'Big Schedules'!U26*'Att A pg 7'!$K$55+'Att A pg 7'!$K$49*12+X26 -> 293879.2123 | AA26: =Z26/Y26-1 -> 0.01373157126
A27: 23 | B27: Travis Pattern & Foundry | C27: 123240 | D27: 146751 | E27: 145508 | F27: 130835 | G27: 148616 | H27: 151230 | I27: 158996 | J27: 150141 | K27: 141508 | L27: 140472 | M27: 137370 | N27: 24643 | O27: 1599310 | Q27: 240000 | R27: =R$3*12-SUM($Q27:Q27)-SUMPRODUCT(--($C27:$N27<=R$3),R$3-$C27:$N27) -> 334643 | S27: =S$3*12-SUM($Q27:R27)-SUMPRODUCT(--($C27:$N27<=S$3),S$3-$C27:$N27) -> 1024667 | W27: =IF(O27<250000,(250000-O27)*'Att A pg 7'!$E$56,0) -> 0 | X27: =IF(O27<250000,(250000-O27)*'Att A pg 7'!$K$56,0) -> 0 | Y27: =Q27*'Att A pg 7'!$D$51+'Big Schedules'!R27*'Att A pg 7'!$D$52+'Big Schedules'!S27*'Att A pg 7'!$D$53+'Big Schedules'!T27*'Att A pg 7'!$D$54+'Big Schedules'!U27*'Att A pg 7'!$D$55+'Att A pg 7'!$D$49*12+W27 -> 175049.1322 | Z27: =Q27*'Att A pg 7'!$K$51+'Big Schedules'!R27*'Att A pg 7'!$K$52+'Big Schedules'!S27*'Att A pg 7'!$K$53+'Big Schedules'!T27*'Att A pg 7'!$K$54+'Big Schedules'!U27*'Att A pg 7'!$K$55+'Att A pg 7'!$K$49*12+X27 -> 177406.3695 | AA27: 0.01346614702
A28: 24 | B28: Gonzaga University | C28: 16425 | D28: 59528 | E28: 83981 | F28: 98156 | G28: 109431 | H28: 128671 | I28: 88272 | J28: 52678 | K28: 21578 | L28: 4744 | M28: 3865 | N28: 0 | O28: 667329 | Q28: 185034 | R28: =R$3*12-SUM($Q28:Q28)-SUMPRODUCT(--($C28:$N28<=R$3),R$3-$C28:$N28) -> 211578 | S28: =S$3*12-SUM($Q28:R28)-SUMPRODUCT(--($C28:$N28<=S$3),S$3-$C28:$N28) -> 270717 | W28: =IF(O28<250000,(250000-O28)*'Att A pg 7'!$E$56,0) -> 0 | X28: =IF(O28<250000,(250000-O28)*'Att A pg 7'!$K$56,0) -> 0 | Y28: =Q28*'Att A pg 7'!$D$51+'Big Schedules'!R28*'Att A pg 7'!$D$52+'Big Schedules'!S28*'Att A pg 7'!$D$53+'Big Schedules'!T28*'Att A pg 7'!$D$54+'Big Schedules'!U28*'Att A pg 7'!$D$55+'Att A pg 7'!$D$49*12+W28 -> 80765.1276 | Z28: =Q28*'Att A pg 7'!$K$51+'Big Schedules'!R28*'Att A pg 7'!$K$52+'Big Schedules'!S28*'Att A pg 7'!$K$53+'Big Schedules'!T28*'Att A pg 7'!$K$54+'Big Schedules'!U28*'Att A pg 7'!$K$55+'Att A pg 7'!$K$49*12+X28 -> 81789.21351 | AA28: 0.01267980303
A29: 25 | B29: Waste Management Of Spokane | C29: 59138 | D29: 57950 | E29: 55096 | F29: 53503 | G29: 47517 | H29: 47045 | I29: 62895 | J29: 59358 | K29: 55345 | L29: 62944 | M29: 58916 | N29: 85390 | O29: 705097 | Q29: 240000 | R29: =R$3*12-SUM($Q29:Q29)-SUMPRODUCT(--($C29:$N29<=R$3),R$3-$C29:$N29) -> 354562 | S29: =S$3*12-SUM($Q29:R29)-SUMPRODUCT(--($C29:$N29<=S$3),S$3-$C29:$N29) -> 110535 | W29: =IF(O29<250000,(250000-O29)*'Att A pg 7'!$E$56,0) -> 0 | X29: =IF(O29<250000,(250000-O29)*'Att A pg 7'!$K$56,0) -> 0 | Y29: =Q29*'Att A pg 7'!$D$51+'Big Schedules'!R29*'Att A pg 7'!$D$52+'Big Schedules'!S29*'Att A pg 7'!$D$53+'Big Schedules'!T29*'Att A pg 7'!$D$54+'Big Schedules'!U29*'Att A pg 7'!$D$55+'Att A pg 7'!$D$49*12+W29 -> 87343.64168 | Z29: =Q29*'Att A pg 7'!$K$51+'Big Schedules'!R29*'Att A pg 7'!$K$52+'Big Schedules'!S29*'Att A pg 7'!$K$53+'Big Schedules'!T29*'Att A pg 7'!$K$54+'Big Schedules'!U29*'Att A pg 7'!$K$55+'Att A pg 7'!$K$49*12+X29 -> 88460.91081 | AA29: 0.01279164812
A30: 26 | B30: Purina Mills Inc | C30: 10807 | D30: 12422 | E30: 13287 | F30: 17080 | G30: 14352 | H30: 13506 | I30: 13484 | J30: 10731 | K30: 10468 | L30: 8925 | M30: 8502 | N30: 39836 | O30: =SUM(C30:N30) -> 173400 | Q30: 153564 | R30: =R$3*12-SUM($Q30:Q30)-SUMPRODUCT(--($C30:$N30<=R$3),R$3-$C30:$N30) -> 19836 | S30: =S$3*12-SUM($Q30:R30)-SUMPRODUCT(--($C30:$N30<=S$3),S$3-$C30:$N30) -> 0 | W30: =IF(O30<250000,(250000-O30)*'Att A pg 7'!$E$56,0) -> 8352.464 | X30: =IF(O30<250000,(250000-O30)*'Att A pg 7'!$K$56,0) -> 8470.428 | Y30: =Q30*'Att A pg 7'!$D$51+'Big Schedules'!R30*'Att A pg 7'!$D$52+'Big Schedules'!S30*'Att A pg 7'!$D$53+'Big Schedules'!T30*'Att A pg 7'!$D$54+'Big Schedules'!U30*'Att A pg 7'!$D$55+'Att A pg 7'!$D$49*12+W30 -> 37736.18528 | Z30: =Q30*'Att A pg 7'!$K$51+'Big Schedules'!R30*'Att A pg 7'!$K$52+'Big Schedules'!S30*'Att A pg 7'!$K$53+'Big Schedules'!T30*'Att A pg 7'!$K$54+'Big Schedules'!U30*'Att A pg 7'!$K$55+'Att A pg 7'!$K$49*12+X30 -> 38151.89808 | AA30: =Z30/Y30-1 -> 0.01101629105
A31: 27 | B31: SCC Campus | C31: 10981 | D31: 34027 | E31: 49058 | F31: 60492 | G31: 58254 | H31: 60787 | I31: 44824 | J31: 27632 | K31: 19112 | L31: 9442 | M31: 5005 | N31: 8549 | O31: 388163 | Q31: 193089 | R31: =R$3*12-SUM($Q31:Q31)-SUMPRODUCT(--($C31:$N31<=R$3),R$3-$C31:$N31) -> 165541 | S31: =S$3*12-SUM($Q31:R31)-SUMPRODUCT(--($C31:$N31<=S$3),S$3-$C31:$N31) -> 29533 | W31: =IF(O31<250000,(250000-O31)*'Att A pg 7'!$E$56,0) -> 0 | X31: =IF(O31<250000,(250000-O31)*'Att A pg 7'!$K$56,0) -> 0 | Y31: =Q31*'Att A pg 7'!$D$51+'Big Schedules'!R31*'Att A pg 7'!$D$52+'Big Schedules'!S31*'Att A pg 7'!$D$53+'Big Schedules'!T31*'Att A pg 7'!$D$54+'Big Schedules'!U31*'Att A pg 7'!$D$55+'Att A pg 7'!$D$49*12+W31 -> 53019.26304 | Z31: =Q31*'Att A pg 7'!$K$51+'Big Schedules'!R31*'Att A pg 7'!$K$52+'Big Schedules'!S31*'Att A pg 7'!$K$53+'Big Schedules'!T31*'Att A pg 7'!$K$54+'Big Schedules'!U31*'Att A pg 7'!$K$55+'Att A pg 7'!$K$49*12+X31 -> 53651.22191 | AA31: 0.01191942011
A32: 28 | B32: Shamrock Paving | C32: 21084 | D32: 27438 | E32: 7430 | F32: 0 | G32: 0 | H32: 0 | I32: 145 | J32: 18957 | K32: 29750 | L32: 43062 | M32: 29944 | N32: 47705 | O32: 225515 | Q32: 146532 | R32: =R$3*12-SUM($Q32:Q32)-SUMPRODUCT(--($C32:$N32<=R$3),R$3-$C32:$N32) -> 78983 | S32: =S$3*12-SUM($Q32:R32)-SUMPRODUCT(--($C32:$N32<=S$3),S$3-$C32:$N32) -> 0 | T32: =T$3*12-SUM($Q32:S32)-SUMPRODUCT(--($C32:$N32<=T$3),T$3-$C32:$N32) -> 0 | U32: =U$3*12-SUM($Q32:T32)-SUMPRODUCT(--($C32:$N32<=U$3),U$3-$C32:$N32) -> 0 | W32: =IF(O32<250000,(250000-O32)*'Att A pg 7'!$E$56,0) -> 2669.8444 | X32: =IF(O32<250000,(250000-O32)*'Att A pg 7'!$K$56,0) -> 2707.5513 | Y32: =Q32*'Att A pg 7'!$D$51+'Big Schedules'!R32*'Att A pg 7'!$D$52+'Big Schedules'!S32*'Att A pg 7'!$D$53+'Big Schedules'!T32*'Att A pg 7'!$D$54+'Big Schedules'!U32*'Att A pg 7'!$D$55+'Att A pg 7'!$D$49*12+W32 -> 37641.11264 | Z32: =Q32*'Att A pg 7'!$K$51+'Big Schedules'!R32*'Att A pg 7'!$K$52+'Big Schedules'!S32*'Att A pg 7'!$K$53+'Big Schedules'!T32*'Att A pg 7'!$K$54+'Big Schedules'!U32*'Att A pg 7'!$K$55+'Att A pg 7'!$K$49*12+X32 -> 38055.41904 | AA32: 0.01100675222
A33: 29 | B33: Eastern Washington University | C33: 107382 | D33: 203998 | E33: 264411 | F33: 322863 | G33: 313604 | H33: 327714 | I33: 248527 | J33: 190084 | K33: 151760 | L33: 114125 | M33: 107815 | N33: 131617 | O33: 2483900 | Q33: 240000 | R33: =R$3*12-SUM($Q33:Q33)-SUMPRODUCT(--($C33:$N33<=R$3),R$3-$C33:$N33) -> 360000 | S33: =S$3*12-SUM($Q33:R33)-SUMPRODUCT(--($C33:$N33<=S$3),S$3-$C33:$N33) -> 1819719 | T33: =T$3*12-SUM($Q33:S33)-SUMPRODUCT(--($C33:$N33<=T$3),T$3-$C33:$N33) -> 64181 | U33: =U$3*12-SUM($Q33:T33)-SUMPRODUCT(--($C33:$N33<=U$3),U$3-$C33:$N33) -> 0 | W33: =IF(O33<250000,(250000-O33)*'Att A pg 7'!$E$56,0) -> 0 | X33: =IF(O33<250000,(250000-O33)*'Att A pg 7'!$K$56,0) -> 0 | Y33: =Q33*'Att A pg 7'!$D$51+'Big Schedules'!R33*'Att A pg 7'!$D$52+'Big Schedules'!S33*'Att A pg 7'!$D$53+'Big Schedules'!T33*'Att A pg 7'!$D$54+'Big Schedules'!U33*'Att A pg 7'!$D$55+'Att A pg 7'!$D$49*12+W33 -> 261819.5504 | Z33: =Q33*'Att A pg 7'!$K$51+'Big Schedules'!R33*'Att A pg 7'!$K$52+'Big Schedules'!S33*'Att A pg 7'!$K$53+'Big Schedules'!T33*'Att A pg 7'!$K$54+'Big Schedules'!U33*'Att A pg 7'!$K$55+'Att A pg 7'!$K$49*12+X33 -> 265403.1115 | AA33: 0.01368714095
A34: 30 | B34: Lakeland Village | C34: 30001 | D34: 42849 | E34: 50292 | F34: 58171 | G34: 55340 | H34: 55220 | I34: 49259 | J34: 40969 | K34: 34780 | L34: 27119 | M34: 23186 | N34: 21701 | O34: 488887 | Q34: 240000 | R34: =R$3*12-SUM($Q34:Q34)-SUMPRODUCT(--($C34:$N34<=R$3),R$3-$C34:$N34) -> 229864 | S34: =S$3*12-SUM($Q34:R34)-SUMPRODUCT(--($C34:$N34<=S$3),S$3-$C34:$N34) -> 19023 | T34: =T$3*12-SUM($Q34:S34)-SUMPRODUCT(--($C34:$N34<=T$3),T$3-$C34:$N34) -> 0 | U34: =U$3*12-SUM($Q34:T34)-SUMPRODUCT(--($C34:$N34<=U$3),U$3-$C34:$N34) -> 0 | W34: =IF(O34<250000,(250000-O34)*'Att A pg 7'!$E$56,0) -> 0 | X34: =IF(O34<250000,(250000-O34)*'Att A pg 7'!$K$56,0) -> 0 | Y34: =Q34*'Att A pg 7'!$D$51+'Big Schedules'!R34*'Att A pg 7'!$D$52+'Big Schedules'!S34*'Att A pg 7'!$D$53+'Big Schedules'!T34*'Att A pg 7'!$D$54+'Big Schedules'!U34*'Att A pg 7'!$D$55+'Att A pg 7'!$D$49*12+W34 -> 64749.11192 | Z34: =Q34*'Att A pg 7'!$K$51+'Big Schedules'!R34*'Att A pg 7'!$K$52+'Big Schedules'!S34*'Att A pg 7'!$K$53+'Big Schedules'!T34*'Att A pg 7'!$K$54+'Big Schedules'!U34*'Att A pg 7'!$K$55+'Att A pg 7'!$K$49*12+X34 -> 65547.14445 | AA34: 0.01232499576
A35: 31 | B35: Spokane Falls Campus | C35: 5718 | D35: 21183 | E35: 34354 | F35: 44154 | G35: 41133 | H35: 45435 | I35: 32558 | J35: 18687 | K35: 10153 | L35: 5216 | M35: 1566 | N35: 6578 | O35: 266735 | Q35: 167918 | R35: =R$3*12-SUM($Q35:Q35)-SUMPRODUCT(--($C35:$N35<=R$3),R$3-$C35:$N35) -> 98817 | S35: =S$3*12-SUM($Q35:R35)-SUMPRODUCT(--($C35:$N35<=S$3),S$3-$C35:$N35) -> 0 | T35: =T$3*12-SUM($Q35:S35)-SUMPRODUCT(--($C35:$N35<=T$3),T$3-$C35:$N35) -> 0 | U35: =U$3*12-SUM($Q35:T35)-SUMPRODUCT(--($C35:$N35<=U$3),U$3-$C35:$N35) -> 0 | W35: =IF(O35<250000,(250000-O35)*'Att A pg 7'!$E$56,0) -> 0 | X35: =IF(O35<250000,(250000-O35)*'Att A pg 7'!$K$56,0) -> 0 | Y35: =Q35*'Att A pg 7'!$D$51+'Big Schedules'!R35*'Att A pg 7'!$D$52+'Big Schedules'!S35*'Att A pg 7'!$D$53+'Big Schedules'!T35*'Att A pg 7'!$D$54+'Big Schedules'!U35*'Att A pg 7'!$D$55+'Att A pg 7'!$D$49*12+W35 -> 39755.03576 | Z35: =Q35*'Att A pg 7'!$K$51+'Big Schedules'!R35*'Att A pg 7'!$K$52+'Big Schedules'!S35*'Att A pg 7'!$K$53+'Big Schedules'!T35*'Att A pg 7'!$K$54+'Big Schedules'!U35*'Att A pg 7'!$K$55+'Att A pg 7'!$K$49*12+X35 -> 40199.39126 | AA35: 0.01117733871
A36: 32 | B36: Alsco | C36: 17423 | D36: 19256 | E36: 20049 | F36: 21753 | G36: 20323 | H36: 21185 | I36: 24138 | J36: 22140 | K36: 20098 | L36: 20537 | M36: 19786 | N36: 3054 | O36: 229742 | Q36: 219519 | R36: =R$3*12-SUM($Q36:Q36)-SUMPRODUCT(--($C36:$N36<=R$3),R$3-$C36:$N36) -> 10223 | S36: =S$3*12-SUM($Q36:R36)-SUMPRODUCT(--($C36:$N36<=S$3),S$3-$C36:$N36) -> 0 | T36: =T$3*12-SUM($Q36:S36)-SUMPRODUCT(--($C36:$N36<=T$3),T$3-$C36:$N36) -> 0 | U36: =U$3*12-SUM($Q36:T36)-SUMPRODUCT(--($C36:$N36<=U$3),U$3-$C36:$N36) -> 0 | W36: =IF(O36<250000,(250000-O36)*'Att A pg 7'!$E$56,0) -> 2208.93232 | X36: =IF(O36<250000,(250000-O36)*'Att A pg 7'!$K$56,0) -> 2240.12964 | Y36: =Q36*'Att A pg 7'!$D$51+'Big Schedules'!R36*'Att A pg 7'!$D$52+'Big Schedules'!S36*'Att A pg 7'!$D$53+'Big Schedules'!T36*'Att A pg 7'!$D$54+'Big Schedules'!U36*'Att A pg 7'!$D$55+'Att A pg 7'!$D$49*12+W36 -> 38627.89688 | Z36: =Q36*'Att A pg 7'!$K$51+'Big Schedules'!R36*'Att A pg 7'!$K$52+'Big Schedules'!S36*'Att A pg 7'!$K$53+'Big Schedules'!T36*'Att A pg 7'!$K$54+'Big Schedules'!U36*'Att A pg 7'!$K$55+'Att A pg 7'!$K$49*12+X36 -> 39056.80068 | AA36: 0.01110347274
A37: 33 | B37: Lamb Weston | C37: 68 | D37: 25140 | E37: 81395 | F37: 109496 | G37: 66955 | H37: 66082 | I37: 43475 | J37: 29500 | K37: 2174 | L37: 63 | M37: 0 | N37: 25529 | O37: =SUM(C37:N37) -> 449877 | Q37: 162305 | R37: =R$3*12-SUM($Q37:Q37)-SUMPRODUCT(--($C37:$N37<=R$3),R$3-$C37:$N37) -> 163644 | S37: =S$3*12-SUM($Q37:R37)-SUMPRODUCT(--($C37:$N37<=S$3),S$3-$C37:$N37) -> 123928 | T37: =T$3*12-SUM($Q37:S37)-SUMPRODUCT(--($C37:$N37<=T$3),T$3-$C37:$N37) -> 0 | U37: =U$3*12-SUM($Q37:T37)-SUMPRODUCT(--($C37:$N37<=U$3),U$3-$C37:$N37) -> 0 | W37: =IF(O37<250000,(250000-O37)*'Att A pg 7'!$E$56,0) -> 0 | X37: =IF(O37<250000,(250000-O37)*'Att A pg 7'!$K$56,0) -> 0 | Y37: =Q37*'Att A pg 7'!$D$51+'Big Schedules'!R37*'Att A pg 7'!$D$52+'Big Schedules'!S37*'Att A pg 7'!$D$53+'Big Schedules'!T37*'Att A pg 7'!$D$54+'Big Schedules'!U37*'Att A pg 7'!$D$55+'Att A pg 7'!$D$49*12+W37 -> 58320.44352 | Z37: =Q37*'Att A pg 7'!$K$51+'Big Schedules'!R37*'Att A pg 7'!$K$52+'Big Schedules'!S37*'Att A pg 7'!$K$53+'Big Schedules'!T37*'Att A pg 7'!$K$54+'Big Schedules'!U37*'Att A pg 7'!$K$55+'Att A pg 7'!$K$49*12+X37 -> 59027.1259 | AA37: =Z37/Y37-1 -> 0.01211723261
A38: 34 | B38: Creach Greenhouse | C38: 11018 | D38: 86362 | E38: 47547 | F38: 59152 | G38: 62234 | H38: 108843 | I38: 54393 | J38: 35568 | K38: 16018 | L38: 3646 | M38: 3565 | N38: 149942 | O38: 638288 | Q38: 194247 | R38: =R$3*12-SUM($Q38:Q38)-SUMPRODUCT(--($C38:$N38<=R$3),R$3-$C38:$N38) -> 223115 | S38: =S$3*12-SUM($Q38:R38)-SUMPRODUCT(--($C38:$N38<=S$3),S$3-$C38:$N38) -> 220926 | T38: =T$3*12-SUM($Q38:S38)-SUMPRODUCT(--($C38:$N38<=T$3),T$3-$C38:$N38) -> 0 | U38: =U$3*12-SUM($Q38:T38)-SUMPRODUCT(--($C38:$N38<=U$3),U$3-$C38:$N38) -> 0 | W38: =IF(O38<250000,(250000-O38)*'Att A pg 7'!$E$56,0) -> 0 | X38: =IF(O38<250000,(250000-O38)*'Att A pg 7'!$K$56,0) -> 0 | Y38: =Q38*'Att A pg 7'!$D$51+'Big Schedules'!R38*'Att A pg 7'!$D$52+'Big Schedules'!S38*'Att A pg 7'!$D$53+'Big Schedules'!T38*'Att A pg 7'!$D$54+'Big Schedules'!U38*'Att A pg 7'!$D$55+'Att A pg 7'!$D$49*12+W38 -> 78256.81624 | Z38: =Q38*'Att A pg 7'!$K$51+'Big Schedules'!R38*'Att A pg 7'!$K$52+'Big Schedules'!S38*'Att A pg 7'!$K$53+'Big Schedules'!T38*'Att A pg 7'!$K$54+'Big Schedules'!U38*'Att A pg 7'!$K$55+'Att A pg 7'!$K$49*12+X38 -> 79245.49026 | AA38: 0.01263371125
A39: 35 | B39: Sacred Heart Medical Center | C39: 137539 | D39: 188028 | E39: 219022 | F39: 260092 | G39: 242818 | H39: 245438 | I39: 206362 | J39: 176045 | K39: 151377 | L39: 131231 | M39: 126213 | N39: 17539 | O39: 2101704 | Q39: 237539 | R39: =R$3*12-SUM($Q39:Q39)-SUMPRODUCT(--($C39:$N39<=R$3),R$3-$C39:$N39) -> 330000 | S39: =S$3*12-SUM($Q39:R39)-SUMPRODUCT(--($C39:$N39<=S$3),S$3-$C39:$N39) -> 1534165 | T39: =T$3*12-SUM($Q39:S39)-SUMPRODUCT(--($C39:$N39<=T$3),T$3-$C39:$N39) -> 0 | U39: =U$3*12-SUM($Q39:T39)-SUMPRODUCT(--($C39:$N39<=U$3),U$3-$C39:$N39) -> 0 | W39: =IF(O39<250000,(250000-O39)*'Att A pg 7'!$E$56,0) -> 0 | X39: =IF(O39<250000,(250000-O39)*'Att A pg 7'!$K$56,0) -> 0 | Y39: =Q39*'Att A pg 7'!$D$51+'Big Schedules'!R39*'Att A pg 7'!$D$52+'Big Schedules'!S39*'Att A pg 7'!$D$53+'Big Schedules'!T39*'Att A pg 7'!$D$54+'Big Schedules'!U39*'Att A pg 7'!$D$55+'Att A pg 7'!$D$49*12+W39 -> 224335.0826 | Z39: =Q39*'Att A pg 7'!$K$51+'Big Schedules'!R39*'Att A pg 7'!$K$52+'Big Schedules'!S39*'Att A pg 7'!$K$53+'Big Schedules'!T39*'Att A pg 7'!$K$54+'Big Schedules'!U39*'Att A pg 7'!$K$55+'Att A pg 7'!$K$49*12+X39 -> 227389.0899 | AA39: 0.01361359612
A40: 36 | B40: Veterans Admin Hospital | C40: 37917 | D40: 49178 | E40: 54593 | F40: 64453 | G40: 61521 | H40: 62494 | I40: 58731 | J40: 52424 | K40: 44454 | L40: 38171 | M40: 35663 | N40: 38629 | O40: 598228 | Q40: 240000 | R40: =R$3*12-SUM($Q40:Q40)-SUMPRODUCT(--($C40:$N40<=R$3),R$3-$C40:$N40) -> 304012 | S40: =S$3*12-SUM($Q40:R40)-SUMPRODUCT(--($C40:$N40<=S$3),S$3-$C40:$N40) -> 54216 | T40: =T$3*12-SUM($Q40:S40)-SUMPRODUCT(--($C40:$N40<=T$3),T$3-$C40:$N40) -> 0 | U40: =U$3*12-SUM($Q40:T40)-SUMPRODUCT(--($C40:$N40<=U$3),U$3-$C40:$N40) -> 0 | W40: =IF(O40<250000,(250000-O40)*'Att A pg 7'!$E$56,0) -> 0 | X40: =IF(O40<250000,(250000-O40)*'Att A pg 7'!$K$56,0) -> 0 | Y40: =Q40*'Att A pg 7'!$D$51+'Big Schedules'!R40*'Att A pg 7'!$D$52+'Big Schedules'!S40*'Att A pg 7'!$D$53+'Big Schedules'!T40*'Att A pg 7'!$D$54+'Big Schedules'!U40*'Att A pg 7'!$D$55+'Att A pg 7'!$D$49*12+W40 -> 76294.3856 | Z40: =Q40*'Att A pg 7'!$K$51+'Big Schedules'!R40*'Att A pg 7'!$K$52+'Big Schedules'!S40*'Att A pg 7'!$K$53+'Big Schedules'!T40*'Att A pg 7'!$K$54+'Big Schedules'!U40*'Att A pg 7'!$K$55+'Att A pg 7'!$K$49*12+X40 -> 77255.52432 | AA40: 0.01259776473
A41: 37 | B41: Eastern State Hospital | C41: 11199 | D41: 19628 | E41: 24721 | F41: 29739 | G41: 29378 | H41: 26719 | I41: 23728 | J41: 18182 | K41: 12397 | L41: 6828 | M41: 6104 | N41: 60149 | O41: 268772 | Q41: 194338 | R41: =R$3*12-SUM($Q41:Q41)-SUMPRODUCT(--($C41:$N41<=R$3),R$3-$C41:$N41) -> 64285 | S41: =S$3*12-SUM($Q41:R41)-SUMPRODUCT(--($C41:$N41<=S$3),S$3-$C41:$N41) -> 10149 | T41: =T$3*12-SUM($Q41:S41)-SUMPRODUCT(--($C41:$N41<=T$3),T$3-$C41:$N41) -> 0 | U41: =U$3*12-SUM($Q41:T41)-SUMPRODUCT(--($C41:$N41<=U$3),U$3-$C41:$N41) -> 0 | W41: =IF(O41<250000,(250000-O41)*'Att A pg 7'!$E$56,0) -> 0 | X41: =IF(O41<250000,(250000-O41)*'Att A pg 7'!$K$56,0) -> 0 | Y41: =Q41*'Att A pg 7'!$D$51+'Big Schedules'!R41*'Att A pg 7'!$D$52+'Big Schedules'!S41*'Att A pg 7'!$D$53+'Big Schedules'!T41*'Att A pg 7'!$D$54+'Big Schedules'!U41*'Att A pg 7'!$D$55+'Att A pg 7'!$D$49*12+W41 -> 40225.55136 | Z41: =Q41*'Att A pg 7'!$K$51+'Big Schedules'!R41*'Att A pg 7'!$K$52+'Big Schedules'!S41*'Att A pg 7'!$K$53+'Big Schedules'!T41*'Att A pg 7'!$K$54+'Big Schedules'!U41*'Att A pg 7'!$K$55+'Att A pg 7'!$K$49*12+X41 -> 40676.80549 | AA41: 0.01121809683
A42: 38 | B42: Lane Mt Silica Co | C42: 98436 | D42: 98071 | E42: 97308 | F42: 107019 | G42: 93047 | H42: 108851 | I42: 99370 | J42: 97130 | K42: 99225 | L42: 83281 | M42: 83702 | N42: 11689 | O42: 1077129 | Q42: 231689 | R42: =R$3*12-SUM($Q42:Q42)-SUMPRODUCT(--($C42:$N42<=R$3),R$3-$C42:$N42) -> 330000 | S42: =S$3*12-SUM($Q42:R42)-SUMPRODUCT(--($C42:$N42<=S$3),S$3-$C42:$N42) -> 515440 | T42: =T$3*12-SUM($Q42:S42)-SUMPRODUCT(--($C42:$N42<=T$3),T$3-$C42:$N42) -> 0 | U42: =U$3*12-SUM($Q42:T42)-SUMPRODUCT(--($C42:$N42<=U$3),U$3-$C42:$N42) -> 0 | W42: =IF(O42<250000,(250000-O42)*'Att A pg 7'!$E$56,0) -> 0 | X42: =IF(O42<250000,(250000-O42)*'Att A pg 7'!$K$56,0) -> 0 | Y42: =Q42*'Att A pg 7'!$D$51+'Big Schedules'!R42*'Att A pg 7'!$D$52+'Big Schedules'!S42*'Att A pg 7'!$D$53+'Big Schedules'!T42*'Att A pg 7'!$D$54+'Big Schedules'!U42*'Att A pg 7'!$D$55+'Att A pg 7'!$D$49*12+W42 -> 123457.0646 | Z42: =Q42*'Att A pg 7'!$K$51+'Big Schedules'!R42*'Att A pg 7'!$K$52+'Big Schedules'!S42*'Att A pg 7'!$K$53+'Big Schedules'!T42*'Att A pg 7'!$K$54+'Big Schedules'!U42*'Att A pg 7'!$K$55+'Att A pg 7'!$K$49*12+X42 -> 125084.8651 | AA42: 0.01318515441
O43: 0 | Q43: 0 | R43: =R$3*12-SUM($Q43:Q43)-SUMPRODUCT(--($C43:$N43<=R$3),R$3-$C43:$N43) -> 0 | S43: =S$3*12-SUM($Q43:R43)-SUMPRODUCT(--($C43:$N43<=S$3),S$3-$C43:$N43) -> 0 | T43: =T$3*12-SUM($Q43:S43)-SUMPRODUCT(--($C43:$N43<=T$3),T$3-$C43:$N43) -> 0 | U43: =U$3*12-SUM($Q43:T43)-SUMPRODUCT(--($C43:$N43<=U$3),U$3-$C43:$N43) -> 0
B47: Total WA Sch 146 | C47: =SUM(C5:C46) -> 1782048 | D47: =SUM(D5:D46) -> 2865078 | E47: =SUM(E5:E46) -> 2895484 | F47: 3192839 | G47: 3218284 | H47: 3435588 | I47: 3061225 | J47: 2572892 | K47: 2306224 | L47: 2002070 | M47: 2081810 | N47: 1960700 | O47: =IF(ROUND(SUM(O5:O46),3)<>ROUND(SUM(C47:N47),3),#VALUE!,SUM(C47:N47)) -> 31374242 | Q47: =SUM(Q5:Q46) -> 7930946 | R47: =SUM(R5:R46) -> 7628283 | S47: =SUM(S5:S46) -> 14073664 | T47: =SUM(T5:T46) -> 1741349 | U47: =SUM(U5:U46) -> 0 | W47: =SUM(W5:W46) -> 23446.326 | X47: =SUM(X5:X46) -> 23777.4645 | Y47: =SUM(Y5:Y46) -> 3688514.555 | Z47: =SUM(Z5:Z46) -> 3736184.415 | AA47: 0.01292386388
U48: =SUM(Q47:U47) -> 31374242 | Y48: =(Y47/1000)-'Att A pg 5'!D36 -> 9.130000763e-06 | Z48: =(Z47/1000)-'Att A pg 5'!F36 -> 6.700001904e-07
B49: Revenue Runs | C49: ='12MESEP21'!D169 -> 1782048 | D49: ='12MESEP21'!E169 -> 2865078 | E49: ='12MESEP21'!F169 -> 2895484 | F49: ='12MESEP21'!G169 -> 3192839 | G49: ='12MESEP21'!H169 -> 3218284 | H49: ='12MESEP21'!I169 -> 3435588 | I49: ='12MESEP21'!J169 -> 3061225 | J49: ='12MESEP21'!K169 -> 2572892 | K49: ='12MESEP21'!L169 -> 2306224 | L49: ='12MESEP21'!M169 -> 2002070 | M49: ='12MESEP21'!N169 -> 2081810 | N49: ='12MESEP21'!O169 -> 1960700 | O49: =SUM(C49:N49) -> 31374242 | P49: =#REF! ->  | Q49: 1st | R49: =Q50 -> 200 | S49: =R50 -> 1000 | T49: =S50 -> 10000 | U49: =T50 -> 25000
O50: =SUM(C50:N50) -> 0 | Q50: 200 | R50: 1000 | S50: 10000 | T50: 25000 | U50: 99999999
O51: 0 | Q51: =(Q$50*12-SUMPRODUCT(--($C51:$N51<=Q$50),Q$50-$C51:$N51)) -> 0 | R51: =R$50*12-SUM($Q51:Q51)-SUMPRODUCT(--($C51:$N51<=R$50),R$50-$C51:$N51) -> 0 | S51: =S$50*12-SUM($Q51:R51)-SUMPRODUCT(--($C51:$N51<=S$50),S$50-$C51:$N51) -> 0 | T51: =T$50*12-SUM($Q51:S51)-SUMPRODUCT(--($C51:$N51<=T$50),T$50-$C51:$N51) -> 0 | U51: =U$50*12-SUM($Q51:T51)-SUMPRODUCT(--($C51:$N51<=U$50),U$50-$C51:$N51) -> 0
O52: 0 | Q52: =Q$50*12-SUMPRODUCT(--($C52:$N52<=Q$50),Q$50-$C52:$N52) -> 0 | R52: =R$50*12-SUM($Q52:Q52)-SUMPRODUCT(--($C52:$N52<=R$50),R$50-$C52:$N52) -> 0 | S52: =S$50*12-SUM($Q52:R52)-SUMPRODUCT(--($C52:$N52<=S$50),S$50-$C52:$N52) -> 0 | T52: =T$50*12-SUM($Q52:S52)-SUMPRODUCT(--($C52:$N52<=T$50),T$50-$C52:$N52) -> 0 | U52: =U$61*12-SUM($Q52:T52)-SUMPRODUCT(--($C52:$N52<=U$61),U$61-$C52:$N52) -> 0
O53: 0 | Q53: 0 | R53: =R$50*12-SUM($Q53:Q53)-SUMPRODUCT(--($C53:$N53<=R$50),R$50-$C53:$N53) -> 0 | S53: =S$50*12-SUM($Q53:R53)-SUMPRODUCT(--($C53:$N53<=S$50),S$50-$C53:$N53) -> 0 | T53: =T$50*12-SUM($Q53:S53)-SUMPRODUCT(--($C53:$N53<=T$50),T$50-$C53:$N53) -> 0 | U53: =U$61*12-SUM($Q53:T53)-SUMPRODUCT(--($C53:$N53<=U$61),U$61-$C53:$N53) -> 0
O54: 0 | Q54: 0 | R54: =R$50*12-SUM($Q54:Q54)-SUMPRODUCT(--($C54:$N54<=R$50),R$50-$C54:$N54) -> 0 | S54: =S$50*12-SUM($Q54:R54)-SUMPRODUCT(--($C54:$N54<=S$50),S$50-$C54:$N54) -> 0 | T54: =T$50*12-SUM($Q54:S54)-SUMPRODUCT(--($C54:$N54<=T$50),T$50-$C54:$N54) -> 0 | Y54: =COUNT(O5:P45) -> 39
O55: =SUM(C55:N55) -> 0 | Q55: =SUM(Q51:Q54) -> 0 | R55: =SUM(R51:R54) -> 0 | S55: 0 | T55: 0 | U55: 0
O56: =SUM(C56:N56) -> 0 | Q56: =Q$50*12-SUMPRODUCT(--($C56:$N56<=Q$50),Q$50-$C56:$N56) -> 0 | R56: =R$50*12-SUM($Q56:Q56)-SUMPRODUCT(--($C56:$N56<=R$50),R$50-$C56:$N56) -> 0 | S56: =S$50*12-SUM($Q56:R56)-SUMPRODUCT(--($C56:$N56<=S$50),S$50-$C56:$N56) -> 0
O57: 0
B58: Total Sch 146 | C58: =C49-SUM(C51:C56) -> 1782048 | D58: =D49-SUM(D51:D56) -> 2865078 | E58: 2895484 | F58: 3192839 | G58: 3218284 | H58: 3435588 | I58: 3061225 | J58: 2572892 | K58: 2306224 | L58: 2002070 | M58: 2081810 | N58: 1960700 | O58: 31374242 | Q58: =SUM(Q51:Q54) -> 0 | R58: =SUM(R51:R54) -> 0 | S58: =SUM(S51:S54) -> 0 | T58: 0 | U58: 0 | V58: =SUM(Q58:U58) -> 0
C59: =C47-C58 -> 0 | D59: =D47-D58 -> 0 | E59: =E47-E58 -> 0 | F59: 0 | G59: 0 | H59: 0 | I59: 0 | J59: 0 | K59: 0 | L59: 0 | M59: 0 | N59: 0 | O59: 0 | Q59: =SUM(Q55:Q56) -> 0 | R59: =SUM(R55:R56) -> 0 | S59: =SUM(S55:S56) -> 0
C60: =COUNT(C5:C43) -> 38 | D60: 38 | E60: 38 | F60: 38 | G60: 38 | H60: 38 | I60: 38 | J60: 38 | K60: 38 | L60: 38 | M60: 38 | N60: 38 | Q60: 1st | R60: =Q61 -> 200 | S60: =R61 -> 1000 | T60: =S61 -> 10000 | U60: =T61 -> 25000
B61: ANNUAL USAGE, Sch 121/122 | Q61: 200 | R61: 1000 | S61: 10000 | T61: 25000 | U61: 99999999
B62: Washington | C62: =C4 -> 2020-10-31 | D62: 2020-11-30 | E62: 2020-12-31 | F62: 2021-01-31 | G62: 2021-02-28 | H62: 2021-03-31 | I62: 2021-04-30 | J62: 2021-05-31 | K62: 2021-06-30 | L62: 2021-07-31 | M62: 2021-08-31 | N62: 2021-09-30 | O62: Total | Q62: thms/mo | R62: thms/mo | S62: thms/mo | T62: thms/mo | U62: thms/mo | X62: 2014-10-01 | AD62: 2014-11-01 | AJ62: 2014-12-01 | AP62: 2015-01-01
B63: Discontinued in UG-190335 | O63: =SUM(B63:N63) -> 0 | Q63: =Q$61*12-SUMPRODUCT(--($B63:$N63<=Q$61),Q$61-$B63:$N63) ->  | R63: =R$61*12-SUM($Q63:Q63)-SUMPRODUCT(--($B63:$N63<=R$61),R$61-$B63:$N63) ->  | S63: =S$61*12-SUM($Q63:R63)-SUMPRODUCT(--($B63:$N63<=S$61),S$61-$B63:$N63) ->  | T63: =T$61*12-SUM($Q63:S63)-SUMPRODUCT(--($B63:$N63<=T$61),T$61-$B63:$N63) ->  | U63: =U$61*12-SUM($Q63:T63)-SUMPRODUCT(--($B63:$N63<=U$61),U$61-$B63:$N63) -> 
O64: =SUM(C64:N64) -> 0 | Q64: =Q$61*12-SUMPRODUCT(--($C64:$N64<=Q$61),Q$61-$C64:$N64) -> 0 | R64: =R$61*12-SUM($Q64:Q64)-SUMPRODUCT(--($C64:$N64<=R$61),R$61-$C64:$N64) -> 0 | S64: =S$61*12-SUM($Q64:R64)-SUMPRODUCT(--($C64:$N64<=S$61),S$61-$C64:$N64) -> 0 | T64: =T$61*12-SUM($Q64:S64)-SUMPRODUCT(--($C64:$N64<=T$61),T$61-$C64:$N64) -> 0 | U64: =U$61*12-SUM($Q64:T64)-SUMPRODUCT(--($C64:$N64<=U$61),U$61-$C64:$N64) -> 0
B65: Total WA Sch 121/122 | C65: =SUM(B63:B63) -> 0 | D65: =SUM(D63:D64) -> 0 | E65: 0 | F65: 0 | G65: 0 | H65: 0 | I65: 0 | J65: 0 | K65: 0 | L65: 0 | M65: 0 | N65: 0 | O65: =IF(ROUND(SUM(O63:O64),3)<>ROUND(SUM(C65:N65),3),#VALUE!,SUM(C65:N65)) -> 0 | Q65: =SUM(Q63:Q64) ->  | R65: =SUM(R63:R64) ->  | S65: =SUM(S63:S64) ->  | T65: =SUM(T63:T64) ->  | U65: =SUM(U63:U64) ->  | X65: =SUM(X63:X64) -> 0 | Y65: =SUM(Y63:Y64) -> 0 | Z65: =SUM(Z63:Z64) -> 0 | AA65: =SUM(AA63:AA64) -> 0 | AB65: =SUM(AB63:AB64) -> 0 | AD65: =SUM(AD63:AD64) -> 0 | AE65: =SUM(AE63:AE64) -> 0 | AF65: =SUM(AF63:AF64) -> 0 | AG65: =SUM(AG63:AG64) -> 0 | AH65: =SUM(AH63:AH64) -> 0 | AJ65: =SUM(AJ63:AJ64) -> 0 | AK65: =SUM(AK63:AK64) -> 0 | AL65: =SUM(AL63:AL64) -> 0 | AM65: =SUM(AM63:AM64) -> 0 | AN65: =SUM(AN63:AN64) -> 0 | AP65: =SUM(AP63:AP64) -> 0 | AQ65: =SUM(AQ63:AQ64) -> 0 | AR65: =SUM(AR63:AR64) -> 0 | AS65: =SUM(AS63:AS64) -> 0 | AT65: =SUM(AT63:AT64) -> 0
U66: =SUM(Q65:U65) -> 
B67: Revenue Runs | O67: =SUM(C67:N67) -> 0
O68: =SUM(C68:N68) -> 0 | Q68: =Q$61*12-SUMPRODUCT(--($C68:$N68<=Q$61),Q$61-$C68:$N68) -> 0 | R68: =R$61*12-SUM($Q68:Q68)-SUMPRODUCT(--($C68:$N68<=R$61),R$61-$C68:$N68) -> 0 | S68: =S$61*12-SUM($Q68:R68)-SUMPRODUCT(--($C68:$N68<=S$61),S$61-$C68:$N68) -> 0 | T68: =T$61*12-SUM($Q68:S68)-SUMPRODUCT(--($C68:$N68<=T$61),T$61-$C68:$N68) -> 0 | U68: =U$61*12-SUM($Q68:T68)-SUMPRODUCT(--($C68:$N68<=U$61),U$61-$C68:$N68) -> 0
O69: =SUM(C69:N69) -> 0 | Y69: =COUNT(#REF!) -> 0
O70: 0
B71: Total WA Sch 121/122 | C71: =C67-SUM(C68:C70) -> 0 | D71: =D67-SUM(D68:D70) -> 0 | E71: 0 | F71: 0 | G71: 0 | H71: 0 | I71: 0 | J71: 0 | K71: 0 | L71: 0 | M71: 0 | N71: 0 | O71: =IF(ROUND(O67-SUM(O68:O70),3)<>ROUND(SUM(C71:N71),3),#VALUE!,SUM(C71:N71)) -> 0
O72: =O65-O71 -> 0
L73: =COUNT(#REF!) -> 0 | M73: =COUNT(#REF!) -> 0 | N73: =COUNT(#REF!) -> 0
B74: ANNUAL USAGE, Sch 132 | O74: 12-mo ended | Q74: 10000 | R74: 25000 | S74: 50000 | T74: 99999999
B75: Washington | C75: =C4 -> 2020-10-31 | D75: 2020-11-30 | E75: 2020-12-31 | F75: 2021-01-31 | G75: 2021-02-28 | H75: 2021-03-31 | I75: 2021-04-30 | J75: 2021-05-31 | K75: 2021-06-30 | L75: 2021-07-31 | M75: 2021-08-31 | N75: 2021-09-30 | O75: Total | Q75: thms/mo | R75: thms/mo | S75: thms/mo | T75: thms/mo
C76: 41275 | D76: 52267.281 | E76: 71389.488 | F76: 68520.702 | G76: 64050.63 | H76: 58451.023 | I76: 44980.692 | J76: 34880.535 | K76: 30065.465 | L76: 28900.824 | M76: 31582 | N76: 34688 | O76: =SUM(C76:N76) -> 561051.64 | Q76: =Q$74*12-SUMPRODUCT(--($C76:$N76<=Q$74),Q$74-$C76:$N76) -> 120000 | R76: =R$74*12-SUM($Q76:Q76)-SUMPRODUCT(--($C76:$N76<=R$74),R$74-$C76:$N76) -> 180000 | S76: =S$74*12-SUM($Q76:R76)-SUMPRODUCT(--($C76:$N76<=S$74),S$74-$C76:$N76) -> 196372.516 | T76: =T$74*12-SUM($Q76:S76)-SUMPRODUCT(--($C76:$N76<=T$74),T$74-$C76:$N76) -> 64679.124
C77: 13702 | D77: 29286.498 | E77: 55179.296 | F77: 58820.907 | G77: 65536.155 | H77: 61028.898 | I77: 42004.692 | J77: 30514.086 | K77: 21374.848 | L77: 13146.276 | M77: 10816 | N77: 12417 | O77: =SUM(C77:N77) -> 413826.656 | Q77: =Q$74*12-SUMPRODUCT(--($C77:$N77<=Q$74),Q$74-$C77:$N77) -> 120000 | R77: =R$74*12-SUM($Q77:Q77)-SUMPRODUCT(--($C77:$N77<=R$74),R$74-$C77:$N77) -> 126456.124 | S77: =S$74*12-SUM($Q77:R77)-SUMPRODUCT(--($C77:$N77<=S$74),S$74-$C77:$N77) -> 126805.276 | T77: =T$74*12-SUM($Q77:S77)-SUMPRODUCT(--($C77:$N77<=T$74),T$74-$C77:$N77) -> 40565.256
C79: =SUM(C76:C78) -> 54977 | D79: =SUM(D76:D78) -> 81553.779 | E79: 126568.784 | F79: 127341.609 | G79: 129586.785 | H79: 119479.921 | I79: 86985.384 | J79: 65394.621 | K79: 51440.313 | L79: 42047.1 | M79: 42398 | N79: 47105 | O79: =IF(ROUND(SUM(O76:O78),3)<>ROUND(SUM(C79:N79),3),#VALUE!,SUM(C79:N79)) -> 974878.296 | Q79: =SUM(Q76:Q78) -> 240000 | R79: =SUM(R76:R78) -> 306456.124 | S79: =SUM(S76:S78) -> 323177.792 | T79: =SUM(T76:T78) -> 105244.38
B81: Revenue Runs | C81: ='12MESEP21'!D168 -> 54977.125 | D81: ='12MESEP21'!E168 -> 81553.779 | E81: ='12MESEP21'!F168 -> 126568.784 | F81: ='12MESEP21'!G168 -> 127341.609 | G81: ='12MESEP21'!H168+64051 -> 129587.155 | H81: ='12MESEP21'!I168-64051 -> 119479.551 | I81: ='12MESEP21'!J168 -> 86985.384 | J81: ='12MESEP21'!K168 -> 65394.621 | K81: ='12MESEP21'!L168 -> 51440.313 | L81: ='12MESEP21'!M168 -> 42047.1 | M81: ='12MESEP21'!N168 -> 42398.443 | N81: ='12MESEP21'!O168 -> 47105.41 | O81: =SUM(C81:N81) -> 974879.274
B82: SPOKANE COUNTY COURTHOUSE (122 to 132) | C82: 0 | D82: 0 | E82: 0 | F82: 0 | G82: 0 | O82: =SUM(C82:N82) -> 0
B83: Total WA Sch 132 | C83: =SUM(C81:C82) -> 54977.125 | D83: =SUM(D81:D82) -> 81553.779 | E83: 126568.784 | F83: 127341.609 | G83: 129587.155 | H83: 119479.551 | I83: 86985.384 | J83: 65394.621 | K83: 51440.313 | L83: 42047.1 | M83: 42398.443 | N83: 47105.41 | O83: 974879.274 | T83: =SUM(Q79:T79) -> 974878.296
C84: =C79-C83 -> -0.125 | D84: =D79-D83 -> 0 | E84: 0 | F84: 0 | G84: -0.37 | H84: 0.37 | I84: 0 | J84: 0 | K84: 0 | L84: 0 | M84: =M79-M83 -> -0.443 | N84: -0.41 | O84: -0.9779999999
B85: ANNUAL USAGE, Sch 148 | O85: 12-mo ended
B86: Washington | C86: =C4 -> 2020-10-31 | D86: 2020-11-30 | E86: 2020-12-31 | F86: 2021-01-31 | G86: 2021-02-28 | H86: 2021-03-31 | I86: 2021-04-30 | J86: 2021-05-31 | K86: 2021-06-30 | L86: 2021-07-31 | M86: 2021-08-31 | N86: 2021-09-30 | O86: Total
B87: Kaiser | C87: 1312448 | D87: 1402984 | E87: 1561080 | F87: 1693373 | G87: 1718045 | H87: 1731240 | I87: 1851681 | J87: 1660789 | K87: 1704127 | L87: 1608468 | M87: 1605789 | N87: 1637302 | O87: =SUM(C87:N87) -> 19487326
B88: Lamb | C88: 496475 | D88: 548769 | E88: 499654 | F88: 426330 | G88: 567406 | H88: 485113 | I88: 315006 | J88: 489289 | K88: 487713 | L88: 513895 | M88: 486101 | N88: 484698 | O88: =SUM(C88:N88) -> 5800449
B89: Mutual | C89: 140950 | D89: 153429 | E89: 150478 | F89: 148482 | G89: 155411 | H89: 144881 | I89: 151991 | J89: 147288 | K89: 154538 | L89: 140962 | M89: 137228 | N89: 138938 | O89: =SUM(C89:N89) -> 1764576
B90: Washington Potato | C90: 461157 | D90: 543377 | E90: 520243 | F90: 568945 | G90: 395222 | H90: 1002 | I90: 146012 | J90: 175494 | K90: 188148 | L90: 170568 | M90: 150862 | N90: 195763 | O90: =SUM(C90:N90) -> 3516793
B91: WSU | C91: 511840 | D91: 898741 | E91: 1171049 | F91: 1385929 | G91: 1346539 | H91: 1382838 | I91: 1150622 | J91: 883302 | K91: 714879 | L91: 487502 | M91: 401739 | N91: 463133 | O91: =SUM(C91:N91) -> 10798113
B93: Total WA Sch 148 | C93: =SUM(C87:C92) -> 2922870 | D93: 3547300 | E93: 3902504 | F93: 4223059 | G93: 4182623 | H93: 3745074 | I93: 3615312 | J93: 3356162 | K93: 3249405 | L93: 2921395 | M93: 2781719 | N93: 2919834 | O93: =IF(ROUND(SUM(O87:O92),3)<>ROUND(SUM(C93:N93),3),#VALUE!,SUM(C93:N93)) -> 41367257
B95: Revenue Runs | C95: ='12MESEP21'!D171 -> 2922870 | D95: ='12MESEP21'!E171 -> 3547300 | E95: ='12MESEP21'!F171 -> 3902504 | F95: ='12MESEP21'!G171 -> 4223059 | G95: ='12MESEP21'!H171 -> 4182623 | H95: ='12MESEP21'!I171 -> 3745074 | I95: ='12MESEP21'!J171 -> 3615312 | J95: ='12MESEP21'!K171 -> 3356162 | K95: ='12MESEP21'!L171 -> 3249405 | L95: ='12MESEP21'!M171 -> 2921395 | M95: ='12MESEP21'!N171 -> 2781719 | N95: ='12MESEP21'!O171 -> 2919834 | O95: =SUM(C95:N95) -> 41367257
C96: =C93-C95 -> 0 | D96: =D93-D95 -> 0 | E96: 0 | F96: 0 | G96: 0 | H96: 0 | I96: 0 | J96: 0 | K96: 0 | L96: 0 | M96: 0 | N96: 0 | O96: 0
B98: ANNUAL USAGE, Sch 147 | O98: 12-mo ended
B99: Washington | C99: =C4 -> 2020-10-31 | D99: 2020-11-30 | E99: 2020-12-31 | F99: 2021-01-31 | G99: 2021-02-28 | H99: 2021-03-31 | I99: 2021-04-30 | J99: 2021-05-31 | K99: 2021-06-30 | L99: 2021-07-31 | M99: 2021-08-31 | N99: 2021-09-30 | O99: Total
C100: 801756 | D100: 1077342 | E100: 271391 | F100: 230879 | G100: 55018 | H100: 255288 | I100: 399826 | J100: 531627 | K100: 361750 | L100: 755062 | M100: 908539 | N100: 922497 | O100: =SUM(C100:N100) -> 6570975
C101: 21609 | D101: 18729 | E101: 5620 | F101: 36 | G101: 4502 | H101: 9119 | I101: 15258 | J101: 1758 | K101: 4014 | L101: 92202 | M101: 135367 | N101: 143875 | O101: =SUM(C101:N101) -> 452089
B103: Total WA Sch 147 | C103: =SUM(C100:C102) -> 823365 | D103: 1096071 | E103: =SUM(E100:E102) -> 277011 | F103: 230915 | G103: 59520 | H103: 264407 | I103: 415084 | J103: 533385 | K103: 365764 | L103: 847264 | M103: 1043906 | N103: 1066372 | O103: =IF(ROUND(SUM(O100:O102),3)<>ROUND(SUM(C103:N103),3),#VALUE!,SUM(C103:N103)) -> 7023064
B105: Revenue Runs | C105: ='12MESEP21'!D170 -> 823365 | D105: ='12MESEP21'!E170 -> 1096071 | E105: ='12MESEP21'!F170 -> 277011 | F105: ='12MESEP21'!G170 -> 230915 | G105: ='12MESEP21'!H170 -> 59520 | H105: ='12MESEP21'!I170 -> 264407 | I105: ='12MESEP21'!J170 -> 415084 | J105: ='12MESEP21'!K170 -> 533385 | K105: ='12MESEP21'!L170 -> 365764 | L105: ='12MESEP21'!M170 -> 847264 | M105: ='12MESEP21'!N170 -> 1043906 | N105: ='12MESEP21'!O170 -> 1066372 | O105: =SUM(C105:N105) -> 7023064
C106: =C103-C105 -> 0 | D106: =D103-D105 -> 0 | E106: 0 | F106: 0 | G106: 0 | H106: 0 | I106: 0 | J106: 0 | K106: 0 | L106: 0 | M106: 0 | N106: 0 | O106: 0
B108: Sch 147 Revenue from Rev. Runs | C108: 17216.56 | D108: 22918.84 | E108: 5792.3 | F108: 4828.43 | G108: 1244.57 | H108: 5528.75 | I108: 8679.4 | J108: 11153.08 | K108: 7648.12 | L108: 17716.29 | M108: 21828.08 | N108: 22297.84 | O108: =SUM(C108:N108) -> 146852.26
B109: check | C109: =C103*0.02091 -> 17216.56215 | D109: =D103*0.02091 -> 22918.84461 | E109: 5792.30001 | F109: 4828.43265 | G109: 1244.5632 | H109: 5528.75037 | I109: 8679.40644 | J109: 11153.08035 | K109: 7648.12524 | L109: 17716.29024 | M109: =M103*0.02091 -> 21828.07446 | N109: 22297.83852 | O109: =SUM(C109:N109) -> 146852.2682

Sheet 12MESEP21
A3: Rev Norm Bill Determinant 12 ME Report for Report Date : '09/30/2021'
A5: State Cde:WA
C7: Meters
B8: Period | C8: 202010 | D8: =C8+1 -> 202011 | E8: =D8+1 -> 202012 | F8: 202101 | G8: =F8+1 -> 202102 | H8: 202103 | I8: 202104 | J8: 202105 | K8: 202106 | L8: 202107 | M8: 202108 | N8: 202109 | O8: 12 Month Average | P8: 12 Month Total
A9: Rate Schedule Num
A10: 101 | C10: 168622 | D10: 168739 | E10: 169372 | F10: 162808 | G10: 162594 | H10: 183866 | I10: 169998 | J10: 169961 | K10: 170090 | L10: 170133 | M10: 170413 | N10: 170256 | O10: =AVERAGE(C10:N10) -> 169737.6667 | P10: =SUM(C10:N10) -> 2036852
A11: 102 | C11: 236 | D11: 249 | E11: 260 | F11: 262 | G11: 271 | H11: 314 | I11: 297 | J11: 302 | K11: 306 | L11: 311 | M11: 311 | N11: 333 | O11: =AVERAGE(C11:N11) -> 287.6666667 | P11: =SUM(C11:N11) -> 3452
A12: 111 | C12: 3153 | D12: 3155 | E12: 3170 | F12: 3016 | G12: 2945 | H12: 3576 | I12: 3192 | J12: 3177 | K12: 3178 | L12: 3193 | M12: 3190 | N12: 3189 | O12: 3177.833333 | P12: 38134
A13: 112 | C13: 3 | D13: 3 | E13: 3 | F13: 3 | G13: 3 | H13: 3 | I13: 3 | J13: 2 | K13: 3 | L13: 3 | M13: 3 | N13: 3 | O13: 2.916666667 | P13: 35
A14: 116 | C14: 0 | D14: 0 | E14: 0 | F14: 0 | G14: 0 | H14: 0 | I14: 0 | J14: 0 | K14: 0 | L14: 0 | M14: 0 | N14: 0 | O14: 0 | P14: 0
A15: 132 | C15: 2 | D15: 2 | E15: 2 | F15: 2 | G15: 1 | H15: 3 | I15: 2 | J15: 2 | K15: 2 | L15: 2 | M15: 2 | N15: 2 | O15: 2 | P15: 24
A16: 146 | C16: 37 | D16: 38 | E16: 38 | F16: 38 | G16: 38 | H16: 38 | I16: 38 | J16: 38 | K16: 38 | L16: 37 | M16: 38 | N16: 38 | O16: 37.83333333 | P16: 454
A17: 147 | C17: 3 | D17: 3 | E17: 2 | F17: 2 | G17: 2 | H17: 2 | I17: 3 | J17: 2 | K17: 2 | L17: 3 | M17: 3 | N17: 3 | O17: 2.5 | P17: 30
A18: 148 | C18: 5 | D18: 5 | E18: 5 | F18: 5 | G18: 5 | H18: 5 | I18: 5 | J18: 5 | K18: 5 | L18: 5 | M18: 5 | N18: 5 | O18: 5 | P18: 60
A19: 158 | C19: 0 | D19: 0 | E19: 0 | F19: 0 | G19: 0 | H19: 0 | I19: 0 | J19: 0 | K19: 0 | L19: 0 | M19: 0 | N19: 0 | O19: 0 | P19: 0
A20: 0158A | C20: 0 | D20: 0 | E20: 0 | F20: 0 | G20: 0 | H20: 0 | I20: 0 | J20: 0 | K20: 0 | L20: 0 | M20: 0 | N20: 0 | O20: 0 | P20: 0
A21: 199 | C21: 0 | D21: 0 | E21: 0 | F21: 0 | G21: 0 | H21: 0 | I21: 0 | J21: 0 | K21: 0 | L21: 0 | M21: 0 | N21: 0 | O21: 0 | P21: 0
A22: Total for WA | C22: =SUM(C10:C21) -> 172061 | D22: 172194 | E22: 172852 | F22: 166136 | G22: 165859 | H22: 187807 | I22: 173538 | J22: 173489 | K22: 173624 | L22: 173687 | M22: 173965 | N22: 173829 | P22: =SUM(C22:N22) -> 2079041
O24: Total | P24: Avg
B25: 101/102 | C25: =C10+C11 -> 168858 | D25: 168988 | E25: 169632 | F25: 163070 | G25: 162865 | H25: 184180 | I25: 170295 | J25: 170263 | K25: 170396 | L25: 170444 | M25: 170724 | N25: 170589 | O25: =SUM(C25:N25) -> 2040304 | P25: =AVERAGE(C25:N25) -> 170025.3333
B26: 111/112 | C26: =C12+C13 -> 3156 | D26: 3158 | E26: 3173 | F26: 3019 | G26: 2948 | H26: 3579 | I26: 3195 | J26: 3179 | K26: 3181 | L26: 3196 | M26: 3193 | N26: 3192 | O26: =SUM(C26:N26) -> 38169 | P26: =AVERAGE(C26:N26) -> 3180.75
B27: 116 | C27: =C14 -> 0 | D27: =D14 -> 0 | E27: 0 | F27: 0 | G27: 0 | H27: 0 | I27: 0 | J27: 0 | K27: 0 | L27: 0 | M27: 0 | N27: 0 | O27: 0 | P27: 0
B28: 132 | C28: =C15 -> 2 | D28: =D15 -> 2 | E28: 2 | F28: 2 | G28: 1 | H28: 3 | I28: 2 | J28: 2 | K28: 2 | L28: 2 | M28: 2 | N28: 2 | O28: 24 | P28: 2
B29: 146 | C29: =C16 -> 37 | D29: =D16 -> 38 | E29: 38 | F29: 38 | G29: 38 | H29: 38 | I29: 38 | J29: 38 | K29: 38 | L29: 37 | M29: 38 | N29: 38 | O29: 454 | P29: 37.83333333
B30: 147 | C30: =C17 -> 3 | D30: =D17 -> 3 | E30: 2 | F30: 2 | G30: 2 | H30: 2 | I30: 3 | J30: 2 | K30: 2 | L30: 3 | M30: 3 | N30: 3 | O30: 30 | P30: 2.5
B31: 148 | C31: =C18 -> 5 | D31: =D18 -> 5 | E31: 5 | F31: 5 | G31: 5 | H31: 5 | I31: 5 | J31: 5 | K31: 5 | L31: 5 | M31: 5 | N31: 5 | O31: 60 | P31: 5
B32: Total | C32: =SUM(C25:C31) -> 172061 | D32: =SUM(D25:D31) -> 172194 | E32: 172852 | F32: 166136 | G32: 165859 | H32: 187807 | I32: 173538 | J32: 173489 | K32: 173624 | L32: 173687 | M32: 173965 | N32: 173829 | O32: 2079041
C34: =C22-C32 -> 0 | D34: =D22-D32 -> 0 | E34: 0 | F34: 0 | G34: 0 | H34: 0 | I34: 0 | J34: 0 | K34: 0 | L34: 0 | M34: 0 | N34: 0
A36: Rev Norm Bill Determinant 12 ME Report for Report Date : '09/30/2021'
A38: State Cde:WA
D40: Usage
C41: Period | D41: =C8 -> 202010 | E41: =D8 -> 202011 | F41: 202012 | G41: 202101 | H41: 202102 | I41: 202103 | J41: 202104 | K41: 202105 | L41: 202106 | M41: 202107 | N41: 202108 | O41: 202109 | P41: 12 Month Total
A42: Rate Schedule Num | B42: Billing Determinant
A43: 0101 | B43: BASIC CHARGE GAS | D43: 0 | E43: 0 | F43: 0 | G43: 0 | H43: 0 | I43: 0 | J43: 0 | K43: 0 | L43: 0 | M43: 0 | N43: 0 | O43: 0 | P43: =SUM(D43:O43) -> 0
B44: NA | D44: 0 | E44: 0 | F44: 0 | G44: 0 | H44: 0 | I44: 0 | J44: 0 | K44: 0 | L44: 0 | M44: 0 | N44: 0 | O44: 0 | P44: 0
B45: RIDER 150 | D45: -166 | E45: -343 | F45: -175 | G45: -250 | H45: -540 | I45: -350 | J45: -717 | K45: -214 | L45: -185 | M45: -320 | N45: -38 | O45: -194 | P45: =SUM(D45:O45) -> -3492
B46: RIDER 155 | D46: 0 | E46: 0 | F46: 0 | G46: 0 | H46: 0 | I46: 0 | J46: 0 | K46: 0 | L46: 0 | M46: 0 | N46: 0 | O46: 0 | P46: 0
B47: RIDER 156 | D47: 0 | E47: 0 | F47: 0 | G47: 0 | H47: 0 | I47: 0 | J47: 0 | K47: 0 | L47: 0 | M47: 0 | N47: 0 | O47: 0 | P47: 0
B48: RIDER 159 | D48: 0 | E48: 0 | F48: 0 | G48: 0 | H48: 0 | I48: 0 | J48: 0 | K48: 0 | L48: 0 | M48: 0 | N48: 0 | O48: 0 | P48: 0
B49: RIDER 175 | M49: 0 | N49: 0 | O49: 0 | P49: 0
B50: RIDER 191 | D50: 0 | E50: 0 | F50: 0 | G50: 0 | H50: 0 | I50: 0 | J50: 0 | K50: 0 | L50: 0 | M50: 0 | N50: 0 | O50: 0 | P50: 0
B51: RIDER 192 | D51: 0 | E51: 0 | F51: 0 | G51: 0 | H51: 0 | I51: 0 | J51: 0 | K51: 0 | L51: 0 | M51: 0 | N51: 0 | O51: 0 | P51: 0
B52: RIDER 197 | M52: 0 | N52: 0 | O52: 0 | P52: 0
B53: THERMS BLOCK 1 | D53: 3830735.146 | E53: 9338447.205 | F53: 10771892.78 | G53: 10509241.29 | H53: 10514595.59 | I53: 11434625.44 | J53: 9083835.501 | K53: 5413354.771 | L53: 3462637.458 | M53: 2081811.3 | N53: 1911726.528 | O53: 2272527.976 | P53: =SUM(D53:O53) -> 80625430.99
B54: THERMS BLOCK 2 | D54: 352170.1177 | E54: 3782132.851 | F54: 9335900.918 | G54: 10332423.74 | H54: 10685463 | I54: 8507566.695 | J54: 2871240.222 | K54: 570599.9224 | L54: 288271.1198 | M54: 123414.4198 | N54: 136842.9079 | O54: 239521.186 | P54: =SUM(D54:O54) -> 47225547.11
B55: Total for 0101 | D55: =SUM(D43:D54) -> 4182739.263 | E55: =SUM(E43:E54) -> 13120237.06 | F55: 20107618.7 | G55: 20841415.03 | H55: 21199518.6 | I55: 19941842.14 | J55: 11954358.72 | K55: 5983740.693 | L55: 3750723.578 | M55: 2204905.72 | N55: 2048531.436 | O55: 2511855.162 | P55: =SUM(D55:O55) -> 127847486.1
A56: 0102 | B56: BASIC CHARGE GAS | D56: 0 | E56: 0 | F56: 0 | G56: 0 | H56: 0 | I56: 0 | J56: 0 | K56: 0 | L56: 0 | M56: 0 | N56: 0 | O56: 0 | P56: =SUM(D56:O56) -> 0
B57: NA | D57: 0 | E57: 0 | F57: 0 | G57: 0 | H57: 0 | I57: 0 | J57: 0 | K57: 0 | L57: 0 | M57: 0 | N57: 0 | O57: 0 | P57: 0
B58: RIDER 150 | D58: 0 | E58: 0 | F58: 0 | G58: 0 | H58: 0 | I58: 0 | J58: 0 | K58: 0 | L58: 0 | M58: 0 | N58: 0 | O58: 0 | P58: 0
B59: RIDER 155 | D59: 0 | E59: 0 | F59: 0 | G59: 0 | H59: 0 | I59: 0 | J59: 0 | K59: 0 | L59: 0 | M59: 0 | N59: 0 | O59: 0 | P59: 0
B60: RIDER 156 | D60: 0 | E60: 0 | F60: 0 | G60: 0 | H60: 0 | I60: 0 | J60: 0 | K60: 0 | L60: 0 | M60: 0 | N60: 0 | O60: 0 | P60: 0
B61: RIDER 159 | D61: 0 | E61: 0 | F61: 0 | G61: 0 | H61: 0 | I61: 0 | J61: 0 | K61: 0 | L61: 0 | M61: 0 | N61: 0 | O61: 0 | P61: 0
B62: RIDER 175 | N62: 0 | O62: 0 | P62: 0
B63: RIDER 189 | D63: 0 | E63: 0 | F63: 0 | G63: 0 | H63: 0 | I63: 0 | J63: 0 | K63: 0 | L63: 0 | M63: 0 | N63: 0 | O63: 0 | P63: 0
B64: RIDER 191 | D64: 0 | E64: 0 | F64: 0 | G64: 0 | H64: 0 | I64: 0 | J64: 0 | K64: 0 | L64: 0 | M64: 0 | N64: 0 | O64: 0 | P64: 0
B65: RIDER 192 | D65: 0 | E65: 0 | F65: 0 | G65: 0 | H65: 0 | I65: 0 | J65: 0 | K65: 0 | L65: 0 | M65: 0 | N65: 0 | O65: 0 | P65: 0
B66: THERMS BLOCK 1 | D66: 5998.82577 | E66: 15498.08602 | F66: 17820.55846 | G66: 18049.81811 | H66: 18575.40237 | I66: 21030.49081 | J66: 17810.58365 | K66: 10814.6649 | L66: 6769.32459 | M66: 3500.59536 | N66: 3085.34515 | O66: 4327.74273 | P66: 143281.4379
B67: THERMS BLOCK 2 | D67: 154.48156 | E67: 4190.84597 | F67: 12492.42216 | G67: 14278.83607 | H67: 15519.13412 | I67: 11579.92965 | J67: 3639.60653 | K67: 361.61912 | L67: 68.90665 | M67: 96.80202 | N67: 147.25808 | O67: 119.03764 | P67: 62648.87957
B68: Total for 0102 | D68: =SUM(D56:D67) -> 6153.30733 | E68: =SUM(E56:E67) -> 19688.93199 | F68: 30312.98062 | G68: 32328.65418 | H68: 34094.53649 | I68: 32610.42046 | J68: 21450.19018 | K68: 11176.28402 | L68: 6838.23124 | M68: 3597.39738 | N68: 3232.60323 | O68: 4446.78037 | P68: =SUM(D68:O68) -> 205930.3175
A69: 0111 | B69: BASIC CHARGE GAS | D69: 0 | E69: 0 | F69: 0 | G69: 0 | H69: 0 | I69: 0 | J69: 0 | K69: 0 | L69: 0 | M69: 0 | N69: 0 | O69: 0 | P69: =SUM(D69:O69) -> 0
B70: NA | D70: 0 | E70: 0 | F70: 0 | G70: 0 | H70: 0 | I70: 0 | J70: 0 | K70: 0 | L70: 0 | M70: 0 | N70: 0 | O70: 0 | P70: =SUM(D70:O70) -> 0
B71: RIDER 150 | D71: 0 | E71: 0 | F71: 0 | G71: 0 | H71: -318 | I71: -87 | J71: -431 | K71: -543 | L71: 0 | M71: 0 | N71: -256 | O71: 0 | P71: -1635
B72: RIDER 155 | D72: 0 | E72: 0 | F72: 0 | G72: 0 | H72: 0 | I72: 0 | J72: 0 | K72: 0 | L72: 0 | M72: 0 | N72: 0 | O72: 0 | P72: 0
B73: RIDER 156 | D73: 0 | E73: 0 | F73: 0 | G73: 0 | H73: 0 | I73: 0 | J73: 0 | K73: 0 | L73: 0 | M73: 0 | N73: 0 | O73: 0 | P73: 0
B74: RIDER 175 | M74: 0 | N74: 0 | O74: 0 | P74: 0
B75: RIDER 191 | D75: 0 | E75: 0 | F75: 0 | G75: 0 | H75: 0 | I75: 0 | J75: 0 | K75: 0 | L75: 0 | M75: 0 | N75: 0 | O75: 0 | P75: 0
B76: RIDER 192 | D76: 0 | E76: 0 | F76: 0 | G76: 0 | H76: 0 | I76: 0 | J76: 0 | K76: 0 | L76: 0 | M76: 0 | N76: 0 | O76: 0 | P76: 0
B77: THERMS BLOCK 1 | D77: 508808.7352 | E77: 612495.9802 | F77: 621387.5694 | G77: 591377.8375 | H77: 577793.1965 | I77: 701581.4983 | J77: 620059.2812 | K77: 577820.0979 | L77: 505217.4474 | M77: 397103.7176 | N77: 374734.8214 | O77: 425690.5975 | P77: =SUM(D77:O77) -> 6514070.78
B78: THERMS BLOCK 2 | D78: 852902.9388 | E78: 1758874.157 | F78: 2073116.585 | G78: 2004211.425 | H78: 1963750.173 | I78: 2286749.217 | J78: 1736139.796 | K78: 1174480.404 | L78: 833837.5705 | M78: 560287.9685 | N78: 546095.9242 | O78: 642801.7655 | P78: 16433247.92
B79: THERMS BLOCK 3 | D79: 897618.7089 | E79: 2506390.092 | F79: 4121908.285 | G79: 4255821.274 | H79: 4264967.786 | I79: 4447218.127 | J79: 2448015.196 | K79: 1281458.009 | L79: 853245.1243 | M79: 585067.1499 | N79: 582245.4153 | O79: 699088.7696 | P79: 26943043.94
B80: THERMS BLOCK 4 | D80: 146226.4942 | E80: 318992.1107 | F80: 560432.3076 | G80: 584366.185 | H80: 596309.0815 | I80: 627482.7919 | J80: 268761.6443 | K80: 165834.9292 | L80: 137885.9707 | M80: 88085.8009 | N80: 125833.108 | O80: 130585.0023 | P80: 3750795.426
B81: THERMS BLOCK 5 | D81: 23267.463 | E81: 92749.52965 | F81: 133043.945 | G81: 177186.989 | H81: 132468.859 | I81: 210050.285 | J81: 49338.467 | K81: 22091.859 | L81: 21497.029 | M81: 12657.516 | N81: 29844.519 | O81: 35924.176 | P81: 940120.6367
B82: Total for 0111 | D82: =SUM(D69:D81) -> 2428824.34 | E82: =SUM(E69:E81) -> 5289501.869 | F82: 7509888.692 | G82: 7612963.71 | H82: 7534971.096 | I82: 8272994.919 | J82: 5121883.385 | K82: 3221142.3 | L82: 2351683.142 | M82: 1643202.153 | N82: 1658497.788 | O82: =SUM(O69:O81) -> 1934090.311 | P82: =SUM(D82:O82) -> 54579643.7
A83: 0112 | B83: BASIC CHARGE GAS | D83: 0 | E83: 0 | F83: 0 | G83: 0 | H83: 0 | I83: 0 | J83: 0 | K83: 0 | L83: 0 | M83: 0 | N83: 0 | O83: 0 | P83: =SUM(D83:O83) -> 0
B84: NA | D84: 0 | E84: 0 | F84: 0 | G84: 0 | H84: 0 | I84: 0 | J84: 0 | K84: 0 | L84: 0 | M84: 0 | N84: 0 | O84: 0 | P84: =SUM(D84:O84) -> 0
B85: RIDER 150 | D85: 0 | E85: 0 | F85: 0 | G85: 0 | H85: 0 | I85: 0 | J85: 0 | K85: 0 | L85: 0 | M85: 0 | N85: 0 | O85: 0 | P85: 0
B86: RIDER 155 | D86: 0 | E86: 0 | F86: 0 | G86: 0 | H86: 0 | I86: 0 | J86: 0 | K86: 0 | L86: 0 | M86: 0 | N86: 0 | O86: 0 | P86: 0
B87: RIDER 156 | D87: 0 | E87: 0 | F87: 0 | G87: 0 | H87: 0 | I87: 0 | J87: 0 | K87: 0 | L87: 0 | M87: 0 | N87: 0 | O87: 0 | P87: 0
B88: RIDER 175 | M88: 0 | N88: 0 | O88: 0 | P88: 0
B89: RIDER 191 | D89: 0 | E89: 0 | F89: 0 | G89: 0 | H89: 0 | I89: 0 | J89: 0 | K89: 0 | L89: 0 | M89: 0 | N89: 0 | O89: 0 | P89: 0
B90: RIDER 192 | D90: 0 | E90: 0 | F90: 0 | G90: 0 | H90: 0 | I90: 0 | J90: 0 | K90: 0 | L90: 0 | M90: 0 | N90: 0 | O90: 0 | P90: 0
B91: THERMS BLOCK 1 | D91: 800 | E91: 600 | F91: 600 | G91: 600 | H91: 600 | I91: 600 | J91: 800 | K91: 400 | L91: 600 | M91: 600 | N91: 600 | O91: 600 | P91: 7400
B92: THERMS BLOCK 2 | D92: 3200 | E92: 2400 | F92: 2400 | G92: 2400 | H92: 2400 | I92: 2400 | J92: 3200 | K92: 1600 | L92: 2400 | M92: 2400 | N92: 2400 | O92: 2400 | P92: 29600
B93: THERMS BLOCK 3 | D93: 31360.319 | E93: 27000 | F93: 27000 | G93: 27000 | H93: 27000 | I93: 27000 | J93: 35842.364 | K93: 14834.208 | L93: 22091.67 | M93: 14012.329 | N93: 12534.094 | O93: 14840.37 | P93: 280515.354
B94: THERMS BLOCK 4 | D94: 27896.443 | E94: 30517.098 | F94: 39579.448 | G94: 38957.987 | H94: 38088.926 | I94: 33505.835 | J94: 35143.634 | K94: 15000 | L94: 12361.284 | M94: 8869.085 | N94: 9673.964 | O94: 9630.137 | P94: 299223.841
B95: THERMS BLOCK 5 | D95: 5332.566 | E95: 12014.13 | F95: 38622.25 | G95: 51908.237 | H95: 46287.295 | I95: 60448.874 | J95: 19347.637 | K95: 3433.503 | L95: 0 | M95: 0 | N95: 0 | O95: 0 | P95: 237394.492
B96: Total for 0112 | D96: =SUM(D83:D95) -> 68589.328 | E96: =SUM(E83:E95) -> 72531.228 | F96: 108201.698 | G96: 120866.224 | H96: 114376.221 | I96: 123954.709 | J96: 94333.635 | K96: 35267.711 | L96: 37452.954 | M96: 25881.414 | N96: 25208.058 | O96: =SUM(O83:O95) -> 27470.507 | P96: =SUM(D96:O96) -> 854133.687
A97: 116 | B97: BASIC CHARGE GAS | L97: 0 | M97: 0 | N97: 0 | O97: 0 | P97: =SUM(D97:O97) -> 0
B98: NA | D98: 0 | E98: 0 | F98: 0 | G98: 0 | H98: 0 | I98: 0 | J98: 0 | K98: 0 | L98: 0 | M98: 0 | N98: 0 | O98: 0 | P98: =SUM(D98:O98) -> 0
B99: RIDER 150 | D99: 0 | E99: 0 | F99: 0 | G99: 0 | H99: 0 | I99: 0 | J99: 0 | K99: 0 | L99: 0 | M99: 0 | N99: 0 | O99: 0 | P99: 0
B100: RIDER 155 | D100: 0 | E100: 0 | F100: 0 | G100: 0 | H100: 0 | I100: 0 | J100: 0 | K100: 0 | L100: 0 | M100: 0 | N100: 0 | O100: 0 | P100: 0
B101: RIDER 156 | D101: 0 | E101: 0 | F101: 0 | G101: 0 | H101: 0 | I101: 0 | J101: 0 | K101: 0 | L101: 0 | M101: 0 | N101: 0 | O101: 0 | P101: 0
B102: RIDER 175 | N102: 0 | O102: 0 | P102: 0
B103: RIDER 191 | D103: 0 | E103: 0 | F103: 0 | G103: 0 | H103: 0 | I103: 0 | J103: 0 | K103: 0 | L103: 0 | M103: 0 | N103: 0 | O103: 0 | P103: 0
B104: RIDER 192 | D104: 0 | E104: 0 | F104: 0 | G104: 0 | H104: 0 | I104: 0 | J104: 0 | K104: 0 | L104: 0 | M104: 0 | N104: 0 | O104: 0 | P104: 0
B105: THERMS BLOCK 1 | D105: 0 | E105: 0 | F105: 0 | G105: 0 | H105: 0 | I105: 0 | J105: 0 | K105: 0 | L105: 0 | M105: 0 | N105: 0 | O105: 0 | P105: 0
B106: THERMS BLOCK 2 | D106: 0 | E106: 0 | F106: 0 | G106: 0 | H106: 0 | I106: 0 | J106: 0 | K106: 0 | L106: 0 | M106: 0 | N106: 0 | O106: 0 | P106: 0
B107: THERMS BLOCK 3 | D107: 0 | E107: 0 | F107: 0 | G107: 0 | H107: 0 | I107: 0 | J107: 0 | K107: 0 | L107: 0 | M107: 0 | N107: 0 | O107: 0 | P107: 0
B108: THERMS BLOCK 4 | D108: 0 | E108: 0 | F108: 0 | G108: 0 | H108: 0 | I108: 0 | J108: 0 | K108: 0 | L108: 0 | M108: 0 | N108: 0 | O108: 0 | P108: 0
B109: THERMS BLOCK 5 | D109: 0 | E109: 0 | F109: 0 | G109: 0 | H109: 0 | I109: 0 | J109: 0 | K109: 0 | L109: 0 | M109: 0 | N109: 0 | O109: 0 | P109: 0
B110: Total for 0121 | D110: =SUM(D98:D109) -> 0 | E110: =SUM(E98:E109) -> 0 | F110: 0 | G110: 0 | H110: 0 | I110: 0 | J110: 0 | K110: =SUM(K98:K109) -> 0 | L110: =SUM(L98:L109) -> 0 | M110: 0 | N110: 0 | O110: =SUM(O98:O109) -> 0 | P110: 0
A111: n/a | B111: BASIC CHARGE GAS | N111: 0 | O111: 0 | P111: =SUM(D111:O111) -> 0
B112: NA | D112: 0 | E112: 0 | F112: 0 | G112: 0 | H112: 0 | I112: 0 | J112: 0 | K112: 0 | L112: 0 | M112: 0 | N112: 0 | O112: 0 | P112: =SUM(D112:O112) -> 0
B113: RIDER 150 | D113: 0 | E113: 0 | F113: 0 | G113: 0 | H113: 0 | I113: 0 | J113: 0 | K113: 0 | L113: 0 | M113: 0 | N113: 0 | O113: 0 | P113: 0
B114: RIDER 155 | D114: 0 | E114: 0 | F114: 0 | G114: 0 | H114: 0 | I114: 0 | J114: 0 | K114: 0 | L114: 0 | M114: 0 | N114: 0 | O114: 0 | P114: 0
B115: RIDER 156 | D115: 0 | E115: 0 | F115: 0 | G115: 0 | H115: 0 | I115: 0 | J115: 0 | K115: 0 | L115: 0 | M115: 0 | N115: 0 | O115: 0 | P115: 0
B116: RIDER 175 | N116: 0 | O116: 0 | P116: 0
B117: RIDER 191 | D117: 0 | E117: 0 | F117: 0 | G117: 0 | H117: 0 | I117: 0 | J117: 0 | K117: 0 | L117: 0 | M117: 0 | N117: 0 | O117: 0 | P117: 0
B118: RIDER 192 | D118: 0 | E118: 0 | F118: 0 | G118: 0 | H118: 0 | I118: 0 | J118: 0 | K118: 0 | L118: 0 | M118: 0 | N118: 0 | O118: 0 | P118: 0
B119: THERMS BLOCK 1 | D119: 0 | E119: 0 | F119: 0 | G119: 0 | H119: 0 | I119: 0 | J119: 0 | K119: 0 | L119: 0 | M119: 0 | N119: 0 | O119: 0 | P119: 0
B120: THERMS BLOCK 2 | D120: 0 | E120: 0 | F120: 0 | G120: 0 | H120: 0 | I120: 0 | J120: 0 | K120: 0 | L120: 0 | M120: 0 | N120: 0 | O120: 0 | P120: 0
B121: THERMS BLOCK 3 | D121: 0 | E121: 0 | F121: 0 | G121: 0 | H121: 0 | I121: 0 | J121: 0 | K121: 0 | L121: 0 | M121: 0 | N121: 0 | O121: 0 | P121: 0
B122: THERMS BLOCK 4 | D122: 0 | E122: 0 | F122: 0 | G122: 0 | H122: 0 | I122: 0 | J122: 0 | K122: 0 | L122: 0 | M122: 0 | N122: 0 | O122: 0 | P122: 0
B123: THERMS BLOCK 5 | D123: 0 | E123: 0 | F123: 0 | G123: 0 | H123: 0 | I123: 0 | J123: 0 | K123: 0 | L123: 0 | M123: 0 | N123: 0 | O123: 0 | P123: 0
B124: Total for 0122 | D124: =SUM(D112:D123) -> 0 | E124: =SUM(E112:E123) -> 0 | F124: 0 | G124: 0 | H124: 0 | I124: 0 | J124: 0 | K124: 0 | L124: 0 | M124: 0 | N124: 0 | O124: 0 | P124: 0
A125: 0132 | B125: NA | D125: 0 | E125: 0 | F125: 0 | G125: 0 | H125: 0 | I125: 0 | J125: 0 | K125: 0 | L125: 0 | M125: 0 | N125: 0 | O125: 0 | P125: =SUM(D125:O125) -> 0
B126: RIDER 150 | D126: 0 | E126: 0 | F126: 0 | G126: 0 | H126: 0 | I126: 0 | J126: 0 | K126: 0 | L126: 0 | M126: 0 | N126: 0 | O126: 0 | P126: =SUM(D126:O126) -> 0
B127: RIDER 155 | D127: 0 | E127: 0 | F127: 0 | G127: 0 | H127: 0 | I127: 0 | J127: 0 | K127: 0 | L127: 0 | M127: 0 | N127: 0 | O127: 0 | P127: 0
B128: RIDER 156 | D128: 0 | E128: 0 | F128: 0 | G128: 0 | H128: 0 | I128: 0 | J128: 0 | K128: 0 | L128: 0 | M128: 0 | N128: 0 | O128: 0 | P128: 0
B129: RIDER 175 | N129: 0 | O129: 0 | P129: 0
B130: RIDER 191 | D130: 0 | E130: 0 | F130: 0 | G130: 0 | H130: 0 | I130: 0 | J130: 0 | K130: 0 | L130: 0 | M130: 0 | N130: 0 | O130: 0 | P130: 0
B131: RIDER 192 | D131: 0 | E131: 0 | F131: 0 | G131: 0 | H131: 0 | I131: 0 | J131: 0 | K131: 0 | L131: 0 | M131: 0 | N131: 0 | O131: 0 | P131: 0
B132: THERMS BLOCK 1 | D132: 20000 | E132: 20000 | F132: 20000 | G132: 20000 | H132: 10000 | I132: 30000 | J132: 20000 | K132: 20000 | L132: 20000 | M132: 20000 | N132: 20000 | O132: 20000 | P132: 240000
B133: THERMS BLOCK 2 | D133: 18702.332 | E133: 30000 | F133: 30000 | G133: 30000 | H133: 15000 | I133: 45000 | J133: 30000 | K133: 30000 | L133: 26374.848 | M133: 18146.276 | N133: 15815.96 | O133: 17416.56 | P133: 306455.976
B134: THERMS BLOCK 3 | D134: 16274.793 | E134: 29286.498 | F134: 50000 | G134: 50000 | H134: 25000 | I134: 75000 | J134: 36985.384 | K134: 15394.621 | L134: 5065.465 | M134: 3900.824 | N134: 6582.483 | O134: 9688.85 | P134: 323178.918
B135: THERMS BLOCK 4 | D135: 0 | E135: 2267.281 | F135: 26568.784 | G135: 27341.609 | H135: 15536.155 | I135: 33530.551 | J135: 0 | K135: 0 | L135: 0 | M135: 0 | N135: 0 | O135: 0 | P135: 105244.38
B136: Total for 0132 | D136: =SUM(D125:D135) -> 54977.125 | E136: =SUM(E125:E135) -> 81553.779 | F136: 126568.784 | G136: 127341.609 | H136: 65536.155 | I136: 183530.551 | J136: 86985.384 | K136: 65394.621 | L136: 51440.313 | M136: 42047.1 | N136: 42398.443 | O136: 47105.41 | P136: 974879.274
A137: 0146 | B137: BASIC CHARGE GAS | D137: 0 | E137: 0 | F137: 0 | G137: 0 | H137: 0 | I137: 0 | J137: 0 | K137: 0 | L137: 0 | M137: 0 | N137: 0 | O137: 0 | P137: =SUM(D137:O137) -> 0
B138: NA | D138: 0 | E138: 0 | F138: 0 | G138: 0 | H138: 0 | I138: 0 | J138: 0 | K138: 0 | L138: 0 | M138: 0 | N138: 0 | O138: 0 | P138: =SUM(D138:O138) -> 0
B139: RIDER 150 | D139: 0 | E139: 0 | F139: 0 | G139: 0 | H139: 0 | I139: 0 | J139: 0 | K139: 0 | L139: 0 | M139: 0 | N139: 0 | O139: 0 | P139: 0
B140: RIDER 155 | D140: 0 | E140: 0 | F140: 0 | G140: 0 | H140: 0 | I140: 0 | J140: 0 | K140: 0 | L140: 0 | M140: 0 | N140: 0 | O140: 0 | P140: 0
B141: RIDER 192 | D141: 0 | E141: 0 | F141: 0 | G141: 0 | H141: 0 | I141: 0 | J141: 0 | K141: 0 | L141: 0 | M141: 0 | N141: 0 | O141: 0 | P141: 0
B142: THERMS BLOCK 1 | D142: 625503 | E142: 732817 | F142: 697026 | G142: 670503 | H142: 655136 | I142: 651219 | J142: 654750 | K142: 716457 | L142: 684224 | M142: 619013 | N142: 615474 | O142: 608824 | P142: 7930946
B143: THERMS BLOCK 2 | D143: 443432 | E143: 714434 | F143: 741401 | G143: 740753 | H143: 745699 | I143: 760638 | J143: 740734 | K143: 667012 | L143: 585335 | M143: 521013 | N143: 480620 | O143: 487212 | P143: 7628283
B144: THERMS BLOCK 3 | D144: 713113 | E144: 1244916 | F144: 1434635 | G144: 1633236 | H144: 1626073 | I144: 1735758 | J144: 1484481 | K144: 1116455 | L144: 907579 | M144: 708347 | N144: 794433 | O144: 674638 | P144: 14073664
B145: THERMS BLOCK 4 | D145: 0 | E145: 172911 | F145: 22422 | G145: 148347 | H145: 191376 | I145: 287973 | J145: 181260 | K145: 72968 | L145: 129086 | M145: 153697 | N145: 191283 | O145: 190026 | P145: 1741349
B146: THERMS BLOCK 5 | D146: 0 | E146: 0 | F146: 0 | G146: 0 | H146: 0 | I146: 0 | J146: 0 | K146: 0 | L146: 0 | M146: 0 | N146: 0 | O146: 0 | P146: 0
B147: Total for 0146 | D147: =SUM(D137:D146) -> 1782048 | E147: =SUM(E137:E146) -> 2865078 | F147: 2895484 | G147: 3192839 | H147: 3218284 | I147: 3435588 | J147: 3061225 | K147: 2572892 | L147: 2306224 | M147: 2002070 | N147: 2081810 | O147: 1960700 | P147: 31374242
A148: 0147 | B148: NA | D148: 0 | E148: 0 | F148: 0 | G148: 0 | H148: 0 | I148: 0 | J148: 0 | K148: 0 | L148: 0 | M148: 0 | N148: 0 | O148: 0 | P148: 0
B149: THERMS BLOCK 1 | D149: 823365 | E149: 1096071 | F149: 277011 | G149: 230915 | H149: 59520 | I149: 264407 | J149: 415084 | K149: 533385 | L149: 365764 | M149: 847264 | N149: 1043906 | O149: 1066372 | P149: =SUM(D149:O149) -> 7023064
B150: Total for 0147 | D150: =SUM(D148:D149) -> 823365 | E150: =SUM(E148:E149) -> 1096071 | F150: 277011 | G150: 230915 | H150: 59520 | I150: 264407 | J150: 415084 | K150: 533385 | L150: 365764 | M150: 847264 | N150: 1043906 | O150: 1066372 | P150: 7023064
A151: 0148 | B151: BASIC CHARGE GAS | D151: 0 | E151: 0 | F151: 0 | G151: 0 | H151: 0 | I151: 0 | J151: 0 | K151: 0 | L151: 0 | M151: 0 | N151: 0 | O151: 0 | P151: =SUM(D151:O151) -> 0
B152: NA | D152: 0 | E152: 0 | F152: 0 | G152: 0 | H152: 0 | I152: 0 | J152: 0 | K152: 0 | L152: 0 | M152: 0 | N152: 0 | O152: 0 | P152: =SUM(D152:O152) -> 0
B153: THERMS BLOCK 1 | D153: 2922870 | E153: 3547300 | F153: 3902504 | G153: 4223059 | H153: 4182623 | I153: 3745074 | J153: 3615312 | K153: 3356162 | L153: 3249405 | M153: 2921395 | N153: 2781719 | O153: 2919834 | P153: 41367257
B154: Total for 0148 | D154: =SUM(D151:D153) -> 2922870 | E154: =SUM(E151:E153) -> 3547300 | F154: 3902504 | G154: 4223059 | H154: 4182623 | I154: 3745074 | J154: 3615312 | K154: 3356162 | L154: 3249405 | M154: 2921395 | N154: 2781719 | O154: 2919834 | P154: 41367257
A155: 0158 | B155: NA | D155: 0 | E155: 0 | F155: 0 | G155: 0 | H155: 0 | I155: 0 | J155: 0 | K155: 0 | L155: 0 | M155: 0 | N155: 0 | O155: 0 | P155: 0
B156: RIDER 158 | D156: 0 | E156: 0 | F156: 0 | G156: 0 | H156: 0 | I156: 0 | J156: 0 | K156: 0 | L156: 0 | M156: 0 | N156: 0 | O156: 0 | P156: 0
B157: Total for 0158 | D157: 0 | E157: 0 | F157: 0 | G157: 0 | H157: 0 | I157: 0 | J157: 0 | K157: 0 | L157: 0 | M157: 0 | N157: 0 | O157: 0 | P157: 0
A158: 0158A | B158: RIDER 158 | D158: 0 | E158: 0 | F158: 0 | G158: 0 | H158: 0 | I158: 0 | J158: 0 | K158: 0 | L158: 0 | M158: 0 | N158: 0 | O158: 0 | P158: 0
B159: Total for 0158A | D159: 0 | E159: 0 | F159: 0 | G159: 0 | H159: 0 | I159: 0 | J159: 0 | K159: 0 | L159: 0 | M159: 0 | N159: 0 | O159: 0 | P159: 0
A160: 0199 | B160: NA | D160: 0 | E160: 0 | F160: 0 | G160: 0 | H160: 0 | I160: 0 | J160: 0 | K160: 0 | L160: 0 | M160: 0 | N160: 0 | O160: 0 | P160: 0
B161: Total for 0199 | D161: 0 | E161: 0 | F161: 0 | G161: 0 | H161: 0 | I161: 0 | J161: 0 | K161: 0 | L161: 0 | M161: 0 | N161: 0 | O161: 0 | P161: 0
A162: Total for WA | D162: =D55+D68+D82+D96+D110+D124+D136+D147+D150+D154 -> 12269566.36 | E162: 26091961.86 | F162: 34957589.86 | G162: 36381728.23 | H162: 36408923.61 | I162: 36000001.74 | J162: 24370632.32 | K162: 15779160.61 | L162: 12119531.22 | M162: 9690362.784 | N162: 9685303.329 | O162: 10471874.17 | P162: 264226636.1
A164: Total Usage | D164: =C8 -> 202010 | E164: =D8 -> 202011 | F164: 202012 | G164: 202101 | H164: 202102 | I164: 202103 | J164: 202104 | K164: 202105 | L164: 202106 | M164: 202107 | N164: 202108 | O164: 202109 | P164: 12 Month Total
C165: 101/102 | D165: =D55+D68 -> 4188892.571 | E165: 13139925.99 | F165: 20137931.68 | G165: 20873743.69 | H165: 21233613.13 | I165: 19974452.56 | J165: 11975808.91 | K165: 5994916.977 | L165: 3757561.809 | M165: 2208503.117 | N165: 2051764.04 | O165: 2516301.942 | P165: 128053416.4
C166: 111/112 | D166: =D82+D96 -> 2497413.668 | E166: 5362033.097 | F166: 7618090.39 | G166: 7733829.934 | H166: 7649347.317 | I166: 8396949.628 | J166: 5216217.02 | K166: 3256410.011 | L166: 2389136.096 | M166: 1669083.567 | N166: 1683705.846 | O166: 1961560.818 | P166: 55433777.39
C167: 116 | D167: =D110+D124 -> 0 | E167: 0 | F167: 0 | G167: 0 | H167: 0 | I167: 0 | J167: 0 | K167: 0 | L167: 0 | M167: 0 | N167: 0 | O167: 0 | P167: 0
C168: 132 | D168: =D136 -> 54977.125 | E168: =E136 -> 81553.779 | F168: 126568.784 | G168: 127341.609 | H168: 65536.155 | I168: 183530.551 | J168: 86985.384 | K168: 65394.621 | L168: 51440.313 | M168: 42047.1 | N168: 42398.443 | O168: 47105.41 | P168: 974879.274
C169: 146 | D169: =D147 -> 1782048 | E169: =E147 -> 2865078 | F169: 2895484 | G169: 3192839 | H169: 3218284 | I169: 3435588 | J169: 3061225 | K169: 2572892 | L169: 2306224 | M169: 2002070 | N169: 2081810 | O169: =O147 -> 1960700 | P169: 31374242
C170: 147 | D170: =D150 -> 823365 | E170: =E150 -> 1096071 | F170: 277011 | G170: 230915 | H170: 59520 | I170: 264407 | J170: 415084 | K170: 533385 | L170: 365764 | M170: 847264 | N170: 1043906 | O170: 1066372 | P170: 7023064
C171: 148 | D171: =D154 -> 2922870 | E171: =E154 -> 3547300 | F171: 3902504 | G171: 4223059 | H171: 4182623 | I171: 3745074 | J171: 3615312 | K171: 3356162 | L171: 3249405 | M171: 2921395 | N171: 2781719 | O171: 2919834 | P171: 41367257
C172: Total | D172: =SUM(D165:D171) -> 12269566.36 | E172: =SUM(E165:E171) -> 26091961.86 | F172: 34957589.86 | G172: 36381728.23 | H172: 36408923.61 | I172: 36000001.74 | J172: 24370632.32 | K172: 15779160.61 | L172: 12119531.22 | M172: 9690362.784 | N172: 9685303.328 | O172: 10471874.17 | P172: 264226636.1
D174: =D162-D172 -> 0 | E174: =E162-E172 -> 0 | F174: 0 | G174: 0 | H174: 0 | I174: 0 | J174: 0 | K174: 0 | L174: 0 | M174: 0 | N174: 0 | O174: 0 | P174: 0
A178: Rev Norm Unbilled 12 ME Report for Report Date : '09/30/2021'
A180: Revenue Class:<All> | B180: Jurisdiction:WA
D182: Unbilled Usage
C183: Period | D183: =C8 -> 202010 | E183: =D8 -> 202011 | F183: 202012 | G183: 202101 | H183: 202102 | I183: 202103 | J183: 202104 | K183: 202105 | L183: 202106 | M183: 202107 | N183: 202108 | O183: 202109 | P183: 12 Month Total
A184: Source Id | B184: Rate Schedule Num
A185: REVUNBL-G | B185: 101 | D185: 6531638 | E185: 10549535 | F185: 11943421 | G185: 11754552 | H185: 12021797 | I185: 6812862 | J185: 3799218 | K185: 2270369 | L185: 1258406 | M185: 1098352 | N185: 1377492 | O185: 2017191 | P185: =SUM(D185:O185) -> 71434833
B186: 111 | D186: 3528500 | E186: 4038549 | F186: 4266012 | G186: 4119846 | H186: 4072365 | I186: 2692865 | J186: 1542906 | K186: 1149520 | L186: 732432 | M186: 752822 | N186: 995475 | O186: 1422729 | P186: =SUM(D186:O186) -> 29314021
B187: 112 | D187: 107036 | E187: 58294 | F187: 64250 | G187: 68144 | H187: 64835 | I187: 42331 | J187: 29960 | K187: 13367 | L187: 12549 | M187: 12875 | N187: 16929 | O187: 22042 | P187: 512612
B188: 116 | D188: 0 | E188: 0 | F188: 0 | G188: 0 | H188: 0 | I188: 0 | J188: 0 | K188: 0 | L188: 0 | M188: 0 | N188: 0 | O188: 0 | P188: 0
B189: n/a | D189: 0 | E189: 0 | F189: 0 | G189: 0 | H189: 0 | I189: 0 | J189: 0 | K189: 0 | L189: 0 | M189: 0 | N189: 0 | O189: 0 | P189: 0
B190: 146 | D190: 2859646 | E190: 2894167 | F190: 3192839 | G190: 3218284 | H190: 3541847 | I190: 3056657 | J190: 2569585 | K190: 2306036 | L190: 2001426 | M190: 2080791 | N190: 1752099 | O190: 2231784 | P190: 31705161
B191: 147 | D191: 0 | E191: 0 | F191: 0 | G191: 0 | H191: 0 | I191: 0 | J191: 0 | K191: 0 | L191: 0 | M191: 0 | N191: 0 | O191: 0 | P191: 0
B192: 148 | D192: 3547300 | E192: 3902504 | F192: 4223059 | G192: 4182623 | H192: 3832079 | I192: 3469300 | J192: 3181301 | K192: 3075961 | L192: 2750652 | M192: 2630901 | N192: 2729135 | O192: 2990324 | P192: 40515139
B193: Total for REVUNBL-G | D193: =SUM(D185:D192) -> 16574120 | E193: =SUM(E185:E192) -> 21443049 | F193: 23689581 | G193: 23343449 | H193: 23532923 | I193: 16074015 | J193: 11122970 | K193: 8815253 | L193: 6755465 | M193: 6575741 | N193: 6871130 | O193: 8684070 | P193: =SUM(P185:P192) -> 173481766
A194: REVUNBL-GR | B194: 101 | D194: -1743282 | E194: -6531638 | F194: -10549535 | G194: -11943421 | H194: -11754552 | I194: -12021797 | J194: -6812862 | K194: -3799218 | L194: -2270369 | M194: -1258406 | N194: -1098352 | O194: -1377492 | P194: =SUM(D194:O194) -> -71160924
B195: 111 | D195: -1106773 | E195: -3528500 | F195: -4038549 | G195: -4266012 | H195: -4119846 | I195: -4072365 | J195: -2692865 | K195: -1542906 | L195: -1149520 | M195: -732432 | N195: -752822 | O195: -995475 | P195: -28998065
B196: 112 | D196: -38051 | E196: -107036 | F196: -58294 | G196: -64250 | H196: -68144 | I196: -64835 | J196: -42331 | K196: -29960 | L196: -13367 | M196: -12549 | N196: -12875 | O196: -16929 | P196: -528621
B197: 116 | D197: 0 | E197: 0 | F197: 0 | G197: 0 | H197: 0 | I197: 0 | J197: 0 | K197: 0 | L197: 0 | M197: 0 | N197: 0 | O197: 0 | P197: 0
B198: n/a | D198: 0 | E198: 0 | F198: 0 | G198: 0 | H198: 0 | I198: 0 | J198: 0 | K198: 0 | L198: 0 | M198: 0 | N198: 0 | O198: 0 | P198: 0
B199: 146 | D199: -1781958 | E199: -2859646 | F199: -2894167 | G199: -3192839 | H199: -3218284 | I199: -3541847 | J199: -3056657 | K199: -2569585 | L199: -2306036 | M199: -2001426 | N199: -2080791 | O199: -1752099 | P199: -31255335
B200: 147 | P200: 0
B201: 148 | D201: -2922905 | E201: -3547300 | F201: -3902504 | G201: -4223059 | H201: -4182623 | I201: -3832079 | J201: -3469300 | K201: -3181301 | L201: -3075961 | M201: -2750652 | N201: -2630901 | O201: -2729135 | P201: -40447720
B202: Total for REVUNBL-GR | D202: =SUM(D194:D201) -> -7592969 | E202: =SUM(E194:E201) -> -16574120 | F202: -21443049 | G202: -23689581 | H202: -23343449 | I202: -23532923 | J202: -16074015 | K202: -11122970 | L202: -8815253 | M202: -6755465 | N202: -6575741 | O202: -6871130 | P202: =SUM(P194:P201) -> -172390665
A203: Total for WA | D203: =D193+D202 -> 8981151 | E203: =E193+E202 -> 4868929 | F203: 2246532 | G203: -346132 | H203: 189474 | I203: -7458908 | J203: -4951045 | K203: -2307717 | L203: -2059788 | M203: -179724 | N203: 295389 | O203: 1812940 | P203: =P193+P202 -> 1091101
C207: 101 | D207: =D185+D194 -> 4788356 | E207: =E185+E194 -> 4017897 | F207: 1393886 | G207: -188869 | H207: 267245 | I207: -5208935 | J207: -3013644 | K207: -1528849 | L207: -1011963 | M207: -160054 | N207: 279140 | O207: 639699 | P207: =P185+P194 -> 273909
C208: 111 | D208: =D186+D187+D196+D195 -> 2490712 | E208: =E186+E187+E196+E195 -> 461307 | F208: 233419 | G208: -142272 | H208: -50790 | I208: -1402004 | J208: -1162330 | K208: -409979 | L208: -417906 | M208: 20716 | N208: 246707 | O208: 432367 | P208: =P186+P187+P196+P195 -> 299947
C209: 116 | D209: =D188+D189+D198+D197 -> 0 | E209: =E188+E189+E198+E197 -> 0 | F209: 0 | G209: 0 | H209: 0 | I209: 0 | J209: 0 | K209: 0 | L209: 0 | M209: 0 | N209: 0 | O209: 0 | P209: =P188+P189+P198+P197 -> 0
C210: 146 | D210: =D190+D199 -> 1077688 | E210: =E190+E199 -> 34521 | F210: 298672 | G210: 25445 | H210: 323563 | I210: -485190 | J210: -487072 | K210: -263549 | L210: -304610 | M210: 79365 | N210: -328692 | O210: 479685 | P210: =P190+P199 -> 449826
C211: 147 | D211: =D191+D200 -> 0 | E211: =E191+E200 -> 0 | F211: 0 | G211: 0 | H211: 0 | I211: 0 | J211: 0 | K211: 0 | L211: 0 | M211: 0 | N211: 0 | O211: 0 | P211: =P191+P200 -> 0
C212: 148 | D212: =D192+D201 -> 624395 | E212: =E192+E201 -> 355204 | F212: 320555 | G212: -40436 | H212: -350544 | I212: -362779 | J212: -287999 | K212: -105340 | L212: -325309 | M212: -119751 | N212: 98234 | O212: 261189 | P212: =P192+P201 -> 67419
C213: Total | D213: =SUM(D207:D212) -> 8981151 | E213: =SUM(E207:E212) -> 4868929 | F213: 2246532 | G213: -346132 | H213: 189474 | I213: -7458908 | J213: -4951045 | K213: -2307717 | L213: -2059788 | M213: -179724 | N213: 295389 | O213: 1812940 | P213: =SUM(P207:P212) -> 1091101
D215: =D203-D213 -> 0 | E215: =E203-E213 -> 0 | F215: 0 | G215: 0 | H215: 0 | I215: 0 | J215: 0 | K215: 0 | L215: 0 | M215: 0 | N215: 0 | O215: 0 | P215: 0
O217: 101-111 | P217: =P207+P208 -> 573856
